Workbook

Sheet 0-Instruções de preenchimento
A1: PLANO DE RECUPERAÇÃO FISCAL
A2: Instruções de preenchimento
A4: Orientações Gerais
A5: 1. Receitas
A6: As receitas consideram valores arrecadados.
A7: Não devem ser consideradas receitas com fonte de recurso RPPS.
A8: Os repasses para o Fundeb integram a base de receitas, e devem ser lançados na linha "Deduções para formação do Fundeb (IIa)".
A9: 2. Despesas
A10: Todas as despesas consideram valores empenhados.
A11: Não devem ser consideradas despesas com fonte de recursos RPPS.
A13: Instruções de preenchimento
A14: 1. Cenário Base
A15: Informar Exercício Corrente e Ano-base para a limitação de despesas (no exercício de 2021, o ano-base pode ser escolhido a partir de 2017).
A16: Preencher valores realizados até o exercício anterior, e projeções para o exercício atual e seguintes (substituir as fórmulas-padrão, que realizam projeção com base no IPCA e na variação do PIB real Nacional).
A17: Em alguns casos, são necessárias informações do exercício X-4, para algum cálculo que se dê de forma incremental (como Restos a Pagar).
A19: 2. Medidas a implementar
A20: Informar, para cada uma das medidas de ajuste a implementar constante da documentação descritiva do PRF (Notas Técnicas), os fluxos afetados (um por linha) e impactos esperados.
A21: O nome de cada fluxo afetado deve ser idêntico à linha correspondente nas planilhas "I-Cenário Base" e "III-Cenário Ajustado".
A23: 3. Vinculações
A24: Esta aba possibilita gerar os reflexos indiretos das medidas a implementar.
A25: Cada linha representa um "Fluxo afetado - reflexo" (Y), que será afetado na proporção indicada cada vez que uma medida trouxer impacto a um "Fluxo afetado pela medida"(X), podendo a proporção ser positiva ou negativa (caso em que um aumento do fluxo X gera redução no fluxo Y).
A26: Importante destacar que, caso haja mais de uma vinculação afetando o mesmo fluxo, o percentual incidente deve ser o final (percentual real), e não o percentual listado no normativo (percentual nominal). Esses percentuais podem ser diferentes consoante a ordem de aplicação. Exemplo: sobre uma receita incide 25% de transferências aos municípios e 20% de dedução do Fundeb - esses são os percentuais nominais. Entretanto, como é feita a dedução do montante transferido aos municípios antes da dedução do Fundeb, essa dedução, na verdade, é de 20% sobre os 75% restantes, ou seja, 15% sobre o total. Na coluna "Proporção" da vinculação do Fundeb, deve constar, portanto, 15%.
A27: Ao fim, pressionar o botão para executar a macro e gerar os reflexos das medidas a implementar.
A29: 4. Cenário Ajustado
A30: Os dados do Cenário Ajustado são obtidos automaticamente através da soma das projeções do Cenário Base com os impactos das Medidas a implementar e seus Reflexos.
A32: 5. Verificações
A33: A aba de verificações averigua: a) o cumprimento da limitação de despesas do inciso V do § 1º do artigo 2º da Lei Complementar nº 159/2017; e b) o atingimento do equilíbrio ao fim do Regime
A34: Para a verificação do cumprimento da limitação de despesas, devem ser informados dados do pagamento de passivos não financeiros e das despesas não incluídas no cálculo, referentes ao ano-base do cálculo da limitação e aos anos posteriores.
A35: O serviço da dívida por competência será informado pela STN.
A36: O respeito à limitação de despesas ao longo de todo o Regime é condição necessária à aprovação do PRF.
A37: Para a verificação das condições de equilíbrio, devem ser informadas as receitas e despesas extraordinárias não incluídas no cálculo do resultado primário para fins de apuração do equilíbrio, uma por linha (inserir linhas extras entre as já existentes, de forma a atualizar automaticamente a fórmula de soma das receitas e das despesas).
A39: 6. Parâmetros
A40: Na aba de parâmetros são informadas projeções de variáveis macroeconômicas úteis para a estimação de rubricas fiscais. Essas projeções, no entanto, poderão ser substituídas por outras que o Estado achar mais convenientes.
A42: Mapeamento de Contas RRF e Instruções
A43: Consultar a aba "VI-Referência".

Sheet I-Cenário Base
A1: PLANO DE RECUPERAÇÃO FISCAL
A2: Anexo I - Demonstrativo de Resultados Fiscais
A3: Cenário Base - Dados anuais em R$ milhões
A4: Receitas arrecadadas, brutas do repasse para o Fundeb Despesas empenhadas, inclusive transferências a Municípios
B5: 2018 | C5: 2019 | D5: 2020 | E5: 2021 | F5: 2022 | G5: 2023 | H5: 2024 | I5: 2025 | J5: 2026 | K5: 2027 | L5: 2028 | M5: 2029 | N5: 2030 | O5: 2031 | P5: 2032 | Q5: 2033
A6: ACIMA DA LINHA - RECEITAS E DESPESAS
A7: Receita Total (I) = (II+IX) | C7: =C8+C33 -> 0 | D7: 93604.9874 | E7: 111657.7325 | F7: 122365.9093 | G7: 124824.9246 | H7: 132492.8395 | I7: 139147.4665 | J7: 146167.1511 | K7: 153770.8186 | L7: 161656.5066 | M7: 170313.7147 | N7: 179479.279 | O7: 189169.4777 | P7: 199465.8249 | Q7: =Q8+Q33 -> 210469.4358
A8: Receitas Correntes (II) = (III+IV+V+VI+VII-IIa) | C8: =C9+C15+C18+C21+C27-C31 -> 0 | D8: 93179.24461 | E8: 107666.1363 | F8: 119031.5404 | G8: 121471.3712 | H8: 129645.2204 | I8: 137165.6991 | J8: 144150.9273 | K8: 152131.6332 | L8: 160393.2314 | M8: 169012.688 | N8: 178139.3044 | O8: 187789.3229 | P8: 198044.2205 | Q8: =Q9+Q15+Q18+Q21+Q27-Q31 -> 209005.0739
A9: Receitas Tributárias (III) | C9: =SUM(C10:C14) -> 0 | D9: 68620.98853 | E9: 85643.75525 | F9: =SUM(F10:F14) -> 91665.33507 | G9: =SUM(G10:G14) -> 96820.67352 | H9: 103675.23 | I9: 109640.0487 | J9: 116031.098 | K9: 122861.5185 | L9: 130107.3953 | M9: 137676.9513 | N9: 145709.6918 | O9: =SUM(O10:O14) -> 154264.5534 | P9: 163363.555 | Q9: =SUM(Q10:Q14) -> 173038.0415
A10: ICMS | D10: 52509.44873 | E10: 67891.97528 | F10: 70674.17366 | G10: 72002.91443 | H10: 78016.61297 | I10: 83511.03646 | J10: 88515.66063 | K10: 93958.55714 | L10: 99600.00247 | M10: 105617.4046 | N10: 112010.7213 | O10: 118833.6497 | P10: 126102.6422 | Q10: 133843.13
A11: IPVA | D11: 6228.433917 | E11: 6669.63265 | F11: 7733.793405 | G11: 11120.96637 | H11: 11569.60304 | I11: 11757.76576 | J11: 12518.67752 | K11: 13324.5848 | L11: 14182.75841 | M11: 15096.6011 | N11: 16069.73765 | O11: 17106.02933 | P11: 18209.58938 | Q11: 19384.79946
A12: ITCD | D12: 996.1734588 | E12: 1567.83608 | F12: 1548.395131 | G12: 1860.762653 | H12: 1879.24073 | I12: 1712.646094 | J12: 1781.151938 | K12: 1834.586496 | L12: 1889.624091 | M12: 1946.312814 | N12: 2004.702198 | O12: 2064.843264 | P12: 2126.788562 | Q12: 2190.592219
A13: IRRF | D13: 5469.951172 | E13: 5307.569989 | F13: 6589.412219 | G13: 7059.462147 | H13: 7612.222892 | I13: 7908.974578 | J13: 8206.157128 | K13: 8515.97863 | L13: 8978.451336 | M13: 9320.411864 | N13: 9677.178036 | O13: 10049.49212 | P13: 10438.13855 | Q13: 10843.94658
A14: Outras Receitas Tributárias | D14: 3416.981255 | E14: 4206.741251 | F14: 5119.560648 | G14: 4776.567922 | H14: 4597.55036 | I14: 4749.625814 | J14: 5009.450815 | K14: 5227.811473 | L14: 5456.559005 | M14: 5696.220899 | N14: 5947.352608 | O14: 6210.539076 | P14: 6486.396344 | Q14: 6775.573247
A15: Receitas de Contribuições (IV) | C15: =SUM(C16:C17) -> 0 | D15: 4240.381558 | E15: 2864.178733 | F15: =SUM(F16:F17) -> 2995.09364 | G15: =SUM(G16:G17) -> 3431.343947 | H15: =SUM(H16:H17) -> 3068.580284 | I15: 3169.968328 | J15: 3274.825784 | K15: 3383.286127 | L15: 3541.875964 | M15: 3659.702635 | N15: 3781.633184 | O15: =SUM(O16:O17) -> 3907.826799 | P15: 4038.449162 | Q15: =SUM(Q16:Q17) -> 4173.67272
A16: Receitas Previdenciárias (a) | D16: 2807.088127 | E16: 1722.838114 | F16: 1696.149598 | G16: 1683.993262 | H16: 1662.831337 | I16: 1719.590933 | J16: 1778.616285 | K16: 1840.004758 | L16: 1950.245765 | M16: 2018.408338 | N16: 2089.320063 | O16: 2163.099487 | P16: 2239.870429 | Q16: 2319.762221
A17: Outras Receitas de Contribuições | D17: 1433.293431 | E17: 1141.340619 | F17: 1298.944042 | G17: 1747.350685 | H17: 1405.748947 | I17: 1450.377395 | J17: 1496.209499 | K17: 1543.281369 | L17: 1591.630199 | M17: 1641.294296 | N17: 1692.31312 | O17: 1744.727312 | P17: 1798.578733 | Q17: 1853.910499
A18: Receita Patrimonial (V) | C18: =SUM(C19:C20) -> 0 | D18: 1971.948477 | E18: 4993.170813 | F18: =SUM(F19:F20) -> 5482.398872 | G18: =SUM(G19:G20) -> 6090.669153 | H18: =SUM(H19:H20) -> 5655.088491 | I18: 5739.392956 | J18: 6199.37092 | K18: 6463.634685 | L18: 6479.799433 | M18: 6611.241331 | N18: 6708.746362 | O18: =SUM(O19:O20) -> 6835.985083 | P18: 6988.169291 | Q18: =SUM(Q19:Q20) -> 7220.180583
A19: Receita de Aplicações Financeiras (b) | D19: 223.0822715 | E19: 783.5919478 | F19: 3234.378191 | G19: 3365.391155 | H19: 2817.084538 | I19: 2549.669871 | J19: 2430.556719 | K19: 2456.978501 | L19: 2353.82658 | M19: 2241.011632 | N19: 2128.736267 | O19: 2016.080158 | P19: 2015.098463 | Q19: 1995.135482
A20: Outras Receitas Patrimoniais | D20: 1748.866205 | E20: 4209.578865 | F20: 2248.020681 | G20: 2725.277998 | H20: 2838.003953 | I20: 3189.723085 | J20: 3768.814201 | K20: 4006.656184 | L20: 4125.972853 | M20: 4370.229699 | N20: 4580.010096 | O20: 4819.904924 | P20: 4973.070828 | Q20: 5225.045101
A21: Transferências Correntes (VI) | C21: =SUM(C22:C26) -> 0 | D21: 23114.71595 | E21: 23516.56547 | F21: 29237.0727 | G21: 25871.0591 | H21: 28687.82733 | I21: 30912.8901 | J21: 31612.06339 | K21: 33222.94944 | L21: 34984.56768 | M21: 36769.57358 | N21: 38692.63883 | O21: 40655.86188 | P21: 42733.14875 | Q21: =SUM(Q22:Q26) -> 44930.84058
A22: Cota-Parte do FPE | D22: 4179.911824 | E22: 5752.188682 | F22: 7255.576322 | G22: 7391.174221 | H22: 8945.031307 | I22: 9467.671596 | J22: 9997.444628 | K22: 10560.98059 | L22: 11156.28194 | M22: 11785.13924 | N22: 12449.44397 | O22: 13151.19423 | P22: 13892.50074 | Q22: 14675.59322
A23: Cota-Parte do IPI-Exp. (LC nº 61/1989) | D23: 567.94317 | E23: 770.5926406 | F23: 805.4188957 | G23: 700.5431767 | H23: 837.8275183 | I23: 886.7801045 | J23: 936.4007721 | K23: 989.1838108 | L23: 1044.942124 | M23: 1103.843421 | N23: 1166.064867 | O23: 1231.793612 | P23: 1301.227354 | Q23: 1374.574938
A24: Transferências do FUNDEB | D24: 8577.513286 | E24: 11145.32961 | F24: 11630.79873 | G24: 11296.61776 | H24: 11916.45037 | I24: 12506.9977 | J24: 13244.24106 | K24: 14018.90871 | L24: 14846.25924 | M24: 15726.11158 | N24: 16659.5138 | O24: 17652.51651 | P24: 18707.81214 | Q24: 19828.98828
A25: Royalties e Participações Especiais | D25: 19.54302053 | E25: 32.8232 | F25: 51.04522784 | G25: 44.32392372 | H25: 47.849865 | I25: 50.64563691 | J25: 53.47956417 | K25: 56.49410024 | L25: 59.67855969 | M25: 44.12976452 | N25: 66.59610155 | O25: 70.3499906 | P25: 74.31547887 | Q25: 78.50449378
A26: Outras Transferências Correntes | D26: 9769.804651 | E26: 5815.631337 | F26: 9494.233531 | G26: 6438.400022 | H26: 6940.668273 | I26: 8000.79507 | J26: 7380.49736 | K26: 7597.382231 | L26: 7877.405816 | M26: 8110.349571 | N26: 8351.020086 | O26: 8550.007536 | P26: 8757.29303 | Q26: 8973.179644
A27: Demais Receitas Correntes (VII) | C27: =SUM(C28:C30) -> 0 | D27: 4739.350586 | E27: 3121.786524 | F27: 3393.08199 | G27: =SUM(G28:G30) -> 3159.394998 | H27: =SUM(H28:H30) -> 3756.154365 | I27: 3949.13594 | J27: 4109.680534 | K27: 4253.977492 | L27: 4403.791784 | M27: 4559.356896 | N27: 4720.915138 | O27: =SUM(O28:O30) -> 4888.722624 | P27: 5056.295498 | Q27: =SUM(Q28:Q30) -> 5236.711302
A28: Outras Receitas Financeiras (c) | D28: 4.64668065 | E28: 22.89075357 | F28: 66.51142598 | G28: 5.69746926 | H28: 5.75405 | I28: 5.9266115 | J28: 6.104349845 | K28: 6.28742034 | L28: 6.475982951 | M28: 6.670202439 | N28: 6.870248512 | O28: 7.076295968 | P28: 7.288524847 | Q28: 7.507120592
A29: Compensações Financeiras entre o RGPS e o RPPS (d) | D29: 0 | E29: 0 | F29: 0 | G29: 0 | H29: 0 | I29: 0 | J29: 0 | K29: 0 | L29: 0 | M29: 0 | N29: 0 | O29: 0 | P29: 0 | Q29: 0
A30: Receitas Correntes Restantes | D30: 4734.703905 | E30: 3098.89577 | F30: 3326.570564 | G30: 3153.697529 | H30: 3750.400315 | I30: 3943.209329 | J30: 4103.576185 | K30: 4247.690071 | L30: 4397.315801 | M30: 4552.686694 | N30: 4714.044889 | O30: 4881.646328 | P30: 5049.006973 | Q30: 5229.204181
A31: Deduções para formação do Fundeb (IIa) | D31: 9508.140494 | E31: 12473.32046 | F31: 13741.44189 | G31: 13901.7695 | H31: 15197.66003 | I31: 16245.73695 | J31: 17076.11138 | K31: 18053.73304 | L31: 19124.19874 | M31: 20264.13773 | N31: 21474.32092 | O31: 22763.62692 | P31: 24135.39723 | Q31: 25594.37277
A32: Receitas Primárias Correntes (VIII) = (II-b-c) | C32: =C8-C19-C28 -> 0 | D32: 92951.51566 | E32: 106859.6536 | F32: 115730.6508 | G32: 118100.2826 | H32: 126822.3818 | I32: 134610.1026 | J32: 141714.2662 | K32: 149668.3673 | L32: 158032.9289 | M32: 166765.0062 | N32: 176003.6978 | O32: 185766.1664 | P32: 196021.8335 | Q32: =Q8-Q19-Q28 -> 207002.4313
A33: Receitas de Capital (IX) = (X+XI+XII+XIII+XIV) | C33: =C34+C35+C36+C39+C40 -> 0 | D33: 425.7427897 | E33: 3991.596209 | F33: 3334.368892 | G33: =G34+G35+G36+G39+G40 -> 3353.553332 | H33: =H34+H35+H36+H39+H40 -> 2847.619113 | I33: 1981.767448 | J33: 2016.223782 | K33: 1639.185347 | L33: 1263.275154 | M33: 1301.026686 | N33: 1339.974607 | O33: =O34+O35+O36+O39+O40 -> 1380.154803 | P33: 1421.604415 | Q33: =Q34+Q35+Q36+Q39+Q40 -> 1464.361879
A34: Operações de Crédito (X) | D34: 4.71734338 | E34: 0.9147786 | F34: 9.2963838 | G34: 10.74310629 | H34: 24.89327567 | I34: 0 | J34: 0 | K34: 0 | L34: 0 | M34: 0 | N34: 0 | O34: 0 | P34: 0 | Q34: 0
A35: Amortização de Empréstimos (XI) | D35: 75.91205969 | E35: 146.4523496 | F35: 260.5229867 | G35: 88.07963921 | H35: 86.7809911 | I35: 88.55203013 | J35: 90.41781687 | K35: 92.37911292 | L35: 94.43680677 | M35: 96.59191242 | N35: 98.84556817 | O35: 101.1990357 | P35: 103.6536992 | Q35: 106.2110649
A36: Alienação de Bens (XII) | C36: =SUM(C37:C38) -> 0 | D36: 44.30196636 | E36: 114.0748036 | F36: 36.47430278 | G36: =SUM(G37:G38) -> 53.60281619 | H36: =SUM(H37:H38) -> 25.278086 | I36: 26.59123561 | J36: 27.93305693 | K36: 29.24713876 | L36: 30.6274793 | M36: 32.077579 | N36: 33.60112862 | O36: =SUM(O37:O38) -> 35.20201971 | P36: 36.8843557 | Q36: =SUM(Q37:Q38) -> 38.65246367
A37: Alienação de Bens Não Primária (e) | D37: 26.8055527 | E37: 32.01642849 | F37: 0.86622773 | G37: 0.225 | H37: 0.225 | I37: 0.23175 | J37: 0.2387025 | K37: 0.245863575 | L37: 0.2532394823 | M37: 0.2608366667 | N37: 0.2686617667 | O37: 0.2767216197 | P37: 0.2850232683 | Q37: 0.2935739664
A38: Alienação de Bens Primária | D38: 17.49641366 | E38: 82.05837506 | F38: 35.60807505 | G38: 53.37781619 | H38: 25.053086 | I38: 26.35948561 | J38: 27.69435443 | K38: 29.00127519 | L38: 30.37423982 | M38: 31.81674233 | N38: 33.33246686 | O38: 34.92529809 | P38: 36.59933243 | Q38: 38.3588897
A39: Transferências de Capital (XIII) | D39: 300.8114203 | E39: 325.1037548 | F39: 412.6513697 | G39: 382.4831952 | H39: 979.2856141 | I39: 1008.664182 | J39: 1038.924108 | K39: 1070.091831 | L39: 1102.194586 | M39: 1135.260424 | N39: 1169.318236 | O39: 1204.397784 | P39: 1240.529717 | Q39: 1277.745609
A40: Outras Receitas de Capital (XIV) | C40: =SUM(C41:C42) -> 0 | D40: 0 | E40: 3405.050523 | F40: 2615.423849 | G40: =SUM(G41:G42) -> 2818.644575 | H40: =SUM(H41:H42) -> 1731.381146 | I40: 857.96 | J40: 858.9488 | K40: 447.467264 | L40: 36.01628192 | M40: 37.09677038 | N40: 38.20967349 | O40: =SUM(O41:O42) -> 39.35596369 | P40: 40.5366426 | Q40: =SUM(Q41:Q42) -> 41.75274188
A41: Outras Receitas de Capital Não Primárias (f) | H41: 0 | I41: 0 | J41: 0 | K41: 0 | L41: 0 | M41: 0 | N41: 0 | O41: 0 | P41: 0 | Q41: 0
A42: Outras Receitas de Capital Primárias | E42: 3405.050523 | F42: 2615.423849 | G42: 2818.644575 | H42: 1731.381146 | I42: 857.96 | J42: 858.9488 | K42: 447.467264 | L42: 36.01628192 | M42: 37.09677038 | N42: 38.20967349 | O42: 39.35596369 | P42: 40.5366426 | Q42: 41.75274188
A43: Receitas Primárias de Capital (XV) = (IX-X-XI-e-f) | C43: =C33-C34-C35-C37-C41 -> 0 | D43: 318.307834 | E43: 3812.212653 | F43: 3063.683294 | G43: =G33-G34-G35-G37-G41 -> 3254.505587 | H43: =H33-H34-H35-H37-H41 -> 2735.719846 | I43: 1892.983668 | J43: 1925.567262 | K43: 1546.56037 | L43: 1168.585108 | M43: 1204.173936 | N43: 1240.860377 | O43: =O33-O34-O35-O37-O41 -> 1278.679045 | P43: 1317.665692 | Q43: =Q33-Q34-Q35-Q37-Q41 -> 1357.85724
A44: RECEITA PRIMÁRIA TOTAL (XVI) = (VIII+XV) | C44: =C32+C43 -> 0 | D44: 93269.82349 | E44: 110671.8663 | F44: 118794.3341 | G44: =G32+G43 -> 121354.7882 | H44: 129558.1017 | I44: 136503.0863 | J44: 143639.8335 | K44: 151214.9277 | L44: 159201.514 | M44: 167969.1801 | N44: 177244.5582 | O44: =O32+O43 -> 187044.8455 | P44: 197339.4992 | Q44: =Q32+Q43 -> 208360.2885
A45: Despesa Orçamentária (XVII) = (XVIII+XXIII) | C45: =C46+C58 -> 0 | D45: 96715.12138 | E45: 112234.6156 | F45: 119975.6494 | G45: 124516.7131 | H45: 129739.3644 | I45: 140066.563 | J45: 148232.0077 | K45: 156222.9326 | L45: 164229.1298 | M45: 173275.483 | N45: 180970.8859 | O45: 190546.3957 | P45: 200576.2704 | Q45: =Q46+Q58 -> 210190.5104
A46: Despesas Correntes (XVIII) = (XIX+XX+XXI) | C46: =C47+C52+C53 -> 0 | D46: 90421.78445 | E46: 100032.2933 | F46: 106411.17 | G46: =G47+G52+G53 -> 113403.2887 | H46: 120880.501 | I46: 128297.6571 | J46: 134996.3115 | K46: 141416.8106 | L46: 149063.9834 | M46: 156193.3324 | N46: 161559.0136 | O46: =O47+O52+O53 -> 168662.6253 | P46: 175896.2534 | Q46: =Q47+Q52+Q53 -> 188694.6022
A47: Pessoal e Encargos Sociais (XIX) | C47: =SUM(C48:C51) -> 0 | D47: 42770.60104 | E47: 40841.20502 | F47: 46690.71289 | G47: =SUM(G48:G51) -> 61655.36055 | H47: 65454.80335 | I47: 68521.42406 | J47: 71449.98381 | K47: 73619.16909 | L47: 77125.83758 | M47: 79887.9769 | N47: 81016.77419 | O47: =SUM(O48:O51) -> 83466.25905 | P47: 85861.22123 | Q47: =SUM(Q48:Q51) -> 88405.57557
A48: Ativo | D48: 26788.56583 | E48: 30673.5167 | F48: 33993.95755 | G48: 37302.10845 | H48: 40101.01404 | I48: 42216.05421 | J48: 44003.34039 | K48: 45149.03078 | L48: 47010.88725 | M48: 48308.20335 | N48: 49622.58828 | O48: 51025.49022 | P48: 52371.06262 | Q48: 53847.05743
A49: Inativos e Pensionistas | D49: 14480.35763 | E49: 8849.943329 | F49: 10629.90622 | G49: 20505.34348 | H49: 23191.56414 | I49: 24186.75553 | J49: 25033.32787 | K49: 25824.03606 | L49: 27138.22585 | M49: 28001.3554 | N49: 28860.46568 | O49: 29775.77863 | P49: 30718.53603 | Q49: 31689.28674
A50: Sentenças Judiciais - Pessoal | D50: 346.2471806 | E50: 403.03864 | F50: 961.5567966 | G50: 865.3267896 | H50: 510.2768858 | I50: 457.9435148 | J50: 587.3127683 | K50: 768.0812503 | L50: 1046.339763 | M50: 1597.41591 | N50: 501.8655765 | O50: 544.509203 | P50: 590.7767847 | Q50: 640.9763195
A51: Outras Despesas com Pessoal | D51: 1155.430403 | E51: 914.7063533 | F51: 1105.292318 | G51: 2982.58184 | H51: 1651.948282 | I51: 1660.670807 | J51: 1826.002781 | K51: 1878.021001 | L51: 1930.384711 | M51: 1981.002234 | N51: 2031.854647 | O51: 2120.481003 | P51: 2180.845794 | Q51: 2228.255077
A52: Juros e Encargos da Dívida (XX) | D52: 6818.984468 | E52: 7056.858436 | F52: 2759.545125 | G52: 1595.908652 | H52: 1907.279343 | I52: 2791.337708 | J52: 3246.69682 | K52: 3685.945364 | L52: 4102.22383 | M52: 4476.704254 | N52: 4812.948478 | O52: 5108.981411 | P52: 5358.322877 | Q52: 10471.40023
A53: Outras Despesas Correntes (XXI) | C53: =SUM(C54:C56) -> 0 | D53: 40832.19894 | E53: 52134.2298 | F53: 56960.91194 | G53: 50152.01948 | H53: 53518.41826 | I53: 56984.89531 | J53: 60299.63085 | K53: 64111.69617 | L53: 67835.922 | M53: 71828.65121 | N53: 75729.29093 | O53: 80087.3848 | P53: 84676.70924 | Q53: =SUM(Q54:Q56) -> 89817.62644
A54: Transferências Constitucionais e Legais (g) | D54: 16237.48869 | E54: 20303.50763 | F54: 22268.12993 | G54: 23759.67076 | H54: 25282.30287 | I54: 26952.22307 | J54: 28373.47394 | K54: 30404.06385 | L54: 32257.59666 | M54: 34233.7433 | N54: 36334.35003 | O54: 38574.81869 | P54: 40961.36858 | Q54: 43502.60065
A55: Sentenças Judiciais - Outras Correntes | D55: 49.39081012 | E55: 114.2405612 | F55: 353.3545548 | G55: 507.0279512 | H55: 274.0631692 | I55: 271.6535137 | J55: 297.9313226 | K55: 332.4486459 | L55: 382.4424825 | M55: 475.4359851 | N55: 310.2445662 | O55: 324.0224129 | P55: 338.4461344 | Q55: 353.7479982
A56: Demais Despesas Correntes | D56: 24545.31944 | E56: 31716.48161 | F56: 34339.42746 | G56: 25885.32078 | H56: 27962.05222 | I56: 29761.01872 | J56: 31628.22558 | K56: 33375.18367 | L56: 35195.88286 | M56: 37119.47192 | N56: 39084.69633 | O56: 41188.5437 | P56: 43376.89453 | Q56: 45961.27779
A57: Despesas Primárias Correntes (XXII) = (XVIII-XX-h) | C57: =C46-C52 -> 0 | D57: 83602.79998 | E57: 92975.43482 | F57: 103651.6248 | G57: 111807.38 | H57: 118973.2216 | I57: 125506.3194 | J57: 131749.6147 | K57: 137730.8653 | L57: 144961.7596 | M57: 151716.6281 | N57: 156746.0651 | O57: 163553.6438 | P57: 170537.9305 | Q57: =Q46-Q52 -> 178223.202
A58: Despesas de Capital (XXIII) = (XXIV+XXV+XXVI) | C58: =C59+C62+C66 -> 0 | D58: 6293.336929 | E58: 12202.32234 | F58: 13564.47948 | G58: =G59+G62+G66 -> 11113.4244 | H58: =H59+H62+H66 -> 8858.863439 | I58: 11768.90593 | J58: 13235.69624 | K58: 14806.12197 | L58: 15165.14635 | M58: 17082.15062 | N58: =N59+N62+N66 -> 19411.87232 | O58: 21883.77048 | P58: =P59+P62+P66 -> 24680.017 | Q58: =Q59+Q62+Q66 -> 21495.90816
A59: Investimentos (XXIV) | C59: =SUM(C60:C61) -> 0 | D59: 1991.0216 | E59: 6402.418815 | F59: 9345.095791 | G59: =SUM(G60:G61) -> 7220.163278 | H59: =SUM(H60:H61) -> 6036.441322 | I59: 6781.44622 | J59: 6866.302781 | K59: 7005.145631 | L59: 7266.059703 | M59: 7679.703465 | N59: =SUM(N60:N61) -> 8167.277432 | O59: 8680.159751 | P59: =SUM(P60:P61) -> 9226.919162 | Q59: =SUM(Q60:Q61) -> 9945.569375
A60: Sentenças Judiciais - Investimentos | D60: 4.36472149 | E60: 0.05194351 | F60: 5.00948179 | G60: 0.72244967 | H60: 3.0791145 | I60: 2.91962129 | J60: 3.43770122 | K60: 4.14824148 | L60: 5.22283719 | M60: 7.31438306 | N60: 3.27641474 | O60: 3.47738853 | P60: 3.69311945 | Q60: 3.92479207
A61: Demais Investimentos | D61: 1986.656878 | E61: 6402.366871 | F61: 9340.086309 | G61: 7219.440829 | H61: 6033.362207 | I61: 6778.526599 | J61: 6862.86508 | K61: 7000.997389 | L61: 7260.836866 | M61: 7672.389082 | N61: 8164.001018 | O61: 8676.682362 | P61: 9223.226043 | Q61: 9941.644583
A62: Inversões Financeiras (XXV) | C62: =SUM(C63:C65) -> 0 | D62: 656.4016856 | E62: 2447.582404 | F62: 1549.436373 | G62: =SUM(G63:G65) -> 1802.238969 | H62: =SUM(H63:H65) -> 1957.13189 | I62: 2546.385379 | J62: 2445.125572 | K62: 2300.812549 | L62: 733.7255304 | M62: 858.7372963 | N62: =SUM(N63:N65) -> 884.4994152 | O62: 911.0343976 | P62: =SUM(P63:P65) -> 1077.243792 | Q62: =SUM(Q63:Q65) -> 702.9204476
A63: Inversões Financeiras Não Primárias (h) 1) | D63: 2.80189947 | E63: 2.50910734 | F63: 4.98318654 | G63: 9.67935434 | H63: 28.949 | I63: 29.963965 | J63: 31.009754 | K63: 31.94004662 | L63: 32.89824802 | M63: 33.88519546 | N63: 34.90175132 | O63: 35.94880386 | P63: 37.02726798 | Q63: 38.13808602
A64: Sentenças Judiciais - Inversões | D64: 0 | E64: 24 | F64: 0 | G64: 0 | H64: 0 | I64: 0 | J64: 0 | K64: 0 | L64: 0 | M64: 0 | N64: 0 | O64: 0 | P64: 0 | Q64: 0
A65: Demais Inversões Financeiras Primárias | D65: 653.5997861 | E65: 2421.073297 | F65: 1544.453186 | G65: 1792.559615 | H65: 1928.18289 | I65: 2516.421414 | J65: 2414.115818 | K65: 2268.872502 | L65: 700.8272824 | M65: 824.8521008 | N65: 849.5976639 | O65: 875.0855937 | P65: 1040.216524 | Q65: 664.7823616
A66: Amortização da Dívida (XXVI) | D66: 3645.913644 | E66: 3352.321119 | F66: 2669.94732 | G66: 2091.022155 | H66: 865.2902275 | I66: 2441.074327 | J66: 3924.26789 | K66: 5500.163789 | L66: 7165.361121 | M66: 8543.709857 | N66: 10360.09547 | O66: 12292.57634 | P66: 14375.85405 | Q66: 10847.41834
A67: Despesas Primárias de Capital (XXVII) = (XXIII-h-XXVI) | C67: =C58-C63-C66 -> 0 | D67: 2644.621386 | E67: 8847.492112 | F67: 10889.54898 | G67: =G58-G63-G66 -> 9012.722893 | H67: =H58-H63-H66 -> 7964.624212 | I67: 9297.867634 | J67: 9280.418599 | K67: 9274.018133 | L67: 7966.886985 | M67: 8504.555566 | N67: =N58-N63-N66 -> 9016.875096 | O67: 9555.245345 | P67: =P58-P63-P66 -> 10267.13569 | Q67: =Q58-Q63-Q66 -> 10610.35174
A68: DESPESA PRIMÁRIA ORÇAMENTÁRIA (XXVIII) = (XXII+XXVII) | C68: =C57+C67 -> 0 | D68: 86247.42137 | E68: 101822.9269 | F68: 114541.1738 | G68: =G57+G67 -> 120820.1029 | H68: =H57+H67 -> 126937.8458 | I68: 134804.187 | J68: 141030.0333 | K68: 147004.8834 | L68: 152928.6466 | M68: 160221.1837 | N68: =N57+N67 -> 165762.9402 | O68: 173108.8892 | P68: =P57+P67 -> 180805.0662 | Q68: =Q57+Q67 -> 188833.5537
A69: Receitas Correntes Intraorçamentárias (exceto fonte RPPS) (XXIX) | D69: 5253.024717 | E69: 3196.896068 | F69: 3639.021668 | G69: 3914.239249 | H69: 3902.406173 | I69: 4033.476363 | J69: 4162.348247 | K69: 4281.641361 | L69: 4460.155789 | M69: 4587.507301 | N69: 4718.329118 | O69: 4852.719797 | P69: 4990.780711 | Q69: 5132.616124
A70: RECEITA CORRENTE LÍQUIDA (XXX) = (II-a-d-g-XXIX) | C70: =C8-C16-C29-C54-C69 -> 0 | D70: 68881.64308 | E70: 82442.89452 | F70: 91428.23918 | G70: 92113.46796 | H70: =H8-H16-H29-H54-H69 -> 98797.68006 | I70: 104460.4087 | J70: 109836.4888 | K70: 115605.9233 | L70: 121725.2332 | M70: 128173.0291 | N70: 134997.3052 | O70: 142198.6849 | P70: 149852.2008 | Q70: =Q8-Q16-Q29-Q54-Q69 -> 158050.0949
A71: RESTOS A PAGAR
A72: Inscrições de Restos a Pagar (XXXI) = (i+l) | C72: =SUM(C73,C76) -> 39931.17772 | D72: 20516.17393 | E72: 22786.16054 | F72: 10287.2523 | G72: =SUM(G73,G76) -> 10888.83695 | H72: 10147.52902 | I72: 13981.48509 | J72: 15779.04579 | K72: 16815.15154 | L72: 17637.95747 | M72: 18804.94858 | N72: 18157.32853 | O72: =SUM(O73,O76) -> 18909.97827 | P72: 19564.40786 | Q72: =SUM(Q73,Q76) -> 19160.27384
A73: Inscrição de RAP Processados (i) | C73: =SUM(C74:C75) -> 31851.74957 | D73: 16237.19976 | E73: 15774.94903 | F73: 4837.230089 | G73: =SUM(G74:G75) -> 5290.93665 | H73: 6283.58205 | I73: 7720.013758 | J73: 8455.918721 | K73: 8899.33564 | L73: 9338.330207 | M73: 9848.104943 | N73: 9739.41325 | O73: =SUM(O74:O75) -> 10031.56634 | P73: 10354.99353 | Q73: =SUM(Q74:Q75) -> 10431.79175
A74: Inscrição de RAP Processados Primários (j) | C74: 19323.50732 | D74: 5714.817966 | E74: 3958.133103 | F74: 3388.742164 | G74: 4284.295956 | H74: 6189.009618 | I74: 7602.471998 | J74: 8314.282056 | K74: 8735.444855 | L74: 9150.420951 | M74: 9643.979459 | N74: 9519.684771 | O74: 9794.789066 | P74: 10099.44264 | Q74: 10173.96428
A75: Inscrição de RAP Processados Não Primários (k) | C75: 12528.24225 | D75: 10522.38179 | E75: 11816.81593 | F75: 1448.487924 | G75: 1006.640694 | H75: 94.57243201 | I75: 117.5417593 | J75: 141.6366655 | K75: 163.8907848 | L75: 187.9092559 | M75: 204.1254839 | N75: 219.7284793 | O75: 236.7772789 | P75: 255.5508889 | Q75: 257.8274663
A76: Inscrição de RAP Não Processados (l) | C76: =SUM(C77:C78) -> 8079.428146 | D76: 4278.974179 | E76: 7011.211511 | F76: 5450.022212 | G76: =SUM(G77:G78) -> 5597.900301 | H76: 3863.946966 | I76: 6261.471334 | J76: 7323.127064 | K76: 7915.815903 | L76: 8299.62726 | M76: 8956.843641 | N76: 8417.915277 | O76: =SUM(O77:O78) -> 8878.411921 | P76: 9209.414331 | Q76: =SUM(Q77:Q78) -> 8728.482092
A77: Inscrição de RAP Não Processados Primários (m) | C77: 6965.076818 | D77: 1929.798528 | E77: 7011.090992 | F77: 5201.36363 | G77: 5595.881501 | H77: 3781.402735 | I77: 6120.977368 | J77: 7137.465939 | K77: 7691.63222 | L77: 8027.979738 | M77: 8652.796587 | N77: 8114.6781 | O77: 8551.881842 | P77: 8857.926062 | Q77: 8397.285967
A78: Inscrição de RAP Não Processados Não Primários (n) | C78: 1114.351329 | D78: 2349.175651 | E78: 0.12051867 | F78: 248.6585823 | G78: 2.0188 | H78: 82.54423107 | I78: 140.4939661 | J78: 185.6611253 | K78: 224.1836834 | L78: 271.6475225 | M78: 304.0470536 | N78: 303.2371771 | O78: 326.5300787 | P78: 351.4882694 | Q78: 331.1961251
A79: Cancelamentos de Restos a Pagar (XXXII) = (o+p) | C79: =SUM(C80:C81) -> 0 | D79: 1556.299231 | E79: 2308.701105 | F79: 36728.55805 | G79: =SUM(G80:G81) -> 4342.776329 | H79: 1449.195627 | I79: 1350.534932 | J79: 1860.796258 | K79: 2100.033663 | L79: 2237.929009 | M79: 2347.436273 | N79: 2502.751155 | O79: =SUM(O80:O81) -> 2416.559383 | P79: 2516.729558 | Q79: =SUM(Q80:Q81) -> 2603.827612
A80: Cancelamento de RAP Processados (o) | D80: 880.3017304 | E80: 981.4695768 | F80: 34526.69144 | G80: 615.5027937 | H80: 704.1709128 | I80: 836.282118 | J80: 1027.456856 | K80: 1125.398469 | L80: 1184.41284 | M80: 1242.838639 | N80: 1310.684574 | O80: 1296.218793 | P80: 1335.101457 | Q80: 1378.14639
A81: Cancelamento de RAP Não Processados (p) | D81: 675.9975004 | E81: 1327.231528 | F81: 2201.866605 | G81: 3727.273535 | H81: 745.0247141 | I81: 514.2528143 | J81: 833.3394022 | K81: 974.6351943 | L81: 1053.516169 | M81: 1104.597634 | N81: 1192.066581 | O81: 1120.340589 | P81: 1181.628101 | Q81: 1225.681222
A82: Liquidação de Restos a Pagar Não Processados (XXXIII) | D82: 3409.742817 | E82: 3230.49698 | F82: 3323.307087 | G82: 3612.179531 | H82: 5662.942752 | I82: 5166.267401 | J82: 6082.138361 | K82: 6656.987446 | L82: 7094.891414 | M82: 7455.084472 | N82: 7947.057352 | O82: 7639.188473 | P82: 8213.27428 | Q82: 7835.905619
A83: Pagamento de Restos a Pagar Primário (XXXIV) | D83: 10806.69997 | E83: 7634.511882 | F83: 8063.830389 | G83: 7260.448686 | H83: 12701.44426 | I83: 12952.02335 | J83: 13560.41614 | K83: 14171.81524 | L83: 14839.53448 | M83: 15572.20301 | N83: 16367.84322 | O83: 16235.33932 | P83: 17128.42621 | Q83: 16319.68443
A84: Pagamento de Restos a Pagar Não Primário (XXXV) | D84: 986.1427445 | E84: 1071.848037 | F84: 1506.145177 | G84: 1846.642773 | H84: 199.5599152 | I84: 110.3652751 | J84: 153.7729877 | K84: 191.2223004 | L84: 225.7998118 | M84: 270.9772795 | N84: 297.8783726 | O84: 297.7209052 | P84: 325.5362187 | Q84: 319.5147723
A85: ESTOQUE DE RESTOS A PAGAR (XXXVI) = (XXXVII+XXXVIII) | C85: =SUM(C86:C87) -> 39931.17772 | D85: 47098.20971 | E85: 58869.30923 | F85: =SUM(F86:F87) -> 22858.02791 | G85: =SUM(G86:G87) -> 20296.99708 | H85: 16094.3263 | I85: 15662.88783 | J85: 15866.94823 | K85: 16219.02857 | L85: 16553.72274 | M85: 17168.05475 | N85: 16156.91053 | O85: =SUM(O86:O87) -> 16117.26919 | P85: 15710.98507 | Q85: =SUM(Q86:Q87) -> 15628.23209
A86: Estoque de RAP Processados (XXXVII) = XXXVII(t-1) + (i-o+XXXIII-XXXIV-XXXV) | C86: =B86+C73-C80+C82-C83-C84 -> 31851.74957 | D86: =C86+D73-D80+D82-D83-D84 -> 38825.5477 | E86: =D86+E73-E80+E82-E83-E84 -> 48143.16422 | F86: =E86+F73-F80+F82-F83-F84 -> 12207.03438 | G86: =F86+G73-G80+G82-G83-G84 -> 11387.55631 | H86: =G86+H73-H80+H82-H83-H84 -> 9728.906029 | I86: =H86+I73-I80+I82-I83-I84 -> 8716.516445 | J86: =I86+J73-J80+J82-J83-J84 -> 8512.927545 | K86: =J86+K73-K80+K82-K83-K84 -> 8580.814623 | L86: =K86+L73-L80+L82-L83-L84 -> 8764.289109 | M86: =L86+M73-M80+M82-M83-M84 -> 8981.459592 | N86: =M86+N73-N80+N82-N83-N84 -> 8691.524028 | O86: 8532.999826 | P86: 8312.203752 | Q86: 8562.555524
A87: Estoque de RAP Não Processados (XXXVIII) = XXXVIII(t-1) + (l-p-XXXIII) | C87: =B87+C76-C81-C82 -> 8079.428146 | D87: =C87+D76-D81-D82 -> 8272.662008 | E87: =D87+E76-E81-E82 -> 10726.14501 | F87: =E87+F76-F81-F82 -> 10650.99353 | G87: =F87+G76-G81-G82 -> 8909.440766 | H87: =G87+H76-H81-H82 -> 6365.420266 | I87: =H87+I76-I81-I82 -> 6946.371385 | J87: =I87+J76-J81-J82 -> 7354.020686 | K87: =J87+K76-K81-K82 -> 7638.213949 | L87: =K87+L76-L81-L82 -> 7789.433626 | M87: =L87+M76-M81-M82 -> 8186.595161 | N87: =M87+N76-N81-N82 -> 7465.386506 | O87: 7584.269364 | P87: 7398.781314 | Q87: 7065.676565
A88: ESTOQUE DE RESTOS A PAGAR / RECEITA CORRENTE LÍQUIDA (XXXVI/XXX) | C88: =IFERROR(C85/C$70,0) -> 0 | D88: 0.6837556076 | E88: 0.7140616492 | F88: =IFERROR(F85/F$70,0) -> 0.2500105888 | G88: =IFERROR(G85/G$70,0) -> 0.2203477681 | H88: 0.1629018646 | I88: 0.1499409013 | J88: 0.1444597183 | K88: 0.1402958267 | L88: 0.1359925325 | M88: 0.1339443632 | N88: 0.1196832079 | O88: =IFERROR(O85/O$70,0) -> 0.1133433069 | P88: 0.1048432054 | Q88: =IFERROR(Q85/Q$70,0) -> 0.09888151032
A89: RAP Processados / RCL (XXXVII/XXX) | C89: =IFERROR(C86/C$70,0) -> 0 | D89: 0.5636559462 | E89: 0.583957714 | F89: =IFERROR(F86/F$70,0) -> 0.1335149238 | G89: =IFERROR(G86/G$70,0) -> 0.123625313 | H89: 0.09847302106 | I89: 0.08344325426 | J89: 0.0775054596 | K89: 0.07422469697 | L89: 0.0720005941 | M89: 0.0700729292 | N89: 0.06438294467 | O89: =IFERROR(O86/O$70,0) -> 0.06000758608 | P89: 0.05546934719 | Q89: =IFERROR(Q86/Q$70,0) -> 0.05417621248
A90: RAP Não Processados / RCL (XXXVIII/XXX) | C90: 0 | D90: 0.1200996614 | E90: 0.1301039353 | F90: =IFERROR(F87/F$70,0) -> 0.1164956651 | G90: =IFERROR(G87/G$70,0) -> 0.09672245507 | H90: 0.0644288435 | I90: 0.066497647 | J90: 0.0669542587 | K90: 0.06607112969 | L90: 0.0639919384 | M90: 0.06387143396 | N90: 0.0553002632 | O90: =IFERROR(O87/O$70,0) -> 0.05333572084 | P90: 0.04937385821 | Q90: =IFERROR(Q87/Q$70,0) -> 0.04470529783
A91: DESPESA PRIMÁRIA (XXXIX) = (XXVIII-j-m+XXXIV) | C91: =C68-C74-C77+C83 -> -26288.58414 | D91: 89409.50484 | E91: 98488.21472 | F91: =F68-F74-F77+F83 -> 114014.8984 | G91: =G68-G74-G77+G83 -> 118200.3742 | H91: 129668.8777 | I91: 134032.761 | J91: 139138.7014 | K91: 144749.6216 | L91: 150589.7804 | M91: 157496.6106 | N91: 164496.4206 | O91: =O68-O74-O77+O83 -> 170997.5576 | P91: 178976.1237 | Q91: =Q68-Q74-Q77+Q83 -> 186581.9879
A92: Demais Despesas Primárias (XL) 2)
A93: DESPESA PRIMÁRIA TOTAL (XLI) = (XXXIX+XL) | C93: =C91+C92 -> -26288.58414 | D93: 89409.50484 | E93: 98488.21472 | F93: =F91+F92 -> 114014.8984 | G93: =G91+G92 -> 118200.3742 | H93: =H91+H92 -> 129668.8777 | I93: 134032.761 | J93: 139138.7014 | K93: 144749.6216 | L93: 150589.7804 | M93: 157496.6106 | N93: 164496.4206 | O93: =O91+O92 -> 170997.5576 | P93: 178976.1237 | Q93: =Q91+Q92 -> 186581.9879
A94: RESULTADO PRIMÁRIO
A95: RESULTADO PRIMÁRIO (XLII) = (XVI-XLI) | C95: =C44-C93 -> 26288.58414 | D95: 3860.318651 | E95: 12183.65156 | F95: 4779.435653 | G95: 3154.414027 | H95: -110.7760329 | I95: 2470.325288 | J95: 4501.132073 | K95: 6465.306135 | L95: 8611.733623 | M95: 10472.56947 | N95: 12748.13767 | O95: 16047.28789 | P95: 18363.37554 | Q95: =Q44-Q93 -> 21778.3006
A96: Juros e Encargos da Dívida (XX) | C96: =C52 -> 0 | D96: 6818.984468 | E96: 7056.858436 | F96: 2759.545125 | G96: 1595.908652 | H96: 1907.279343 | I96: 2791.337708 | J96: 3246.69682 | K96: 3685.945364 | L96: 4102.22383 | M96: 4476.704254 | N96: 4812.948478 | O96: 5108.981411 | P96: 5358.322877 | Q96: =Q52 -> 10471.40023
A97: Amortização da Dívida (XXVI) | C97: =C66 -> 0 | D97: 3645.913644 | E97: 3352.321119 | F97: 2669.94732 | G97: 2091.022155 | H97: 865.2902275 | I97: 2441.074327 | J97: 3924.26789 | K97: 5500.163789 | L97: 7165.361121 | M97: 8543.709857 | N97: 10360.09547 | O97: =O66 -> 12292.57634 | P97: 14375.85405 | Q97: =Q66 -> 10847.41834
A98: Inversões Financeiras Não Primárias (h) 1) | C98: =C63 -> 0 | D98: 2.80189947 | E98: 2.50910734 | F98: 4.98318654 | G98: 9.67935434 | H98: 28.949 | I98: 29.963965 | J98: 31.009754 | K98: 31.94004662 | L98: 32.89824802 | M98: 33.88519546 | N98: 34.90175132 | O98: 35.94880386 | P98: 37.02726798 | Q98: =Q63 -> 38.13808602
A99: Receita de Aplicações Financeiras (b) | C99: =C19 -> 0 | D99: 223.0822715 | E99: 783.5919478 | F99: 3234.378191 | G99: 3365.391155 | H99: 2817.084538 | I99: 2549.669871 | J99: 2430.556719 | K99: 2456.978501 | L99: 2353.82658 | M99: 2241.011632 | N99: 2128.736267 | O99: 2016.080158 | P99: 2015.098463 | Q99: =Q19 -> 1995.135482
A100: Outras Receitas Financeiras (c) | C100: =C28 -> 0 | D100: 4.64668065 | E100: 22.89075357 | F100: 66.51142598 | G100: 5.69746926 | H100: 5.75405 | I100: 5.9266115 | J100: 6.104349845 | K100: 6.28742034 | L100: 6.475982951 | M100: 6.670202439 | N100: 6.870248512 | O100: 7.076295968 | P100: 7.288524847 | Q100: =Q28 -> 7.507120592
A101: Outras Receitas de Capital Não Primárias (f) | C101: =C41 -> 0 | D101: 0 | E101: 0 | F101: 0 | G101: 0 | H101: 0 | I101: 0 | J101: 0 | K101: 0 | L101: 0 | M101: 0 | N101: 0 | O101: 0 | P101: 0 | Q101: =Q41 -> 0
A102: Amortização de Empréstimos (XI) | C102: =C35 -> 0 | D102: 75.91205969 | E102: 146.4523496 | F102: 260.5229867 | G102: 88.07963921 | H102: 86.7809911 | I102: 88.55203013 | J102: 90.41781687 | K102: 92.37911292 | L102: 94.43680677 | M102: 96.59191242 | N102: 98.84556817 | O102: 101.1990357 | P102: 103.6536992 | Q102: =Q35 -> 106.2110649
A103: Despesa Financeira Líquida (XLIII) = (XX+XXVI+h-k-n+XXXV-b-c-f-XI) | C103: =C96+C97+C98-C75-C78+C84-C99-C100-C101-C102 -> -13642.59358 | D103: -1721.355697 | E103: -1286.334797 | F103: 1682.061697 | G103: 1075.425177 | H103: -85.6577572 | I103: 2470.557038 | J103: 4501.370776 | K103: 6465.551998 | L103: 8611.986862 | M103: 10472.8303 | N103: 12748.40633 | O103: 15047.56461 | P103: 17363.66056 | Q103: =Q96+Q97+Q98-Q75-Q78+Q84-Q99-Q100-Q101-Q102 -> 18978.59417
A104: NECESSIDADE DE FINANCIAMENTO (XLIV) = (XLIII-XLII) | C104: =C103-C95 -> -39931.17772 | D104: -5581.674349 | E104: -13469.98636 | F104: -3097.373956 | G104: -2078.988851 | H104: 25.11827567 | I104: 0.2317500011 | J104: 0.2387024993 | K104: 0.2458635742 | L104: 0.253239483 | M104: 0.2608366666 | N104: 0.2686617675 | O104: -999.7232784 | P104: -999.7149767 | Q104: =Q103-Q95 -> -2799.706426
A105: Operações de Crédito (X) | C105: =C34 -> 0 | D105: =D34 -> 4.71734338 | E105: 0.9147786 | F105: 9.2963838 | G105: 10.74310629 | H105: 24.89327567 | I105: 0 | J105: 0 | K105: 0 | L105: 0 | M105: 0 | N105: 0 | O105: 0 | P105: 0 | Q105: =Q34 -> 0
A106: Alienação de Bens Não Primária (e) | C106: =C37 -> 0 | D106: 26.8055527 | E106: 32.01642849 | F106: 0.86622773 | G106: 0.225 | H106: 0.225 | I106: 0.23175 | J106: 0.2387025 | K106: 0.245863575 | L106: 0.2532394823 | M106: 0.2608366667 | N106: 0.2686617667 | O106: 0.2767216197 | P106: 0.2850232683 | Q106: =Q37 -> 0.2935739664
A107: Fontes de Financiamento (XLV) = (X+e) | C107: =C105+C106 -> 0 | D107: 31.52289608 | E107: 32.93120709 | F107: =F105+F106 -> 10.16261153 | G107: =G105+G106 -> 10.96810629 | H107: 25.11827567 | I107: 0.23175 | J107: 0.2387025 | K107: 0.245863575 | L107: 0.2532394823 | M107: 0.2608366667 | N107: 0.2686617667 | O107: =O105+O106 -> 0.2767216197 | P107: 0.2850232683 | Q107: =Q105+Q106 -> 0.2935739664
A108: Outros Fluxos de Caixa (XLVI)
A109: FLUXO DE CAIXA (XLVII) = (XLV-XLIV+XLVI) | C109: =C107-C104+C108 -> 39931.17772 | D109: 5613.197245 | E109: 13502.91757 | F109: =F107-F104+F108 -> 3107.536568 | G109: =G107-G104+G108 -> 2089.956957 | H109: =H107-H104+H108 -> 3.083471256e-10 | I109: -1.071759459e-09 | J109: 6.595661517e-10 | K109: 8.368048476e-10 | L109: -7.550179371e-10 | M109: 7.114475675e-11 | N109: -8.018003483e-10 | O109: =O107-O104+O108 -> 1000 | P109: 1000 | Q109: =Q107-Q104+Q108 -> 2800
A110: 1) Corresponde ao somatório de Concessão de Empréstimos e Financiamentos, Aquisição de Título de Capital já Integralizado e Aquisição de Título de Crédito.
A111: 2) As Demais Despesas Primárias são despesas que compõem o resultado primário por caixa, mas não transitam pelo orçamento.

Sheet II-a) Medidas a implementar
A1: PLANO DE RECUPERAÇÃO FISCAL
A2: Anexo II-a) - Medidas de Ajuste Fiscal a implementar no Regime
D4: Impacto Esperado
A5: Referência | B5: Descrição | C5: Fluxo Afetado | D5: 2023 | E5: 2024 | F5: 2025 | G5: 2026 | H5: 2027 | I5: 2028 | J5: 2029 | K5: 2030 | L5: 2031 | M5: 2032 | N5: 2033
A6: 1 | B6: Alienação da Folha de Pagamentos | C6: Outras Receitas Patrimoniais | G6: 2490 | L6: 2890
A7: 2 | B7: CODEMIG | C7: Alienação de Bens Não Primária (e) | H7: 59000
A8: 3 | B8: Auditoria da Folha de Benefícios de Pensão | C8: Inativos e Pensionistas | E8: -1.74943577 | F8: -3.51531624 | G8: -5.29779598 | H8: -7.09703103 | I8: -8.91317889 | J8: -10.74639854 | K8: -12.59685046 | L8: -14.46469662 | M8: -16.35010054 | N8: -18.25322726
A9: 4 | B9: PROFISCO | C9: Operações de Crédito (X) | G9: 1128.9063
A10: 5 | B10: PROGESTÃO | C10: Operações de Crédito (X) | G10: 181.72638 | H10: 115.87863 | I10: 111.03606 | J10: 83.277045 | K10: 61.069833
A11: 6 | B11: Ações de incremento da Receita Tributária | C11: ICMS | E11: 204.644 | F11: 1038.736 | G11: 1098.708 | H11: 2303.251088 | I11: 2400.203772 | J11: 2804.640894 | K11: 3211.617235 | L11: 3621.223766 | M11: 4045.646779 | N11: 4519.813996
A12: 7 | B12: Ações de incremento da Receita Tributária | C12: ITCD | F12: 155 | G12: 161.2 | H12: 167.648 | I12: 174.35392 | J12: 181.3280768 | K12: 188.5811999 | L12: 196.1244479 | M12: 203.9694258 | N12: 212.1282028

Sheet II-b) Vinculos
A1: PLANO DE RECUPERAÇÃO FISCAL
A2: Anexo II-b) Vinculações para Reflexos das Medidas de Ajuste Fiscal a implementar
A3: * quando concluir o preenchimento das abas "II - Medidas a implementar" e "II-a) Vinculações", executar a macro para gerar os Reflexos:
A5: Sequencial | B5: Medida (nº Referência) ou Fluxo afetado pela medida | C5: Reflexo | D5: Fluxo afetado - reflexo | E5: Proporção | F5: Base legal

Sheet II-c) Reflexos
A1: PLANO DE RECUPERAÇÃO FISCAL
A2: Anexo II-c) - Reflexos das Medidas de Ajuste Fiscal a implementar
F4: Impacto Esperado
A5: Referência - original | B5: Fluxo afetado pela medida | C5: Reflexo | D5: Fluxo afetado - reflexo | E5: Proporção | F5: 2023 | G5: 2024 | H5: 2025 | I5: 2026 | J5: 2027 | K5: 2028 | L5: 2029 | M5: 2030 | N5: 2031 | O5: 2032 | P5: 2033
A6: 2 | B6: Alienação de Bens Não Primária (e) | C6: Queda das receitas de dividendos (Reflexo CODEMIG) | D6: Outras Receitas Patrimoniais | J6: -2020.73085 | K6: -2126.317889 | L6: -2220.512927 | M6: -2325.234678 | N6: -2423.09108 | O6: -2578.334734 | P6: -2733.862785
A7: 2 | B7: Alienação de Bens Não Primária (e) | C7: Despesas com juros (Reflexo CODEMIG) | D7: Juros e Encargos da Dívida (XX) | J7: -43.37577884 | K7: -155.1456147 | L7: -257.8414752 | M7: -347.7109422 | N7: -421.5893322 | O7: -476.0055641 | P7: -3215.92233
A8: 2 | B8: Alienação de Bens Não Primária (e) | C8: Despesas com amortizações (Reflexo CODEMIG) | D8: Amortização da Dívida (XXVI) | J8: 57540.7274 | K8: -2113.4874 | L8: -2836.46093 | M8: -3633.171756 | N8: -4507.648729 | O8: -5463.376359 | P8: -3753.680565
A9: 5 | B9: Operações de Crédito (X) | C9: Despesa com contrapartida (Reflexo PROGESTÃO) | D9: Demais Investimentos | I9: 18.172638 | J9: 11.587863 | K9: 11.103606 | L9: 8.3277045 | M9: 6.1069833
A10: 5 | B10: Operações de Crédito (X) | C10: Despesas com juros (Reflexo PROGESTÃO) | D10: Juros e Encargos da Dívida (XX) | I10: 7.361328174 | J10: 19.90947012 | K10: 27.35809685 | L10: 32.33516728 | M10: 34.39773071 | N10: 32.2140327 | O10: 30.1111016 | P10: 27.84663668
A11: 5 | B11: Operações de Crédito (X) | C11: Despesas com amortizações (Reflexo PROGESTÃO) | D11: Amortização da Dívida (XXVI) | L11: 29.06533705 | M11: 32.88220364 | N11: 32.88220364 | O11: 32.88220364 | P11: 32.88220364
A12: 5 | B12: Operações de Crédito (X) | C12: Despesas com aplicação de recursos das operações de crédito (Reflexo PROGESTÃO) | D12: Demais Investimentos | I12: 181.72638 | J12: 115.87863 | K12: 111.03606 | L12: 83.277045 | M12: 61.069833
A13: 4 | B13: Operações de Crédito (X) | C13: Despesas com juros (Reflexo PROFISCO) | D13: Juros e Encargos da Dívida (XX) | I13: 39.7723644 | J13: 75.12067672 | K13: 75.32648679 | L13: 74.23373331 | M13: 70.65655822 | N13: 67.07938314 | O13: 63.67371646 | P13: 59.92503298
A14: 4 | B14: Operações de Crédito (X) | C14: Despesas com amortizações (Reflexo PROFISCO) | D14: Amortização da Dívida (XXVI) | L14: 54.19620097 | M14: 54.19620097 | N14: 54.19620097 | O14: 54.19620097 | P14: 54.19620097
A15: 4 | B15: Operações de Crédito (X) | C15: Despesas com aplicação de recursos das operações de crédito (Reflexo PROFISCO) | D15: Demais Investimentos | I15: 564.45315 | J15: 564.45315
A16: 6 | B16: ICMS | C16: Deduções do Fundeb (Reflexo ICMS) | D16: Deduções para formação do Fundeb (IIa) | G16: 30.6966 | H16: 155.8104 | I16: 164.8062 | J16: 345.4876632 | K16: 360.0305658 | L16: 420.6961341 | M16: 481.7425853 | N16: 543.1835649 | O16: 606.8470169 | P16: 677.9720995
A17: 6 | B17: ICMS | C17: Receitas Retorno Fundeb (Reflexo ICMS) | D17: Transferências do FUNDEB | G17: 18.8136198 | H17: 95.49453773 | I17: 101.0079679 | J17: 211.7457159 | K17: 220.6589063 | L17: 257.8401882 | M17: 295.2549091 | N17: 332.9114323 | O17: 371.9300852 | P17: 415.5218922
A18: 6 | B18: ICMS | C18: Despesas com Transferências aos Municípios (Reflexo ICMS) | D18: Transferências Constitucionais e Legais (g) | G18: 51.161 | H18: 259.684 | I18: 274.677 | J18: 575.812772 | K18: 600.050943 | L18: 701.1602235 | M18: 802.9043088 | N18: 905.3059415 | O18: 1011.411695 | P18: 1129.953499
A19: 6 | B19: ICMS | C19: Despesas Vinculadas obrigatórias - Fomento e Amparo à Pesquisa (Reflexo ICMS) | D19: Demais Despesas Correntes | G19: 0.8595048 | H19: 6.232416 | I19: 6.592248 | J19: 13.81950653 | K19: 14.40122263 | L19: 16.82784537 | M19: 19.26970341 | N19: 21.7273426 | O19: 24.27388068 | P19: 27.11888398
A20: 6 | B20: ICMS | C20: Despesas Vinculadas obrigatórias - Emendas Impositivas Estaduais - Parte que não é ASPS (Reflexo ICMS) | D20: Demais Investimentos | G20: 1.639515829 | H20: 8.321886371 | I20: 8.802355103 | J20: 18.4526134 | K20: 19.22935477 | L20: 22.46952337 | M20: 25.73003506 | N20: 29.01161864 | O20: 32.41190523 | P20: 36.21072004
A21: 6 | B21: ICMS | C21: Despesas Vinculadas obrigatórias - Despesa Adicional com o PASEP (Reflexo ICMS) | D21: Demais Despesas Correntes | G21: 1.227864 | H21: 6.232416 | I21: 6.592248 | J21: 13.81950653 | K21: 14.40122263 | L21: 16.82784537 | M21: 19.26970341 | N21: 21.7273426 | O21: 24.27388068 | P21: 27.11888398
A22: 6 | B22: ICMS | C22: Despesas Vinculadas obrigatórias - ASPS e MDE (Reflexo ICMS) | D22: Demais Despesas Correntes | G22: 44.9057298 | H22: 227.9333777 | I22: 241.0932379 | J22: 505.4102296 | K22: 526.6848872 | L22: 615.4319022 | M22: 704.7361066 | N22: 794.6174625 | O22: 887.7500496 | P22: 991.7981767
A23: 7 | B23: ITCD | C23: Deduções do Fundeb (Reflexo ITCD) | D23: Deduções para formação do Fundeb (IIa) | H23: 31 | I23: 32.24 | J23: 33.5296 | K23: 34.870784 | L23: 36.26561536 | M23: 37.71623997 | N23: 39.22488957 | O23: 40.79388516 | P23: 42.42564056
A24: 7 | B24: ITCD | C24: Receitas Retorno Fundeb (Reflexo ITCD) | D24: Transferências do FUNDEB | H24: 14.24967783 | I24: 14.81966494 | J24: 15.41245154 | K24: 16.0289496 | L24: 16.67010758 | M24: 17.33691189 | N24: 18.03038836 | O24: 18.7516039 | P24: 19.50166805
A25: 7 | B25: ITCD | C25: Despesas Vinculadas obrigatórias - Fomento e Amparo à Pesquisa (Reflexo ITCD) | D25: Demais Despesas Correntes | H25: 1.24 | I25: 1.2896 | J25: 1.341184 | K25: 1.39483136 | L25: 1.450624614 | M25: 1.508649599 | N25: 1.568995583 | O25: 1.631755406 | P25: 1.697025623
A26: 7 | B26: ITCD | C26: Despesas Vinculadas obrigatórias - Emendas Impositivas Estaduais - Parte que não é ASPS (Reflexo ITCD) | D26: Demais Investimentos | H26: 1.600723895 | I26: 1.664752851 | J26: 1.731342965 | K26: 1.800596683 | L26: 1.87262055 | M26: 1.947525372 | N26: 2.025426387 | O26: 2.106443443 | P26: 2.190701181
A27: 7 | B27: ITCD | C27: Despesas Vinculadas obrigatórias - Despesa Adicional com o PASEP (Reflexo ITCD) | D27: Demais Despesas Correntes | H27: 1.24 | I27: 1.2896 | J27: 1.341184 | K27: 1.39483136 | L27: 1.450624614 | M27: 1.508649599 | N27: 1.568995583 | O27: 1.631755406 | P27: 1.697025623
A28: 7 | B28: ITCD | C28: Despesas Vinculadas obrigatórias - ASPS e MDE (Reflexo ITCD) | D28: Demais Despesas Correntes | H28: 40.59967783 | I28: 42.22366494 | J28: 43.91261154 | K28: 45.669116 | L28: 47.49588064 | M28: 49.39571587 | N28: 51.3715445 | O28: 53.42640628 | P28: 55.56346253

Sheet III-Cenário Ajustado
A1: PLANO DE RECUPERAÇÃO FISCAL
A2: Anexo III - Demonstrativo de Resultados Fiscais
A3: Cenário com medidas de ajuste - Dados anuais em R$ milhões | E3: 2 | F3: 3 | G3: 4 | H3: 5 | I3: 6 | J3: 7 | K3: 8
A4: Receitas arrecadadas, brutas do repasse para o Fundeb Despesas empenhadas e transferências a Municípios
B5: 2023 | C5: 2024 | D5: 2025 | E5: 2026 | F5: 2027 | G5: 2028 | H5: 2029 | I5: 2030 | J5: 2031 | K5: 2032 | L5: 2033
A6: ACIMA DA LINHA - RECEITAS E DESPESAS
A7: Receita Total (I) = (II+IX) | B7: =B8+B33 -> 124824.9246 | C7: 132685.6006 | D7: 140264.1364 | E7: 151146.4732 | F7: 213185.0064 | G7: 162057.569 | H7: 170979.9963 | I7: 180408.4456 | J7: 193222.2682 | K7: 200880.1472 | L7: =L8+L33 -> 212182.141
A8: Receitas Correntes (II) = (III+IV+V+VI+VII-IIa) | B8: =B9+B15+B18+B21+B27-B31 -> 121471.3712 | C8: 129837.9815 | D8: 138282.3689 | E8: 147819.6167 | F8: 152429.9424 | G8: 160683.2577 | H8: 169595.6926 | I8: 179007.4011 | J8: 191842.1134 | K8: 199458.5428 | L8: =L9+L15+L18+L21+L27-L31 -> 210717.7791
A9: Receitas Tributárias (III) | B9: =SUM(B10:B14) -> 96820.67352 | C9: =SUM(C10:C14) -> 103879.874 | D9: 110833.7847 | E9: 117291.006 | F9: 125332.4176 | G9: 132681.953 | H9: 140662.9203 | I9: 149109.8902 | J9: 158081.9017 | K9: =SUM(K10:K14) -> 167613.1712 | L9: =SUM(L10:L14) -> 177769.9837
A10: ICMS | B10: ='I-Cenário Base'!G10+SUMIF('II-a) Medidas a implementar'!$C:$C,$A10,'II-a) Medidas a implementar'!D:D)+SUMIF('II-c) Reflexos'!$D:$D,$A10,'II-c) Reflexos'!F:F) -> 72002.91443 | C10: ='I-Cenário Base'!H10+SUMIF('II-a) Medidas a implementar'!$C:$C,$A10,'II-a) Medidas a implementar'!E:E)+SUMIF('II-c) Reflexos'!$D:$D,$A10,'II-c) Reflexos'!G:G) -> 78221.25697 | D10: ='I-Cenário Base'!I10+SUMIF('II-a) Medidas a implementar'!$C:$C,$A10,'II-a) Medidas a implementar'!F:F)+SUMIF('II-c) Reflexos'!$D:$D,$A10,'II-c) Reflexos'!H:H) -> 84549.77246 | E10: ='I-Cenário Base'!J10+SUMIF('II-a) Medidas a implementar'!$C:$C,$A10,'II-a) Medidas a implementar'!G:G)+SUMIF('II-c) Reflexos'!$D:$D,$A10,'II-c) Reflexos'!I:I) -> 89614.36863 | F10: ='I-Cenário Base'!K10+SUMIF('II-a) Medidas a implementar'!$C:$C,$A10,'II-a) Medidas a implementar'!H:H)+SUMIF('II-c) Reflexos'!$D:$D,$A10,'II-c) Reflexos'!J:J) -> 96261.80823 | G10: ='I-Cenário Base'!L10+SUMIF('II-a) Medidas a implementar'!$C:$C,$A10,'II-a) Medidas a implementar'!I:I)+SUMIF('II-c) Reflexos'!$D:$D,$A10,'II-c) Reflexos'!K:K) -> 102000.2062 | H10: ='I-Cenário Base'!M10+SUMIF('II-a) Medidas a implementar'!$C:$C,$A10,'II-a) Medidas a implementar'!J:J)+SUMIF('II-c) Reflexos'!$D:$D,$A10,'II-c) Reflexos'!L:L) -> 108422.0455 | I10: ='I-Cenário Base'!N10+SUMIF('II-a) Medidas a implementar'!$C:$C,$A10,'II-a) Medidas a implementar'!K:K)+SUMIF('II-c) Reflexos'!$D:$D,$A10,'II-c) Reflexos'!M:M) -> 115222.3385 | J10: ='I-Cenário Base'!O10+SUMIF('II-a) Medidas a implementar'!$C:$C,$A10,'II-a) Medidas a implementar'!L:L)+SUMIF('II-c) Reflexos'!$D:$D,$A10,'II-c) Reflexos'!N:N) -> 122454.8734 | K10: ='I-Cenário Base'!P10+SUMIF('II-a) Medidas a implementar'!$C:$C,$A10,'II-a) Medidas a implementar'!M:M)+SUMIF('II-c) Reflexos'!$D:$D,$A10,'II-c) Reflexos'!O:O) -> 130148.289 | L10: ='I-Cenário Base'!Q10+SUMIF('II-a) Medidas a implementar'!$C:$C,$A10,'II-a) Medidas a implementar'!N:N)+SUMIF('II-c) Reflexos'!$D:$D,$A10,'II-c) Reflexos'!P:P) -> 138362.944
A11: IPVA | B11: ='I-Cenário Base'!G11+SUMIF('II-a) Medidas a implementar'!$C:$C,$A11,'II-a) Medidas a implementar'!D:D)+SUMIF('II-c) Reflexos'!$D:$D,$A11,'II-c) Reflexos'!F:F) -> 11120.96637 | C11: ='I-Cenário Base'!H11+SUMIF('II-a) Medidas a implementar'!$C:$C,$A11,'II-a) Medidas a implementar'!E:E)+SUMIF('II-c) Reflexos'!$D:$D,$A11,'II-c) Reflexos'!G:G) -> 11569.60304 | D11: ='I-Cenário Base'!I11+SUMIF('II-a) Medidas a implementar'!$C:$C,$A11,'II-a) Medidas a implementar'!F:F)+SUMIF('II-c) Reflexos'!$D:$D,$A11,'II-c) Reflexos'!H:H) -> 11757.76576 | E11: ='I-Cenário Base'!J11+SUMIF('II-a) Medidas a implementar'!$C:$C,$A11,'II-a) Medidas a implementar'!G:G)+SUMIF('II-c) Reflexos'!$D:$D,$A11,'II-c) Reflexos'!I:I) -> 12518.67752 | F11: ='I-Cenário Base'!K11+SUMIF('II-a) Medidas a implementar'!$C:$C,$A11,'II-a) Medidas a implementar'!H:H)+SUMIF('II-c) Reflexos'!$D:$D,$A11,'II-c) Reflexos'!J:J) -> 13324.5848 | G11: ='I-Cenário Base'!L11+SUMIF('II-a) Medidas a implementar'!$C:$C,$A11,'II-a) Medidas a implementar'!I:I)+SUMIF('II-c) Reflexos'!$D:$D,$A11,'II-c) Reflexos'!K:K) -> 14182.75841 | H11: ='I-Cenário Base'!M11+SUMIF('II-a) Medidas a implementar'!$C:$C,$A11,'II-a) Medidas a implementar'!J:J)+SUMIF('II-c) Reflexos'!$D:$D,$A11,'II-c) Reflexos'!L:L) -> 15096.6011 | I11: ='I-Cenário Base'!N11+SUMIF('II-a) Medidas a implementar'!$C:$C,$A11,'II-a) Medidas a implementar'!K:K)+SUMIF('II-c) Reflexos'!$D:$D,$A11,'II-c) Reflexos'!M:M) -> 16069.73765 | J11: ='I-Cenário Base'!O11+SUMIF('II-a) Medidas a implementar'!$C:$C,$A11,'II-a) Medidas a implementar'!L:L)+SUMIF('II-c) Reflexos'!$D:$D,$A11,'II-c) Reflexos'!N:N) -> 17106.02933 | K11: ='I-Cenário Base'!P11+SUMIF('II-a) Medidas a implementar'!$C:$C,$A11,'II-a) Medidas a implementar'!M:M)+SUMIF('II-c) Reflexos'!$D:$D,$A11,'II-c) Reflexos'!O:O) -> 18209.58938 | L11: ='I-Cenário Base'!Q11+SUMIF('II-a) Medidas a implementar'!$C:$C,$A11,'II-a) Medidas a implementar'!N:N)+SUMIF('II-c) Reflexos'!$D:$D,$A11,'II-c) Reflexos'!P:P) -> 19384.79946
A12: ITCD | B12: ='I-Cenário Base'!G12+SUMIF('II-a) Medidas a implementar'!$C:$C,$A12,'II-a) Medidas a implementar'!D:D)+SUMIF('II-c) Reflexos'!$D:$D,$A12,'II-c) Reflexos'!F:F) -> 1860.762653 | C12: ='I-Cenário Base'!H12+SUMIF('II-a) Medidas a implementar'!$C:$C,$A12,'II-a) Medidas a implementar'!E:E)+SUMIF('II-c) Reflexos'!$D:$D,$A12,'II-c) Reflexos'!G:G) -> 1879.24073 | D12: ='I-Cenário Base'!I12+SUMIF('II-a) Medidas a implementar'!$C:$C,$A12,'II-a) Medidas a implementar'!F:F)+SUMIF('II-c) Reflexos'!$D:$D,$A12,'II-c) Reflexos'!H:H) -> 1867.646094 | E12: ='I-Cenário Base'!J12+SUMIF('II-a) Medidas a implementar'!$C:$C,$A12,'II-a) Medidas a implementar'!G:G)+SUMIF('II-c) Reflexos'!$D:$D,$A12,'II-c) Reflexos'!I:I) -> 1942.351938 | F12: ='I-Cenário Base'!K12+SUMIF('II-a) Medidas a implementar'!$C:$C,$A12,'II-a) Medidas a implementar'!H:H)+SUMIF('II-c) Reflexos'!$D:$D,$A12,'II-c) Reflexos'!J:J) -> 2002.234496 | G12: ='I-Cenário Base'!L12+SUMIF('II-a) Medidas a implementar'!$C:$C,$A12,'II-a) Medidas a implementar'!I:I)+SUMIF('II-c) Reflexos'!$D:$D,$A12,'II-c) Reflexos'!K:K) -> 2063.978011 | H12: ='I-Cenário Base'!M12+SUMIF('II-a) Medidas a implementar'!$C:$C,$A12,'II-a) Medidas a implementar'!J:J)+SUMIF('II-c) Reflexos'!$D:$D,$A12,'II-c) Reflexos'!L:L) -> 2127.64089 | I12: ='I-Cenário Base'!N12+SUMIF('II-a) Medidas a implementar'!$C:$C,$A12,'II-a) Medidas a implementar'!K:K)+SUMIF('II-c) Reflexos'!$D:$D,$A12,'II-c) Reflexos'!M:M) -> 2193.283398 | J12: ='I-Cenário Base'!O12+SUMIF('II-a) Medidas a implementar'!$C:$C,$A12,'II-a) Medidas a implementar'!L:L)+SUMIF('II-c) Reflexos'!$D:$D,$A12,'II-c) Reflexos'!N:N) -> 2260.967712 | K12: ='I-Cenário Base'!P12+SUMIF('II-a) Medidas a implementar'!$C:$C,$A12,'II-a) Medidas a implementar'!M:M)+SUMIF('II-c) Reflexos'!$D:$D,$A12,'II-c) Reflexos'!O:O) -> 2330.757988 | L12: ='I-Cenário Base'!Q12+SUMIF('II-a) Medidas a implementar'!$C:$C,$A12,'II-a) Medidas a implementar'!N:N)+SUMIF('II-c) Reflexos'!$D:$D,$A12,'II-c) Reflexos'!P:P) -> 2402.720421
A13: IRRF | B13: ='I-Cenário Base'!G13+SUMIF('II-a) Medidas a implementar'!$C:$C,$A13,'II-a) Medidas a implementar'!D:D)+SUMIF('II-c) Reflexos'!$D:$D,$A13,'II-c) Reflexos'!F:F) -> 7059.462147 | C13: ='I-Cenário Base'!H13+SUMIF('II-a) Medidas a implementar'!$C:$C,$A13,'II-a) Medidas a implementar'!E:E)+SUMIF('II-c) Reflexos'!$D:$D,$A13,'II-c) Reflexos'!G:G) -> 7612.222892 | D13: ='I-Cenário Base'!I13+SUMIF('II-a) Medidas a implementar'!$C:$C,$A13,'II-a) Medidas a implementar'!F:F)+SUMIF('II-c) Reflexos'!$D:$D,$A13,'II-c) Reflexos'!H:H) -> 7908.974578 | E13: ='I-Cenário Base'!J13+SUMIF('II-a) Medidas a implementar'!$C:$C,$A13,'II-a) Medidas a implementar'!G:G)+SUMIF('II-c) Reflexos'!$D:$D,$A13,'II-c) Reflexos'!I:I) -> 8206.157128 | F13: ='I-Cenário Base'!K13+SUMIF('II-a) Medidas a implementar'!$C:$C,$A13,'II-a) Medidas a implementar'!H:H)+SUMIF('II-c) Reflexos'!$D:$D,$A13,'II-c) Reflexos'!J:J) -> 8515.97863 | G13: ='I-Cenário Base'!L13+SUMIF('II-a) Medidas a implementar'!$C:$C,$A13,'II-a) Medidas a implementar'!I:I)+SUMIF('II-c) Reflexos'!$D:$D,$A13,'II-c) Reflexos'!K:K) -> 8978.451336 | H13: ='I-Cenário Base'!M13+SUMIF('II-a) Medidas a implementar'!$C:$C,$A13,'II-a) Medidas a implementar'!J:J)+SUMIF('II-c) Reflexos'!$D:$D,$A13,'II-c) Reflexos'!L:L) -> 9320.411864 | I13: ='I-Cenário Base'!N13+SUMIF('II-a) Medidas a implementar'!$C:$C,$A13,'II-a) Medidas a implementar'!K:K)+SUMIF('II-c) Reflexos'!$D:$D,$A13,'II-c) Reflexos'!M:M) -> 9677.178036 | J13: ='I-Cenário Base'!O13+SUMIF('II-a) Medidas a implementar'!$C:$C,$A13,'II-a) Medidas a implementar'!L:L)+SUMIF('II-c) Reflexos'!$D:$D,$A13,'II-c) Reflexos'!N:N) -> 10049.49212 | K13: ='I-Cenário Base'!P13+SUMIF('II-a) Medidas a implementar'!$C:$C,$A13,'II-a) Medidas a implementar'!M:M)+SUMIF('II-c) Reflexos'!$D:$D,$A13,'II-c) Reflexos'!O:O) -> 10438.13855 | L13: ='I-Cenário Base'!Q13+SUMIF('II-a) Medidas a implementar'!$C:$C,$A13,'II-a) Medidas a implementar'!N:N)+SUMIF('II-c) Reflexos'!$D:$D,$A13,'II-c) Reflexos'!P:P) -> 10843.94658
A14: Outras Receitas Tributárias | B14: ='I-Cenário Base'!G14+SUMIF('II-a) Medidas a implementar'!$C:$C,$A14,'II-a) Medidas a implementar'!D:D)+SUMIF('II-c) Reflexos'!$D:$D,$A14,'II-c) Reflexos'!F:F) -> 4776.567922 | C14: ='I-Cenário Base'!H14+SUMIF('II-a) Medidas a implementar'!$C:$C,$A14,'II-a) Medidas a implementar'!E:E)+SUMIF('II-c) Reflexos'!$D:$D,$A14,'II-c) Reflexos'!G:G) -> 4597.55036 | D14: ='I-Cenário Base'!I14+SUMIF('II-a) Medidas a implementar'!$C:$C,$A14,'II-a) Medidas a implementar'!F:F)+SUMIF('II-c) Reflexos'!$D:$D,$A14,'II-c) Reflexos'!H:H) -> 4749.625814 | E14: ='I-Cenário Base'!J14+SUMIF('II-a) Medidas a implementar'!$C:$C,$A14,'II-a) Medidas a implementar'!G:G)+SUMIF('II-c) Reflexos'!$D:$D,$A14,'II-c) Reflexos'!I:I) -> 5009.450815 | F14: ='I-Cenário Base'!K14+SUMIF('II-a) Medidas a implementar'!$C:$C,$A14,'II-a) Medidas a implementar'!H:H)+SUMIF('II-c) Reflexos'!$D:$D,$A14,'II-c) Reflexos'!J:J) -> 5227.811473 | G14: ='I-Cenário Base'!L14+SUMIF('II-a) Medidas a implementar'!$C:$C,$A14,'II-a) Medidas a implementar'!I:I)+SUMIF('II-c) Reflexos'!$D:$D,$A14,'II-c) Reflexos'!K:K) -> 5456.559005 | H14: ='I-Cenário Base'!M14+SUMIF('II-a) Medidas a implementar'!$C:$C,$A14,'II-a) Medidas a implementar'!J:J)+SUMIF('II-c) Reflexos'!$D:$D,$A14,'II-c) Reflexos'!L:L) -> 5696.220899 | I14: ='I-Cenário Base'!N14+SUMIF('II-a) Medidas a implementar'!$C:$C,$A14,'II-a) Medidas a implementar'!K:K)+SUMIF('II-c) Reflexos'!$D:$D,$A14,'II-c) Reflexos'!M:M) -> 5947.352608 | J14: ='I-Cenário Base'!O14+SUMIF('II-a) Medidas a implementar'!$C:$C,$A14,'II-a) Medidas a implementar'!L:L)+SUMIF('II-c) Reflexos'!$D:$D,$A14,'II-c) Reflexos'!N:N) -> 6210.539076 | K14: ='I-Cenário Base'!P14+SUMIF('II-a) Medidas a implementar'!$C:$C,$A14,'II-a) Medidas a implementar'!M:M)+SUMIF('II-c) Reflexos'!$D:$D,$A14,'II-c) Reflexos'!O:O) -> 6486.396344 | L14: ='I-Cenário Base'!Q14+SUMIF('II-a) Medidas a implementar'!$C:$C,$A14,'II-a) Medidas a implementar'!N:N)+SUMIF('II-c) Reflexos'!$D:$D,$A14,'II-c) Reflexos'!P:P) -> 6775.573247
A15: Receitas de Contribuições (IV) | B15: =SUM(B16:B17) -> 3431.343947 | C15: =SUM(C16:C17) -> 3068.580284 | D15: 3169.968328 | E15: 3274.825784 | F15: 3383.286127 | G15: 3541.875964 | H15: 3659.702635 | I15: 3781.633184 | J15: 3907.826799 | K15: =SUM(K16:K17) -> 4038.449162 | L15: =SUM(L16:L17) -> 4173.67272
A16: Receitas Previdenciárias (a) | B16: ='I-Cenário Base'!G16+SUMIF('II-a) Medidas a implementar'!$C:$C,$A16,'II-a) Medidas a implementar'!D:D)+SUMIF('II-c) Reflexos'!$D:$D,$A16,'II-c) Reflexos'!F:F) -> 1683.993262 | C16: ='I-Cenário Base'!H16+SUMIF('II-a) Medidas a implementar'!$C:$C,$A16,'II-a) Medidas a implementar'!E:E)+SUMIF('II-c) Reflexos'!$D:$D,$A16,'II-c) Reflexos'!G:G) -> 1662.831337 | D16: ='I-Cenário Base'!I16+SUMIF('II-a) Medidas a implementar'!$C:$C,$A16,'II-a) Medidas a implementar'!F:F)+SUMIF('II-c) Reflexos'!$D:$D,$A16,'II-c) Reflexos'!H:H) -> 1719.590933 | E16: ='I-Cenário Base'!J16+SUMIF('II-a) Medidas a implementar'!$C:$C,$A16,'II-a) Medidas a implementar'!G:G)+SUMIF('II-c) Reflexos'!$D:$D,$A16,'II-c) Reflexos'!I:I) -> 1778.616285 | F16: ='I-Cenário Base'!K16+SUMIF('II-a) Medidas a implementar'!$C:$C,$A16,'II-a) Medidas a implementar'!H:H)+SUMIF('II-c) Reflexos'!$D:$D,$A16,'II-c) Reflexos'!J:J) -> 1840.004758 | G16: ='I-Cenário Base'!L16+SUMIF('II-a) Medidas a implementar'!$C:$C,$A16,'II-a) Medidas a implementar'!I:I)+SUMIF('II-c) Reflexos'!$D:$D,$A16,'II-c) Reflexos'!K:K) -> 1950.245765 | H16: ='I-Cenário Base'!M16+SUMIF('II-a) Medidas a implementar'!$C:$C,$A16,'II-a) Medidas a implementar'!J:J)+SUMIF('II-c) Reflexos'!$D:$D,$A16,'II-c) Reflexos'!L:L) -> 2018.408338 | I16: ='I-Cenário Base'!N16+SUMIF('II-a) Medidas a implementar'!$C:$C,$A16,'II-a) Medidas a implementar'!K:K)+SUMIF('II-c) Reflexos'!$D:$D,$A16,'II-c) Reflexos'!M:M) -> 2089.320063 | J16: ='I-Cenário Base'!O16+SUMIF('II-a) Medidas a implementar'!$C:$C,$A16,'II-a) Medidas a implementar'!L:L)+SUMIF('II-c) Reflexos'!$D:$D,$A16,'II-c) Reflexos'!N:N) -> 2163.099487 | K16: ='I-Cenário Base'!P16+SUMIF('II-a) Medidas a implementar'!$C:$C,$A16,'II-a) Medidas a implementar'!M:M)+SUMIF('II-c) Reflexos'!$D:$D,$A16,'II-c) Reflexos'!O:O) -> 2239.870429 | L16: ='I-Cenário Base'!Q16+SUMIF('II-a) Medidas a implementar'!$C:$C,$A16,'II-a) Medidas a implementar'!N:N)+SUMIF('II-c) Reflexos'!$D:$D,$A16,'II-c) Reflexos'!P:P) -> 2319.762221
A17: Outras Receitas de Contribuições | B17: ='I-Cenário Base'!G17+SUMIF('II-a) Medidas a implementar'!$C:$C,$A17,'II-a) Medidas a implementar'!D:D)+SUMIF('II-c) Reflexos'!$D:$D,$A17,'II-c) Reflexos'!F:F) -> 1747.350685 | C17: ='I-Cenário Base'!H17+SUMIF('II-a) Medidas a implementar'!$C:$C,$A17,'II-a) Medidas a implementar'!E:E)+SUMIF('II-c) Reflexos'!$D:$D,$A17,'II-c) Reflexos'!G:G) -> 1405.748947 | D17: ='I-Cenário Base'!I17+SUMIF('II-a) Medidas a implementar'!$C:$C,$A17,'II-a) Medidas a implementar'!F:F)+SUMIF('II-c) Reflexos'!$D:$D,$A17,'II-c) Reflexos'!H:H) -> 1450.377395 | E17: ='I-Cenário Base'!J17+SUMIF('II-a) Medidas a implementar'!$C:$C,$A17,'II-a) Medidas a implementar'!G:G)+SUMIF('II-c) Reflexos'!$D:$D,$A17,'II-c) Reflexos'!I:I) -> 1496.209499 | F17: ='I-Cenário Base'!K17+SUMIF('II-a) Medidas a implementar'!$C:$C,$A17,'II-a) Medidas a implementar'!H:H)+SUMIF('II-c) Reflexos'!$D:$D,$A17,'II-c) Reflexos'!J:J) -> 1543.281369 | G17: ='I-Cenário Base'!L17+SUMIF('II-a) Medidas a implementar'!$C:$C,$A17,'II-a) Medidas a implementar'!I:I)+SUMIF('II-c) Reflexos'!$D:$D,$A17,'II-c) Reflexos'!K:K) -> 1591.630199 | H17: ='I-Cenário Base'!M17+SUMIF('II-a) Medidas a implementar'!$C:$C,$A17,'II-a) Medidas a implementar'!J:J)+SUMIF('II-c) Reflexos'!$D:$D,$A17,'II-c) Reflexos'!L:L) -> 1641.294296 | I17: ='I-Cenário Base'!N17+SUMIF('II-a) Medidas a implementar'!$C:$C,$A17,'II-a) Medidas a implementar'!K:K)+SUMIF('II-c) Reflexos'!$D:$D,$A17,'II-c) Reflexos'!M:M) -> 1692.31312 | J17: ='I-Cenário Base'!O17+SUMIF('II-a) Medidas a implementar'!$C:$C,$A17,'II-a) Medidas a implementar'!L:L)+SUMIF('II-c) Reflexos'!$D:$D,$A17,'II-c) Reflexos'!N:N) -> 1744.727312 | K17: ='I-Cenário Base'!P17+SUMIF('II-a) Medidas a implementar'!$C:$C,$A17,'II-a) Medidas a implementar'!M:M)+SUMIF('II-c) Reflexos'!$D:$D,$A17,'II-c) Reflexos'!O:O) -> 1798.578733 | L17: ='I-Cenário Base'!Q17+SUMIF('II-a) Medidas a implementar'!$C:$C,$A17,'II-a) Medidas a implementar'!N:N)+SUMIF('II-c) Reflexos'!$D:$D,$A17,'II-c) Reflexos'!P:P) -> 1853.910499
A18: Receita Patrimonial (V) | B18: =SUM(B19:B20) -> 6090.669153 | C18: =SUM(C19:C20) -> 5655.088491 | D18: 5739.392956 | E18: 8689.37092 | F18: 4442.903834 | G18: 4353.481545 | H18: 4390.728404 | I18: 4383.511685 | J18: 7302.894003 | K18: =SUM(K19:K20) -> 4409.834557 | L18: =SUM(L19:L20) -> 4486.317798
A19: Receita de Aplicações Financeiras (b) | B19: ='I-Cenário Base'!G19+SUMIF('II-a) Medidas a implementar'!$C:$C,$A19,'II-a) Medidas a implementar'!D:D)+SUMIF('II-c) Reflexos'!$D:$D,$A19,'II-c) Reflexos'!F:F) -> 3365.391155 | C19: ='I-Cenário Base'!H19+SUMIF('II-a) Medidas a implementar'!$C:$C,$A19,'II-a) Medidas a implementar'!E:E)+SUMIF('II-c) Reflexos'!$D:$D,$A19,'II-c) Reflexos'!G:G) -> 2817.084538 | D19: ='I-Cenário Base'!I19+SUMIF('II-a) Medidas a implementar'!$C:$C,$A19,'II-a) Medidas a implementar'!F:F)+SUMIF('II-c) Reflexos'!$D:$D,$A19,'II-c) Reflexos'!H:H) -> 2549.669871 | E19: ='I-Cenário Base'!J19+SUMIF('II-a) Medidas a implementar'!$C:$C,$A19,'II-a) Medidas a implementar'!G:G)+SUMIF('II-c) Reflexos'!$D:$D,$A19,'II-c) Reflexos'!I:I) -> 2430.556719 | F19: ='I-Cenário Base'!K19+SUMIF('II-a) Medidas a implementar'!$C:$C,$A19,'II-a) Medidas a implementar'!H:H)+SUMIF('II-c) Reflexos'!$D:$D,$A19,'II-c) Reflexos'!J:J) -> 2456.978501 | G19: ='I-Cenário Base'!L19+SUMIF('II-a) Medidas a implementar'!$C:$C,$A19,'II-a) Medidas a implementar'!I:I)+SUMIF('II-c) Reflexos'!$D:$D,$A19,'II-c) Reflexos'!K:K) -> 2353.82658 | H19: ='I-Cenário Base'!M19+SUMIF('II-a) Medidas a implementar'!$C:$C,$A19,'II-a) Medidas a implementar'!J:J)+SUMIF('II-c) Reflexos'!$D:$D,$A19,'II-c) Reflexos'!L:L) -> 2241.011632 | I19: ='I-Cenário Base'!N19+SUMIF('II-a) Medidas a implementar'!$C:$C,$A19,'II-a) Medidas a implementar'!K:K)+SUMIF('II-c) Reflexos'!$D:$D,$A19,'II-c) Reflexos'!M:M) -> 2128.736267 | J19: ='I-Cenário Base'!O19+SUMIF('II-a) Medidas a implementar'!$C:$C,$A19,'II-a) Medidas a implementar'!L:L)+SUMIF('II-c) Reflexos'!$D:$D,$A19,'II-c) Reflexos'!N:N) -> 2016.080158 | K19: ='I-Cenário Base'!P19+SUMIF('II-a) Medidas a implementar'!$C:$C,$A19,'II-a) Medidas a implementar'!M:M)+SUMIF('II-c) Reflexos'!$D:$D,$A19,'II-c) Reflexos'!O:O) -> 2015.098463 | L19: ='I-Cenário Base'!Q19+SUMIF('II-a) Medidas a implementar'!$C:$C,$A19,'II-a) Medidas a implementar'!N:N)+SUMIF('II-c) Reflexos'!$D:$D,$A19,'II-c) Reflexos'!P:P) -> 1995.135482
A20: Outras Receitas Patrimoniais | B20: ='I-Cenário Base'!G20+SUMIF('II-a) Medidas a implementar'!$C:$C,$A20,'II-a) Medidas a implementar'!D:D)+SUMIF('II-c) Reflexos'!$D:$D,$A20,'II-c) Reflexos'!F:F) -> 2725.277998 | C20: ='I-Cenário Base'!H20+SUMIF('II-a) Medidas a implementar'!$C:$C,$A20,'II-a) Medidas a implementar'!E:E)+SUMIF('II-c) Reflexos'!$D:$D,$A20,'II-c) Reflexos'!G:G) -> 2838.003953 | D20: ='I-Cenário Base'!I20+SUMIF('II-a) Medidas a implementar'!$C:$C,$A20,'II-a) Medidas a implementar'!F:F)+SUMIF('II-c) Reflexos'!$D:$D,$A20,'II-c) Reflexos'!H:H) -> 3189.723085 | E20: ='I-Cenário Base'!J20+SUMIF('II-a) Medidas a implementar'!$C:$C,$A20,'II-a) Medidas a implementar'!G:G)+SUMIF('II-c) Reflexos'!$D:$D,$A20,'II-c) Reflexos'!I:I) -> 6258.814201 | F20: ='I-Cenário Base'!K20+SUMIF('II-a) Medidas a implementar'!$C:$C,$A20,'II-a) Medidas a implementar'!H:H)+SUMIF('II-c) Reflexos'!$D:$D,$A20,'II-c) Reflexos'!J:J) -> 1985.925334 | G20: ='I-Cenário Base'!L20+SUMIF('II-a) Medidas a implementar'!$C:$C,$A20,'II-a) Medidas a implementar'!I:I)+SUMIF('II-c) Reflexos'!$D:$D,$A20,'II-c) Reflexos'!K:K) -> 1999.654965 | H20: ='I-Cenário Base'!M20+SUMIF('II-a) Medidas a implementar'!$C:$C,$A20,'II-a) Medidas a implementar'!J:J)+SUMIF('II-c) Reflexos'!$D:$D,$A20,'II-c) Reflexos'!L:L) -> 2149.716771 | I20: ='I-Cenário Base'!N20+SUMIF('II-a) Medidas a implementar'!$C:$C,$A20,'II-a) Medidas a implementar'!K:K)+SUMIF('II-c) Reflexos'!$D:$D,$A20,'II-c) Reflexos'!M:M) -> 2254.775418 | J20: ='I-Cenário Base'!O20+SUMIF('II-a) Medidas a implementar'!$C:$C,$A20,'II-a) Medidas a implementar'!L:L)+SUMIF('II-c) Reflexos'!$D:$D,$A20,'II-c) Reflexos'!N:N) -> 5286.813845 | K20: ='I-Cenário Base'!P20+SUMIF('II-a) Medidas a implementar'!$C:$C,$A20,'II-a) Medidas a implementar'!M:M)+SUMIF('II-c) Reflexos'!$D:$D,$A20,'II-c) Reflexos'!O:O) -> 2394.736094 | L20: ='I-Cenário Base'!Q20+SUMIF('II-a) Medidas a implementar'!$C:$C,$A20,'II-a) Medidas a implementar'!N:N)+SUMIF('II-c) Reflexos'!$D:$D,$A20,'II-c) Reflexos'!P:P) -> 2491.182316
A21: Transferências Correntes (VI) | B21: =SUM(B22:B26) -> 25871.0591 | C21: 28706.64095 | D21: 31022.63432 | E21: 31727.89102 | F21: 33450.10761 | G21: 35221.25553 | H21: 37044.08388 | I21: 39005.23065 | J21: 41006.8037 | K21: 43123.83044 | L21: =SUM(L22:L26) -> 45365.86414
A22: Cota-Parte do FPE | B22: ='I-Cenário Base'!G22+SUMIF('II-a) Medidas a implementar'!$C:$C,$A22,'II-a) Medidas a implementar'!D:D)+SUMIF('II-c) Reflexos'!$D:$D,$A22,'II-c) Reflexos'!F:F) -> 7391.174221 | C22: ='I-Cenário Base'!H22+SUMIF('II-a) Medidas a implementar'!$C:$C,$A22,'II-a) Medidas a implementar'!E:E)+SUMIF('II-c) Reflexos'!$D:$D,$A22,'II-c) Reflexos'!G:G) -> 8945.031307 | D22: ='I-Cenário Base'!I22+SUMIF('II-a) Medidas a implementar'!$C:$C,$A22,'II-a) Medidas a implementar'!F:F)+SUMIF('II-c) Reflexos'!$D:$D,$A22,'II-c) Reflexos'!H:H) -> 9467.671596 | E22: ='I-Cenário Base'!J22+SUMIF('II-a) Medidas a implementar'!$C:$C,$A22,'II-a) Medidas a implementar'!G:G)+SUMIF('II-c) Reflexos'!$D:$D,$A22,'II-c) Reflexos'!I:I) -> 9997.444628 | F22: ='I-Cenário Base'!K22+SUMIF('II-a) Medidas a implementar'!$C:$C,$A22,'II-a) Medidas a implementar'!H:H)+SUMIF('II-c) Reflexos'!$D:$D,$A22,'II-c) Reflexos'!J:J) -> 10560.98059 | G22: ='I-Cenário Base'!L22+SUMIF('II-a) Medidas a implementar'!$C:$C,$A22,'II-a) Medidas a implementar'!I:I)+SUMIF('II-c) Reflexos'!$D:$D,$A22,'II-c) Reflexos'!K:K) -> 11156.28194 | H22: ='I-Cenário Base'!M22+SUMIF('II-a) Medidas a implementar'!$C:$C,$A22,'II-a) Medidas a implementar'!J:J)+SUMIF('II-c) Reflexos'!$D:$D,$A22,'II-c) Reflexos'!L:L) -> 11785.13924 | I22: ='I-Cenário Base'!N22+SUMIF('II-a) Medidas a implementar'!$C:$C,$A22,'II-a) Medidas a implementar'!K:K)+SUMIF('II-c) Reflexos'!$D:$D,$A22,'II-c) Reflexos'!M:M) -> 12449.44397 | J22: ='I-Cenário Base'!O22+SUMIF('II-a) Medidas a implementar'!$C:$C,$A22,'II-a) Medidas a implementar'!L:L)+SUMIF('II-c) Reflexos'!$D:$D,$A22,'II-c) Reflexos'!N:N) -> 13151.19423 | K22: ='I-Cenário Base'!P22+SUMIF('II-a) Medidas a implementar'!$C:$C,$A22,'II-a) Medidas a implementar'!M:M)+SUMIF('II-c) Reflexos'!$D:$D,$A22,'II-c) Reflexos'!O:O) -> 13892.50074 | L22: ='I-Cenário Base'!Q22+SUMIF('II-a) Medidas a implementar'!$C:$C,$A22,'II-a) Medidas a implementar'!N:N)+SUMIF('II-c) Reflexos'!$D:$D,$A22,'II-c) Reflexos'!P:P) -> 14675.59322
A23: Cota-Parte do IPI-Exp. (LC nº 61/1989) | B23: ='I-Cenário Base'!G23+SUMIF('II-a) Medidas a implementar'!$C:$C,$A23,'II-a) Medidas a implementar'!D:D)+SUMIF('II-c) Reflexos'!$D:$D,$A23,'II-c) Reflexos'!F:F) -> 700.5431767 | C23: ='I-Cenário Base'!H23+SUMIF('II-a) Medidas a implementar'!$C:$C,$A23,'II-a) Medidas a implementar'!E:E)+SUMIF('II-c) Reflexos'!$D:$D,$A23,'II-c) Reflexos'!G:G) -> 837.8275183 | D23: ='I-Cenário Base'!I23+SUMIF('II-a) Medidas a implementar'!$C:$C,$A23,'II-a) Medidas a implementar'!F:F)+SUMIF('II-c) Reflexos'!$D:$D,$A23,'II-c) Reflexos'!H:H) -> 886.7801045 | E23: ='I-Cenário Base'!J23+SUMIF('II-a) Medidas a implementar'!$C:$C,$A23,'II-a) Medidas a implementar'!G:G)+SUMIF('II-c) Reflexos'!$D:$D,$A23,'II-c) Reflexos'!I:I) -> 936.4007721 | F23: ='I-Cenário Base'!K23+SUMIF('II-a) Medidas a implementar'!$C:$C,$A23,'II-a) Medidas a implementar'!H:H)+SUMIF('II-c) Reflexos'!$D:$D,$A23,'II-c) Reflexos'!J:J) -> 989.1838108 | G23: ='I-Cenário Base'!L23+SUMIF('II-a) Medidas a implementar'!$C:$C,$A23,'II-a) Medidas a implementar'!I:I)+SUMIF('II-c) Reflexos'!$D:$D,$A23,'II-c) Reflexos'!K:K) -> 1044.942124 | H23: ='I-Cenário Base'!M23+SUMIF('II-a) Medidas a implementar'!$C:$C,$A23,'II-a) Medidas a implementar'!J:J)+SUMIF('II-c) Reflexos'!$D:$D,$A23,'II-c) Reflexos'!L:L) -> 1103.843421 | I23: ='I-Cenário Base'!N23+SUMIF('II-a) Medidas a implementar'!$C:$C,$A23,'II-a) Medidas a implementar'!K:K)+SUMIF('II-c) Reflexos'!$D:$D,$A23,'II-c) Reflexos'!M:M) -> 1166.064867 | J23: ='I-Cenário Base'!O23+SUMIF('II-a) Medidas a implementar'!$C:$C,$A23,'II-a) Medidas a implementar'!L:L)+SUMIF('II-c) Reflexos'!$D:$D,$A23,'II-c) Reflexos'!N:N) -> 1231.793612 | K23: ='I-Cenário Base'!P23+SUMIF('II-a) Medidas a implementar'!$C:$C,$A23,'II-a) Medidas a implementar'!M:M)+SUMIF('II-c) Reflexos'!$D:$D,$A23,'II-c) Reflexos'!O:O) -> 1301.227354 | L23: ='I-Cenário Base'!Q23+SUMIF('II-a) Medidas a implementar'!$C:$C,$A23,'II-a) Medidas a implementar'!N:N)+SUMIF('II-c) Reflexos'!$D:$D,$A23,'II-c) Reflexos'!P:P) -> 1374.574938
A24: Transferências do FUNDEB | B24: ='I-Cenário Base'!G24+SUMIF('II-a) Medidas a implementar'!$C:$C,$A24,'II-a) Medidas a implementar'!D:D)+SUMIF('II-c) Reflexos'!$D:$D,$A24,'II-c) Reflexos'!F:F) -> 11296.61776 | C24: ='I-Cenário Base'!H24+SUMIF('II-a) Medidas a implementar'!$C:$C,$A24,'II-a) Medidas a implementar'!E:E)+SUMIF('II-c) Reflexos'!$D:$D,$A24,'II-c) Reflexos'!G:G) -> 11935.26399 | D24: ='I-Cenário Base'!I24+SUMIF('II-a) Medidas a implementar'!$C:$C,$A24,'II-a) Medidas a implementar'!F:F)+SUMIF('II-c) Reflexos'!$D:$D,$A24,'II-c) Reflexos'!H:H) -> 12616.74191 | E24: ='I-Cenário Base'!J24+SUMIF('II-a) Medidas a implementar'!$C:$C,$A24,'II-a) Medidas a implementar'!G:G)+SUMIF('II-c) Reflexos'!$D:$D,$A24,'II-c) Reflexos'!I:I) -> 13360.0687 | F24: ='I-Cenário Base'!K24+SUMIF('II-a) Medidas a implementar'!$C:$C,$A24,'II-a) Medidas a implementar'!H:H)+SUMIF('II-c) Reflexos'!$D:$D,$A24,'II-c) Reflexos'!J:J) -> 14246.06688 | G24: ='I-Cenário Base'!L24+SUMIF('II-a) Medidas a implementar'!$C:$C,$A24,'II-a) Medidas a implementar'!I:I)+SUMIF('II-c) Reflexos'!$D:$D,$A24,'II-c) Reflexos'!K:K) -> 15082.94709 | H24: ='I-Cenário Base'!M24+SUMIF('II-a) Medidas a implementar'!$C:$C,$A24,'II-a) Medidas a implementar'!J:J)+SUMIF('II-c) Reflexos'!$D:$D,$A24,'II-c) Reflexos'!L:L) -> 16000.62188 | I24: ='I-Cenário Base'!N24+SUMIF('II-a) Medidas a implementar'!$C:$C,$A24,'II-a) Medidas a implementar'!K:K)+SUMIF('II-c) Reflexos'!$D:$D,$A24,'II-c) Reflexos'!M:M) -> 16972.10562 | J24: ='I-Cenário Base'!O24+SUMIF('II-a) Medidas a implementar'!$C:$C,$A24,'II-a) Medidas a implementar'!L:L)+SUMIF('II-c) Reflexos'!$D:$D,$A24,'II-c) Reflexos'!N:N) -> 18003.45833 | K24: ='I-Cenário Base'!P24+SUMIF('II-a) Medidas a implementar'!$C:$C,$A24,'II-a) Medidas a implementar'!M:M)+SUMIF('II-c) Reflexos'!$D:$D,$A24,'II-c) Reflexos'!O:O) -> 19098.49383 | L24: ='I-Cenário Base'!Q24+SUMIF('II-a) Medidas a implementar'!$C:$C,$A24,'II-a) Medidas a implementar'!N:N)+SUMIF('II-c) Reflexos'!$D:$D,$A24,'II-c) Reflexos'!P:P) -> 20264.01184
A25: Royalties e Participações Especiais | B25: ='I-Cenário Base'!G25+SUMIF('II-a) Medidas a implementar'!$C:$C,$A25,'II-a) Medidas a implementar'!D:D)+SUMIF('II-c) Reflexos'!$D:$D,$A25,'II-c) Reflexos'!F:F) -> 44.32392372 | C25: ='I-Cenário Base'!H25+SUMIF('II-a) Medidas a implementar'!$C:$C,$A25,'II-a) Medidas a implementar'!E:E)+SUMIF('II-c) Reflexos'!$D:$D,$A25,'II-c) Reflexos'!G:G) -> 47.849865 | D25: ='I-Cenário Base'!I25+SUMIF('II-a) Medidas a implementar'!$C:$C,$A25,'II-a) Medidas a implementar'!F:F)+SUMIF('II-c) Reflexos'!$D:$D,$A25,'II-c) Reflexos'!H:H) -> 50.64563691 | E25: ='I-Cenário Base'!J25+SUMIF('II-a) Medidas a implementar'!$C:$C,$A25,'II-a) Medidas a implementar'!G:G)+SUMIF('II-c) Reflexos'!$D:$D,$A25,'II-c) Reflexos'!I:I) -> 53.47956417 | F25: ='I-Cenário Base'!K25+SUMIF('II-a) Medidas a implementar'!$C:$C,$A25,'II-a) Medidas a implementar'!H:H)+SUMIF('II-c) Reflexos'!$D:$D,$A25,'II-c) Reflexos'!J:J) -> 56.49410024 | G25: ='I-Cenário Base'!L25+SUMIF('II-a) Medidas a implementar'!$C:$C,$A25,'II-a) Medidas a implementar'!I:I)+SUMIF('II-c) Reflexos'!$D:$D,$A25,'II-c) Reflexos'!K:K) -> 59.67855969 | H25: ='I-Cenário Base'!M25+SUMIF('II-a) Medidas a implementar'!$C:$C,$A25,'II-a) Medidas a implementar'!J:J)+SUMIF('II-c) Reflexos'!$D:$D,$A25,'II-c) Reflexos'!L:L) -> 44.12976452 | I25: ='I-Cenário Base'!N25+SUMIF('II-a) Medidas a implementar'!$C:$C,$A25,'II-a) Medidas a implementar'!K:K)+SUMIF('II-c) Reflexos'!$D:$D,$A25,'II-c) Reflexos'!M:M) -> 66.59610155 | J25: ='I-Cenário Base'!O25+SUMIF('II-a) Medidas a implementar'!$C:$C,$A25,'II-a) Medidas a implementar'!L:L)+SUMIF('II-c) Reflexos'!$D:$D,$A25,'II-c) Reflexos'!N:N) -> 70.3499906 | K25: ='I-Cenário Base'!P25+SUMIF('II-a) Medidas a implementar'!$C:$C,$A25,'II-a) Medidas a implementar'!M:M)+SUMIF('II-c) Reflexos'!$D:$D,$A25,'II-c) Reflexos'!O:O) -> 74.31547887 | L25: ='I-Cenário Base'!Q25+SUMIF('II-a) Medidas a implementar'!$C:$C,$A25,'II-a) Medidas a implementar'!N:N)+SUMIF('II-c) Reflexos'!$D:$D,$A25,'II-c) Reflexos'!P:P) -> 78.50449378
A26: Outras Transferências Correntes | B26: ='I-Cenário Base'!G26+SUMIF('II-a) Medidas a implementar'!$C:$C,$A26,'II-a) Medidas a implementar'!D:D)+SUMIF('II-c) Reflexos'!$D:$D,$A26,'II-c) Reflexos'!F:F) -> 6438.400022 | C26: ='I-Cenário Base'!H26+SUMIF('II-a) Medidas a implementar'!$C:$C,$A26,'II-a) Medidas a implementar'!E:E)+SUMIF('II-c) Reflexos'!$D:$D,$A26,'II-c) Reflexos'!G:G) -> 6940.668273 | D26: ='I-Cenário Base'!I26+SUMIF('II-a) Medidas a implementar'!$C:$C,$A26,'II-a) Medidas a implementar'!F:F)+SUMIF('II-c) Reflexos'!$D:$D,$A26,'II-c) Reflexos'!H:H) -> 8000.79507 | E26: ='I-Cenário Base'!J26+SUMIF('II-a) Medidas a implementar'!$C:$C,$A26,'II-a) Medidas a implementar'!G:G)+SUMIF('II-c) Reflexos'!$D:$D,$A26,'II-c) Reflexos'!I:I) -> 7380.49736 | F26: ='I-Cenário Base'!K26+SUMIF('II-a) Medidas a implementar'!$C:$C,$A26,'II-a) Medidas a implementar'!H:H)+SUMIF('II-c) Reflexos'!$D:$D,$A26,'II-c) Reflexos'!J:J) -> 7597.382231 | G26: ='I-Cenário Base'!L26+SUMIF('II-a) Medidas a implementar'!$C:$C,$A26,'II-a) Medidas a implementar'!I:I)+SUMIF('II-c) Reflexos'!$D:$D,$A26,'II-c) Reflexos'!K:K) -> 7877.405816 | H26: ='I-Cenário Base'!M26+SUMIF('II-a) Medidas a implementar'!$C:$C,$A26,'II-a) Medidas a implementar'!J:J)+SUMIF('II-c) Reflexos'!$D:$D,$A26,'II-c) Reflexos'!L:L) -> 8110.349571 | I26: ='I-Cenário Base'!N26+SUMIF('II-a) Medidas a implementar'!$C:$C,$A26,'II-a) Medidas a implementar'!K:K)+SUMIF('II-c) Reflexos'!$D:$D,$A26,'II-c) Reflexos'!M:M) -> 8351.020086 | J26: ='I-Cenário Base'!O26+SUMIF('II-a) Medidas a implementar'!$C:$C,$A26,'II-a) Medidas a implementar'!L:L)+SUMIF('II-c) Reflexos'!$D:$D,$A26,'II-c) Reflexos'!N:N) -> 8550.007536 | K26: ='I-Cenário Base'!P26+SUMIF('II-a) Medidas a implementar'!$C:$C,$A26,'II-a) Medidas a implementar'!M:M)+SUMIF('II-c) Reflexos'!$D:$D,$A26,'II-c) Reflexos'!O:O) -> 8757.29303 | L26: ='I-Cenário Base'!Q26+SUMIF('II-a) Medidas a implementar'!$C:$C,$A26,'II-a) Medidas a implementar'!N:N)+SUMIF('II-c) Reflexos'!$D:$D,$A26,'II-c) Reflexos'!P:P) -> 8973.179644
A27: Demais Receitas Correntes (VII) | B27: =SUM(B28:B30) -> 3159.394998 | C27: =SUM(C28:C30) -> 3756.154365 | D27: 3949.13594 | E27: 4109.680534 | F27: 4253.977492 | G27: 4403.791784 | H27: 4559.356896 | I27: 4720.915138 | J27: 4888.722624 | K27: =SUM(K28:K30) -> 5056.295498 | L27: =SUM(L28:L30) -> 5236.711302
A28: Outras Receitas Financeiras (c) | B28: ='I-Cenário Base'!G28+SUMIF('II-a) Medidas a implementar'!$C:$C,$A28,'II-a) Medidas a implementar'!D:D)+SUMIF('II-c) Reflexos'!$D:$D,$A28,'II-c) Reflexos'!F:F) -> 5.69746926 | C28: ='I-Cenário Base'!H28+SUMIF('II-a) Medidas a implementar'!$C:$C,$A28,'II-a) Medidas a implementar'!E:E)+SUMIF('II-c) Reflexos'!$D:$D,$A28,'II-c) Reflexos'!G:G) -> 5.75405 | D28: ='I-Cenário Base'!I28+SUMIF('II-a) Medidas a implementar'!$C:$C,$A28,'II-a) Medidas a implementar'!F:F)+SUMIF('II-c) Reflexos'!$D:$D,$A28,'II-c) Reflexos'!H:H) -> 5.9266115 | E28: ='I-Cenário Base'!J28+SUMIF('II-a) Medidas a implementar'!$C:$C,$A28,'II-a) Medidas a implementar'!G:G)+SUMIF('II-c) Reflexos'!$D:$D,$A28,'II-c) Reflexos'!I:I) -> 6.104349845 | F28: ='I-Cenário Base'!K28+SUMIF('II-a) Medidas a implementar'!$C:$C,$A28,'II-a) Medidas a implementar'!H:H)+SUMIF('II-c) Reflexos'!$D:$D,$A28,'II-c) Reflexos'!J:J) -> 6.28742034 | G28: ='I-Cenário Base'!L28+SUMIF('II-a) Medidas a implementar'!$C:$C,$A28,'II-a) Medidas a implementar'!I:I)+SUMIF('II-c) Reflexos'!$D:$D,$A28,'II-c) Reflexos'!K:K) -> 6.475982951 | H28: ='I-Cenário Base'!M28+SUMIF('II-a) Medidas a implementar'!$C:$C,$A28,'II-a) Medidas a implementar'!J:J)+SUMIF('II-c) Reflexos'!$D:$D,$A28,'II-c) Reflexos'!L:L) -> 6.670202439 | I28: ='I-Cenário Base'!N28+SUMIF('II-a) Medidas a implementar'!$C:$C,$A28,'II-a) Medidas a implementar'!K:K)+SUMIF('II-c) Reflexos'!$D:$D,$A28,'II-c) Reflexos'!M:M) -> 6.870248512 | J28: ='I-Cenário Base'!O28+SUMIF('II-a) Medidas a implementar'!$C:$C,$A28,'II-a) Medidas a implementar'!L:L)+SUMIF('II-c) Reflexos'!$D:$D,$A28,'II-c) Reflexos'!N:N) -> 7.076295968 | K28: ='I-Cenário Base'!P28+SUMIF('II-a) Medidas a implementar'!$C:$C,$A28,'II-a) Medidas a implementar'!M:M)+SUMIF('II-c) Reflexos'!$D:$D,$A28,'II-c) Reflexos'!O:O) -> 7.288524847 | L28: ='I-Cenário Base'!Q28+SUMIF('II-a) Medidas a implementar'!$C:$C,$A28,'II-a) Medidas a implementar'!N:N)+SUMIF('II-c) Reflexos'!$D:$D,$A28,'II-c) Reflexos'!P:P) -> 7.507120592
A29: Compensações Financeiras entre o RGPS e o RPPS (d) | B29: ='I-Cenário Base'!G29+SUMIF('II-a) Medidas a implementar'!$C:$C,$A29,'II-a) Medidas a implementar'!D:D)+SUMIF('II-c) Reflexos'!$D:$D,$A29,'II-c) Reflexos'!F:F) -> 0 | C29: ='I-Cenário Base'!H29+SUMIF('II-a) Medidas a implementar'!$C:$C,$A29,'II-a) Medidas a implementar'!E:E)+SUMIF('II-c) Reflexos'!$D:$D,$A29,'II-c) Reflexos'!G:G) -> 0 | D29: ='I-Cenário Base'!I29+SUMIF('II-a) Medidas a implementar'!$C:$C,$A29,'II-a) Medidas a implementar'!F:F)+SUMIF('II-c) Reflexos'!$D:$D,$A29,'II-c) Reflexos'!H:H) -> 0 | E29: ='I-Cenário Base'!J29+SUMIF('II-a) Medidas a implementar'!$C:$C,$A29,'II-a) Medidas a implementar'!G:G)+SUMIF('II-c) Reflexos'!$D:$D,$A29,'II-c) Reflexos'!I:I) -> 0 | F29: ='I-Cenário Base'!K29+SUMIF('II-a) Medidas a implementar'!$C:$C,$A29,'II-a) Medidas a implementar'!H:H)+SUMIF('II-c) Reflexos'!$D:$D,$A29,'II-c) Reflexos'!J:J) -> 0 | G29: ='I-Cenário Base'!L29+SUMIF('II-a) Medidas a implementar'!$C:$C,$A29,'II-a) Medidas a implementar'!I:I)+SUMIF('II-c) Reflexos'!$D:$D,$A29,'II-c) Reflexos'!K:K) -> 0 | H29: ='I-Cenário Base'!M29+SUMIF('II-a) Medidas a implementar'!$C:$C,$A29,'II-a) Medidas a implementar'!J:J)+SUMIF('II-c) Reflexos'!$D:$D,$A29,'II-c) Reflexos'!L:L) -> 0 | I29: ='I-Cenário Base'!N29+SUMIF('II-a) Medidas a implementar'!$C:$C,$A29,'II-a) Medidas a implementar'!K:K)+SUMIF('II-c) Reflexos'!$D:$D,$A29,'II-c) Reflexos'!M:M) -> 0 | J29: ='I-Cenário Base'!O29+SUMIF('II-a) Medidas a implementar'!$C:$C,$A29,'II-a) Medidas a implementar'!L:L)+SUMIF('II-c) Reflexos'!$D:$D,$A29,'II-c) Reflexos'!N:N) -> 0 | K29: ='I-Cenário Base'!P29+SUMIF('II-a) Medidas a implementar'!$C:$C,$A29,'II-a) Medidas a implementar'!M:M)+SUMIF('II-c) Reflexos'!$D:$D,$A29,'II-c) Reflexos'!O:O) -> 0 | L29: ='I-Cenário Base'!Q29+SUMIF('II-a) Medidas a implementar'!$C:$C,$A29,'II-a) Medidas a implementar'!N:N)+SUMIF('II-c) Reflexos'!$D:$D,$A29,'II-c) Reflexos'!P:P) -> 0
A30: Receitas Correntes Restantes | B30: ='I-Cenário Base'!G30+SUMIF('II-a) Medidas a implementar'!$C:$C,$A30,'II-a) Medidas a implementar'!D:D)+SUMIF('II-c) Reflexos'!$D:$D,$A30,'II-c) Reflexos'!F:F) -> 3153.697529 | C30: ='I-Cenário Base'!H30+SUMIF('II-a) Medidas a implementar'!$C:$C,$A30,'II-a) Medidas a implementar'!E:E)+SUMIF('II-c) Reflexos'!$D:$D,$A30,'II-c) Reflexos'!G:G) -> 3750.400315 | D30: ='I-Cenário Base'!I30+SUMIF('II-a) Medidas a implementar'!$C:$C,$A30,'II-a) Medidas a implementar'!F:F)+SUMIF('II-c) Reflexos'!$D:$D,$A30,'II-c) Reflexos'!H:H) -> 3943.209329 | E30: ='I-Cenário Base'!J30+SUMIF('II-a) Medidas a implementar'!$C:$C,$A30,'II-a) Medidas a implementar'!G:G)+SUMIF('II-c) Reflexos'!$D:$D,$A30,'II-c) Reflexos'!I:I) -> 4103.576185 | F30: ='I-Cenário Base'!K30+SUMIF('II-a) Medidas a implementar'!$C:$C,$A30,'II-a) Medidas a implementar'!H:H)+SUMIF('II-c) Reflexos'!$D:$D,$A30,'II-c) Reflexos'!J:J) -> 4247.690071 | G30: ='I-Cenário Base'!L30+SUMIF('II-a) Medidas a implementar'!$C:$C,$A30,'II-a) Medidas a implementar'!I:I)+SUMIF('II-c) Reflexos'!$D:$D,$A30,'II-c) Reflexos'!K:K) -> 4397.315801 | H30: ='I-Cenário Base'!M30+SUMIF('II-a) Medidas a implementar'!$C:$C,$A30,'II-a) Medidas a implementar'!J:J)+SUMIF('II-c) Reflexos'!$D:$D,$A30,'II-c) Reflexos'!L:L) -> 4552.686694 | I30: ='I-Cenário Base'!N30+SUMIF('II-a) Medidas a implementar'!$C:$C,$A30,'II-a) Medidas a implementar'!K:K)+SUMIF('II-c) Reflexos'!$D:$D,$A30,'II-c) Reflexos'!M:M) -> 4714.044889 | J30: ='I-Cenário Base'!O30+SUMIF('II-a) Medidas a implementar'!$C:$C,$A30,'II-a) Medidas a implementar'!L:L)+SUMIF('II-c) Reflexos'!$D:$D,$A30,'II-c) Reflexos'!N:N) -> 4881.646328 | K30: ='I-Cenário Base'!P30+SUMIF('II-a) Medidas a implementar'!$C:$C,$A30,'II-a) Medidas a implementar'!M:M)+SUMIF('II-c) Reflexos'!$D:$D,$A30,'II-c) Reflexos'!O:O) -> 5049.006973 | L30: ='I-Cenário Base'!Q30+SUMIF('II-a) Medidas a implementar'!$C:$C,$A30,'II-a) Medidas a implementar'!N:N)+SUMIF('II-c) Reflexos'!$D:$D,$A30,'II-c) Reflexos'!P:P) -> 5229.204181
A31: Deduções para formação do Fundeb (IIa) | B31: ='I-Cenário Base'!G31+SUMIF('II-a) Medidas a implementar'!$C:$C,$A31,'II-a) Medidas a implementar'!D:D)+SUMIF('II-c) Reflexos'!$D:$D,$A31,'II-c) Reflexos'!F:F) -> 13901.7695 | C31: ='I-Cenário Base'!H31+SUMIF('II-a) Medidas a implementar'!$C:$C,$A31,'II-a) Medidas a implementar'!E:E)+SUMIF('II-c) Reflexos'!$D:$D,$A31,'II-c) Reflexos'!G:G) -> 15228.35663 | D31: ='I-Cenário Base'!I31+SUMIF('II-a) Medidas a implementar'!$C:$C,$A31,'II-a) Medidas a implementar'!F:F)+SUMIF('II-c) Reflexos'!$D:$D,$A31,'II-c) Reflexos'!H:H) -> 16432.54735 | E31: ='I-Cenário Base'!J31+SUMIF('II-a) Medidas a implementar'!$C:$C,$A31,'II-a) Medidas a implementar'!G:G)+SUMIF('II-c) Reflexos'!$D:$D,$A31,'II-c) Reflexos'!I:I) -> 17273.15758 | F31: ='I-Cenário Base'!K31+SUMIF('II-a) Medidas a implementar'!$C:$C,$A31,'II-a) Medidas a implementar'!H:H)+SUMIF('II-c) Reflexos'!$D:$D,$A31,'II-c) Reflexos'!J:J) -> 18432.7503 | G31: ='I-Cenário Base'!L31+SUMIF('II-a) Medidas a implementar'!$C:$C,$A31,'II-a) Medidas a implementar'!I:I)+SUMIF('II-c) Reflexos'!$D:$D,$A31,'II-c) Reflexos'!K:K) -> 19519.10009 | H31: ='I-Cenário Base'!M31+SUMIF('II-a) Medidas a implementar'!$C:$C,$A31,'II-a) Medidas a implementar'!J:J)+SUMIF('II-c) Reflexos'!$D:$D,$A31,'II-c) Reflexos'!L:L) -> 20721.09947 | I31: ='I-Cenário Base'!N31+SUMIF('II-a) Medidas a implementar'!$C:$C,$A31,'II-a) Medidas a implementar'!K:K)+SUMIF('II-c) Reflexos'!$D:$D,$A31,'II-c) Reflexos'!M:M) -> 21993.77975 | J31: ='I-Cenário Base'!O31+SUMIF('II-a) Medidas a implementar'!$C:$C,$A31,'II-a) Medidas a implementar'!L:L)+SUMIF('II-c) Reflexos'!$D:$D,$A31,'II-c) Reflexos'!N:N) -> 23346.03538 | K31: ='I-Cenário Base'!P31+SUMIF('II-a) Medidas a implementar'!$C:$C,$A31,'II-a) Medidas a implementar'!M:M)+SUMIF('II-c) Reflexos'!$D:$D,$A31,'II-c) Reflexos'!O:O) -> 24783.03813 | L31: ='I-Cenário Base'!Q31+SUMIF('II-a) Medidas a implementar'!$C:$C,$A31,'II-a) Medidas a implementar'!N:N)+SUMIF('II-c) Reflexos'!$D:$D,$A31,'II-c) Reflexos'!P:P) -> 26314.77051
A32: Receitas Primárias Correntes (VIII) = (II-b-c) | B32: =B8-B19-B28 -> 118100.2826 | C32: 127015.1429 | D32: 135726.7724 | E32: 145382.9556 | F32: 149966.6765 | G32: 158322.9552 | H32: 167348.0108 | I32: 176871.7946 | J32: 189818.957 | K32: 197436.1558 | L32: =L8-L19-L28 -> 208715.1365
A33: Receitas de Capital (IX) = (X+XI+XII+XIII+XIV) | B33: =B34+B35+B36+B39+B40 -> 3353.553332 | C33: =C34+C35+C36+C39+C40 -> 2847.619113 | D33: 1981.767448 | E33: 3326.856462 | F33: 60755.06398 | G33: 1374.311214 | H33: 1384.303731 | I33: 1401.04444 | J33: 1380.154803 | K33: =K34+K35+K36+K39+K40 -> 1421.604415 | L33: =L34+L35+L36+L39+L40 -> 1464.361879
A34: Operações de Crédito (X) | B34: ='I-Cenário Base'!G34+SUMIF('II-a) Medidas a implementar'!$C:$C,$A34,'II-a) Medidas a implementar'!D:D)+SUMIF('II-c) Reflexos'!$D:$D,$A34,'II-c) Reflexos'!F:F) -> 10.74310629 | C34: ='I-Cenário Base'!H34+SUMIF('II-a) Medidas a implementar'!$C:$C,$A34,'II-a) Medidas a implementar'!E:E)+SUMIF('II-c) Reflexos'!$D:$D,$A34,'II-c) Reflexos'!G:G) -> 24.89327567 | D34: ='I-Cenário Base'!I34+SUMIF('II-a) Medidas a implementar'!$C:$C,$A34,'II-a) Medidas a implementar'!F:F)+SUMIF('II-c) Reflexos'!$D:$D,$A34,'II-c) Reflexos'!H:H) -> 0 | E34: ='I-Cenário Base'!J34+SUMIF('II-a) Medidas a implementar'!$C:$C,$A34,'II-a) Medidas a implementar'!G:G)+SUMIF('II-c) Reflexos'!$D:$D,$A34,'II-c) Reflexos'!I:I) -> 1310.63268 | F34: ='I-Cenário Base'!K34+SUMIF('II-a) Medidas a implementar'!$C:$C,$A34,'II-a) Medidas a implementar'!H:H)+SUMIF('II-c) Reflexos'!$D:$D,$A34,'II-c) Reflexos'!J:J) -> 115.87863 | G34: ='I-Cenário Base'!L34+SUMIF('II-a) Medidas a implementar'!$C:$C,$A34,'II-a) Medidas a implementar'!I:I)+SUMIF('II-c) Reflexos'!$D:$D,$A34,'II-c) Reflexos'!K:K) -> 111.03606 | H34: ='I-Cenário Base'!M34+SUMIF('II-a) Medidas a implementar'!$C:$C,$A34,'II-a) Medidas a implementar'!J:J)+SUMIF('II-c) Reflexos'!$D:$D,$A34,'II-c) Reflexos'!L:L) -> 83.277045 | I34: ='I-Cenário Base'!N34+SUMIF('II-a) Medidas a implementar'!$C:$C,$A34,'II-a) Medidas a implementar'!K:K)+SUMIF('II-c) Reflexos'!$D:$D,$A34,'II-c) Reflexos'!M:M) -> 61.069833 | J34: ='I-Cenário Base'!O34+SUMIF('II-a) Medidas a implementar'!$C:$C,$A34,'II-a) Medidas a implementar'!L:L)+SUMIF('II-c) Reflexos'!$D:$D,$A34,'II-c) Reflexos'!N:N) -> 0 | K34: ='I-Cenário Base'!P34+SUMIF('II-a) Medidas a implementar'!$C:$C,$A34,'II-a) Medidas a implementar'!M:M)+SUMIF('II-c) Reflexos'!$D:$D,$A34,'II-c) Reflexos'!O:O) -> 0 | L34: ='I-Cenário Base'!Q34+SUMIF('II-a) Medidas a implementar'!$C:$C,$A34,'II-a) Medidas a implementar'!N:N)+SUMIF('II-c) Reflexos'!$D:$D,$A34,'II-c) Reflexos'!P:P) -> 0
A35: Amortização de Empréstimos (XI) | B35: ='I-Cenário Base'!G35+SUMIF('II-a) Medidas a implementar'!$C:$C,$A35,'II-a) Medidas a implementar'!D:D)+SUMIF('II-c) Reflexos'!$D:$D,$A35,'II-c) Reflexos'!F:F) -> 88.07963921 | C35: ='I-Cenário Base'!H35+SUMIF('II-a) Medidas a implementar'!$C:$C,$A35,'II-a) Medidas a implementar'!E:E)+SUMIF('II-c) Reflexos'!$D:$D,$A35,'II-c) Reflexos'!G:G) -> 86.7809911 | D35: ='I-Cenário Base'!I35+SUMIF('II-a) Medidas a implementar'!$C:$C,$A35,'II-a) Medidas a implementar'!F:F)+SUMIF('II-c) Reflexos'!$D:$D,$A35,'II-c) Reflexos'!H:H) -> 88.55203013 | E35: ='I-Cenário Base'!J35+SUMIF('II-a) Medidas a implementar'!$C:$C,$A35,'II-a) Medidas a implementar'!G:G)+SUMIF('II-c) Reflexos'!$D:$D,$A35,'II-c) Reflexos'!I:I) -> 90.41781687 | F35: ='I-Cenário Base'!K35+SUMIF('II-a) Medidas a implementar'!$C:$C,$A35,'II-a) Medidas a implementar'!H:H)+SUMIF('II-c) Reflexos'!$D:$D,$A35,'II-c) Reflexos'!J:J) -> 92.37911292 | G35: ='I-Cenário Base'!L35+SUMIF('II-a) Medidas a implementar'!$C:$C,$A35,'II-a) Medidas a implementar'!I:I)+SUMIF('II-c) Reflexos'!$D:$D,$A35,'II-c) Reflexos'!K:K) -> 94.43680677 | H35: ='I-Cenário Base'!M35+SUMIF('II-a) Medidas a implementar'!$C:$C,$A35,'II-a) Medidas a implementar'!J:J)+SUMIF('II-c) Reflexos'!$D:$D,$A35,'II-c) Reflexos'!L:L) -> 96.59191242 | I35: ='I-Cenário Base'!N35+SUMIF('II-a) Medidas a implementar'!$C:$C,$A35,'II-a) Medidas a implementar'!K:K)+SUMIF('II-c) Reflexos'!$D:$D,$A35,'II-c) Reflexos'!M:M) -> 98.84556817 | J35: ='I-Cenário Base'!O35+SUMIF('II-a) Medidas a implementar'!$C:$C,$A35,'II-a) Medidas a implementar'!L:L)+SUMIF('II-c) Reflexos'!$D:$D,$A35,'II-c) Reflexos'!N:N) -> 101.1990357 | K35: ='I-Cenário Base'!P35+SUMIF('II-a) Medidas a implementar'!$C:$C,$A35,'II-a) Medidas a implementar'!M:M)+SUMIF('II-c) Reflexos'!$D:$D,$A35,'II-c) Reflexos'!O:O) -> 103.6536992 | L35: ='I-Cenário Base'!Q35+SUMIF('II-a) Medidas a implementar'!$C:$C,$A35,'II-a) Medidas a implementar'!N:N)+SUMIF('II-c) Reflexos'!$D:$D,$A35,'II-c) Reflexos'!P:P) -> 106.2110649
A36: Alienação de Bens (XII) | B36: =SUM(B37:B38) -> 53.60281619 | C36: =SUM(C37:C38) -> 25.278086 | D36: 26.59123561 | E36: 27.93305693 | F36: 59029.24714 | G36: 30.6274793 | H36: 32.077579 | I36: 33.60112862 | J36: 35.20201971 | K36: =SUM(K37:K38) -> 36.8843557 | L36: =SUM(L37:L38) -> 38.65246367
A37: Alienação de Bens Não Primária (e) | B37: ='I-Cenário Base'!G37+SUMIF('II-a) Medidas a implementar'!$C:$C,$A37,'II-a) Medidas a implementar'!D:D)+SUMIF('II-c) Reflexos'!$D:$D,$A37,'II-c) Reflexos'!F:F) -> 0.225 | C37: ='I-Cenário Base'!H37+SUMIF('II-a) Medidas a implementar'!$C:$C,$A37,'II-a) Medidas a implementar'!E:E)+SUMIF('II-c) Reflexos'!$D:$D,$A37,'II-c) Reflexos'!G:G) -> 0.225 | D37: ='I-Cenário Base'!I37+SUMIF('II-a) Medidas a implementar'!$C:$C,$A37,'II-a) Medidas a implementar'!F:F)+SUMIF('II-c) Reflexos'!$D:$D,$A37,'II-c) Reflexos'!H:H) -> 0.23175 | E37: ='I-Cenário Base'!J37+SUMIF('II-a) Medidas a implementar'!$C:$C,$A37,'II-a) Medidas a implementar'!G:G)+SUMIF('II-c) Reflexos'!$D:$D,$A37,'II-c) Reflexos'!I:I) -> 0.2387025 | F37: ='I-Cenário Base'!K37+SUMIF('II-a) Medidas a implementar'!$C:$C,$A37,'II-a) Medidas a implementar'!H:H)+SUMIF('II-c) Reflexos'!$D:$D,$A37,'II-c) Reflexos'!J:J) -> 59000.24586 | G37: ='I-Cenário Base'!L37+SUMIF('II-a) Medidas a implementar'!$C:$C,$A37,'II-a) Medidas a implementar'!I:I)+SUMIF('II-c) Reflexos'!$D:$D,$A37,'II-c) Reflexos'!K:K) -> 0.2532394823 | H37: ='I-Cenário Base'!M37+SUMIF('II-a) Medidas a implementar'!$C:$C,$A37,'II-a) Medidas a implementar'!J:J)+SUMIF('II-c) Reflexos'!$D:$D,$A37,'II-c) Reflexos'!L:L) -> 0.2608366667 | I37: ='I-Cenário Base'!N37+SUMIF('II-a) Medidas a implementar'!$C:$C,$A37,'II-a) Medidas a implementar'!K:K)+SUMIF('II-c) Reflexos'!$D:$D,$A37,'II-c) Reflexos'!M:M) -> 0.2686617667 | J37: ='I-Cenário Base'!O37+SUMIF('II-a) Medidas a implementar'!$C:$C,$A37,'II-a) Medidas a implementar'!L:L)+SUMIF('II-c) Reflexos'!$D:$D,$A37,'II-c) Reflexos'!N:N) -> 0.2767216197 | K37: ='I-Cenário Base'!P37+SUMIF('II-a) Medidas a implementar'!$C:$C,$A37,'II-a) Medidas a implementar'!M:M)+SUMIF('II-c) Reflexos'!$D:$D,$A37,'II-c) Reflexos'!O:O) -> 0.2850232683 | L37: ='I-Cenário Base'!Q37+SUMIF('II-a) Medidas a implementar'!$C:$C,$A37,'II-a) Medidas a implementar'!N:N)+SUMIF('II-c) Reflexos'!$D:$D,$A37,'II-c) Reflexos'!P:P) -> 0.2935739664
A38: Alienação de Bens Primária | B38: ='I-Cenário Base'!G38+SUMIF('II-a) Medidas a implementar'!$C:$C,$A38,'II-a) Medidas a implementar'!D:D)+SUMIF('II-c) Reflexos'!$D:$D,$A38,'II-c) Reflexos'!F:F) -> 53.37781619 | C38: ='I-Cenário Base'!H38+SUMIF('II-a) Medidas a implementar'!$C:$C,$A38,'II-a) Medidas a implementar'!E:E)+SUMIF('II-c) Reflexos'!$D:$D,$A38,'II-c) Reflexos'!G:G) -> 25.053086 | D38: ='I-Cenário Base'!I38+SUMIF('II-a) Medidas a implementar'!$C:$C,$A38,'II-a) Medidas a implementar'!F:F)+SUMIF('II-c) Reflexos'!$D:$D,$A38,'II-c) Reflexos'!H:H) -> 26.35948561 | E38: ='I-Cenário Base'!J38+SUMIF('II-a) Medidas a implementar'!$C:$C,$A38,'II-a) Medidas a implementar'!G:G)+SUMIF('II-c) Reflexos'!$D:$D,$A38,'II-c) Reflexos'!I:I) -> 27.69435443 | F38: ='I-Cenário Base'!K38+SUMIF('II-a) Medidas a implementar'!$C:$C,$A38,'II-a) Medidas a implementar'!H:H)+SUMIF('II-c) Reflexos'!$D:$D,$A38,'II-c) Reflexos'!J:J) -> 29.00127519 | G38: ='I-Cenário Base'!L38+SUMIF('II-a) Medidas a implementar'!$C:$C,$A38,'II-a) Medidas a implementar'!I:I)+SUMIF('II-c) Reflexos'!$D:$D,$A38,'II-c) Reflexos'!K:K) -> 30.37423982 | H38: ='I-Cenário Base'!M38+SUMIF('II-a) Medidas a implementar'!$C:$C,$A38,'II-a) Medidas a implementar'!J:J)+SUMIF('II-c) Reflexos'!$D:$D,$A38,'II-c) Reflexos'!L:L) -> 31.81674233 | I38: ='I-Cenário Base'!N38+SUMIF('II-a) Medidas a implementar'!$C:$C,$A38,'II-a) Medidas a implementar'!K:K)+SUMIF('II-c) Reflexos'!$D:$D,$A38,'II-c) Reflexos'!M:M) -> 33.33246686 | J38: ='I-Cenário Base'!O38+SUMIF('II-a) Medidas a implementar'!$C:$C,$A38,'II-a) Medidas a implementar'!L:L)+SUMIF('II-c) Reflexos'!$D:$D,$A38,'II-c) Reflexos'!N:N) -> 34.92529809 | K38: ='I-Cenário Base'!P38+SUMIF('II-a) Medidas a implementar'!$C:$C,$A38,'II-a) Medidas a implementar'!M:M)+SUMIF('II-c) Reflexos'!$D:$D,$A38,'II-c) Reflexos'!O:O) -> 36.59933243 | L38: ='I-Cenário Base'!Q38+SUMIF('II-a) Medidas a implementar'!$C:$C,$A38,'II-a) Medidas a implementar'!N:N)+SUMIF('II-c) Reflexos'!$D:$D,$A38,'II-c) Reflexos'!P:P) -> 38.3588897
A39: Transferências de Capital (XIII) | B39: ='I-Cenário Base'!G39+SUMIF('II-a) Medidas a implementar'!$C:$C,$A39,'II-a) Medidas a implementar'!D:D)+SUMIF('II-c) Reflexos'!$D:$D,$A39,'II-c) Reflexos'!F:F) -> 382.4831952 | C39: ='I-Cenário Base'!H39+SUMIF('II-a) Medidas a implementar'!$C:$C,$A39,'II-a) Medidas a implementar'!E:E)+SUMIF('II-c) Reflexos'!$D:$D,$A39,'II-c) Reflexos'!G:G) -> 979.2856141 | D39: ='I-Cenário Base'!I39+SUMIF('II-a) Medidas a implementar'!$C:$C,$A39,'II-a) Medidas a implementar'!F:F)+SUMIF('II-c) Reflexos'!$D:$D,$A39,'II-c) Reflexos'!H:H) -> 1008.664182 | E39: ='I-Cenário Base'!J39+SUMIF('II-a) Medidas a implementar'!$C:$C,$A39,'II-a) Medidas a implementar'!G:G)+SUMIF('II-c) Reflexos'!$D:$D,$A39,'II-c) Reflexos'!I:I) -> 1038.924108 | F39: ='I-Cenário Base'!K39+SUMIF('II-a) Medidas a implementar'!$C:$C,$A39,'II-a) Medidas a implementar'!H:H)+SUMIF('II-c) Reflexos'!$D:$D,$A39,'II-c) Reflexos'!J:J) -> 1070.091831 | G39: ='I-Cenário Base'!L39+SUMIF('II-a) Medidas a implementar'!$C:$C,$A39,'II-a) Medidas a implementar'!I:I)+SUMIF('II-c) Reflexos'!$D:$D,$A39,'II-c) Reflexos'!K:K) -> 1102.194586 | H39: ='I-Cenário Base'!M39+SUMIF('II-a) Medidas a implementar'!$C:$C,$A39,'II-a) Medidas a implementar'!J:J)+SUMIF('II-c) Reflexos'!$D:$D,$A39,'II-c) Reflexos'!L:L) -> 1135.260424 | I39: ='I-Cenário Base'!N39+SUMIF('II-a) Medidas a implementar'!$C:$C,$A39,'II-a) Medidas a implementar'!K:K)+SUMIF('II-c) Reflexos'!$D:$D,$A39,'II-c) Reflexos'!M:M) -> 1169.318236 | J39: ='I-Cenário Base'!O39+SUMIF('II-a) Medidas a implementar'!$C:$C,$A39,'II-a) Medidas a implementar'!L:L)+SUMIF('II-c) Reflexos'!$D:$D,$A39,'II-c) Reflexos'!N:N) -> 1204.397784 | K39: ='I-Cenário Base'!P39+SUMIF('II-a) Medidas a implementar'!$C:$C,$A39,'II-a) Medidas a implementar'!M:M)+SUMIF('II-c) Reflexos'!$D:$D,$A39,'II-c) Reflexos'!O:O) -> 1240.529717 | L39: ='I-Cenário Base'!Q39+SUMIF('II-a) Medidas a implementar'!$C:$C,$A39,'II-a) Medidas a implementar'!N:N)+SUMIF('II-c) Reflexos'!$D:$D,$A39,'II-c) Reflexos'!P:P) -> 1277.745609
A40: Outras Receitas de Capital (XIV) | B40: =SUM(B41:B42) -> 2818.644575 | C40: =SUM(C41:C42) -> 1731.381146 | D40: 857.96 | E40: 858.9488 | F40: 447.467264 | G40: 36.01628192 | H40: 37.09677038 | I40: 38.20967349 | J40: 39.35596369 | K40: =SUM(K41:K42) -> 40.5366426 | L40: =SUM(L41:L42) -> 41.75274188
A41: Outras Receitas de Capital Não Primárias (f) | B41: ='I-Cenário Base'!G41+SUMIF('II-a) Medidas a implementar'!$C:$C,$A41,'II-a) Medidas a implementar'!D:D)+SUMIF('II-c) Reflexos'!$D:$D,$A41,'II-c) Reflexos'!F:F) -> 0 | C41: ='I-Cenário Base'!H41+SUMIF('II-a) Medidas a implementar'!$C:$C,$A41,'II-a) Medidas a implementar'!E:E)+SUMIF('II-c) Reflexos'!$D:$D,$A41,'II-c) Reflexos'!G:G) -> 0 | D41: ='I-Cenário Base'!I41+SUMIF('II-a) Medidas a implementar'!$C:$C,$A41,'II-a) Medidas a implementar'!F:F)+SUMIF('II-c) Reflexos'!$D:$D,$A41,'II-c) Reflexos'!H:H) -> 0 | E41: ='I-Cenário Base'!J41+SUMIF('II-a) Medidas a implementar'!$C:$C,$A41,'II-a) Medidas a implementar'!G:G)+SUMIF('II-c) Reflexos'!$D:$D,$A41,'II-c) Reflexos'!I:I) -> 0 | F41: ='I-Cenário Base'!K41+SUMIF('II-a) Medidas a implementar'!$C:$C,$A41,'II-a) Medidas a implementar'!H:H)+SUMIF('II-c) Reflexos'!$D:$D,$A41,'II-c) Reflexos'!J:J) -> 0 | G41: ='I-Cenário Base'!L41+SUMIF('II-a) Medidas a implementar'!$C:$C,$A41,'II-a) Medidas a implementar'!I:I)+SUMIF('II-c) Reflexos'!$D:$D,$A41,'II-c) Reflexos'!K:K) -> 0 | H41: ='I-Cenário Base'!M41+SUMIF('II-a) Medidas a implementar'!$C:$C,$A41,'II-a) Medidas a implementar'!J:J)+SUMIF('II-c) Reflexos'!$D:$D,$A41,'II-c) Reflexos'!L:L) -> 0 | I41: ='I-Cenário Base'!N41+SUMIF('II-a) Medidas a implementar'!$C:$C,$A41,'II-a) Medidas a implementar'!K:K)+SUMIF('II-c) Reflexos'!$D:$D,$A41,'II-c) Reflexos'!M:M) -> 0 | J41: ='I-Cenário Base'!O41+SUMIF('II-a) Medidas a implementar'!$C:$C,$A41,'II-a) Medidas a implementar'!L:L)+SUMIF('II-c) Reflexos'!$D:$D,$A41,'II-c) Reflexos'!N:N) -> 0 | K41: ='I-Cenário Base'!P41+SUMIF('II-a) Medidas a implementar'!$C:$C,$A41,'II-a) Medidas a implementar'!M:M)+SUMIF('II-c) Reflexos'!$D:$D,$A41,'II-c) Reflexos'!O:O) -> 0 | L41: ='I-Cenário Base'!Q41+SUMIF('II-a) Medidas a implementar'!$C:$C,$A41,'II-a) Medidas a implementar'!N:N)+SUMIF('II-c) Reflexos'!$D:$D,$A41,'II-c) Reflexos'!P:P) -> 0
A42: Outras Receitas de Capital Primárias | B42: ='I-Cenário Base'!G42+SUMIF('II-a) Medidas a implementar'!$C:$C,$A42,'II-a) Medidas a implementar'!D:D)+SUMIF('II-c) Reflexos'!$D:$D,$A42,'II-c) Reflexos'!F:F) -> 2818.644575 | C42: ='I-Cenário Base'!H42+SUMIF('II-a) Medidas a implementar'!$C:$C,$A42,'II-a) Medidas a implementar'!E:E)+SUMIF('II-c) Reflexos'!$D:$D,$A42,'II-c) Reflexos'!G:G) -> 1731.381146 | D42: ='I-Cenário Base'!I42+SUMIF('II-a) Medidas a implementar'!$C:$C,$A42,'II-a) Medidas a implementar'!F:F)+SUMIF('II-c) Reflexos'!$D:$D,$A42,'II-c) Reflexos'!H:H) -> 857.96 | E42: ='I-Cenário Base'!J42+SUMIF('II-a) Medidas a implementar'!$C:$C,$A42,'II-a) Medidas a implementar'!G:G)+SUMIF('II-c) Reflexos'!$D:$D,$A42,'II-c) Reflexos'!I:I) -> 858.9488 | F42: ='I-Cenário Base'!K42+SUMIF('II-a) Medidas a implementar'!$C:$C,$A42,'II-a) Medidas a implementar'!H:H)+SUMIF('II-c) Reflexos'!$D:$D,$A42,'II-c) Reflexos'!J:J) -> 447.467264 | G42: ='I-Cenário Base'!L42+SUMIF('II-a) Medidas a implementar'!$C:$C,$A42,'II-a) Medidas a implementar'!I:I)+SUMIF('II-c) Reflexos'!$D:$D,$A42,'II-c) Reflexos'!K:K) -> 36.01628192 | H42: ='I-Cenário Base'!M42+SUMIF('II-a) Medidas a implementar'!$C:$C,$A42,'II-a) Medidas a implementar'!J:J)+SUMIF('II-c) Reflexos'!$D:$D,$A42,'II-c) Reflexos'!L:L) -> 37.09677038 | I42: ='I-Cenário Base'!N42+SUMIF('II-a) Medidas a implementar'!$C:$C,$A42,'II-a) Medidas a implementar'!K:K)+SUMIF('II-c) Reflexos'!$D:$D,$A42,'II-c) Reflexos'!M:M) -> 38.20967349 | J42: ='I-Cenário Base'!O42+SUMIF('II-a) Medidas a implementar'!$C:$C,$A42,'II-a) Medidas a implementar'!L:L)+SUMIF('II-c) Reflexos'!$D:$D,$A42,'II-c) Reflexos'!N:N) -> 39.35596369 | K42: ='I-Cenário Base'!P42+SUMIF('II-a) Medidas a implementar'!$C:$C,$A42,'II-a) Medidas a implementar'!M:M)+SUMIF('II-c) Reflexos'!$D:$D,$A42,'II-c) Reflexos'!O:O) -> 40.5366426 | L42: ='I-Cenário Base'!Q42+SUMIF('II-a) Medidas a implementar'!$C:$C,$A42,'II-a) Medidas a implementar'!N:N)+SUMIF('II-c) Reflexos'!$D:$D,$A42,'II-c) Reflexos'!P:P) -> 41.75274188
A43: Receitas Primárias de Capital (XV) = (IX-X-XI-e-f) | B43: =B33-B34-B35-B37-B41 -> 3254.505587 | C43: =C33-C34-C35-C37-C41 -> 2735.719846 | D43: 1892.983668 | E43: 1925.567262 | F43: 1546.56037 | G43: 1168.585108 | H43: 1204.173936 | I43: 1240.860377 | J43: 1278.679045 | K43: =K33-K34-K35-K37-K41 -> 1317.665692 | L43: =L33-L34-L35-L37-L41 -> 1357.85724
A44: RECEITA PRIMÁRIA TOTAL (XVI) = (VIII+XV) | B44: =B32+B43 -> 121354.7882 | C44: =C32+C43 -> 129750.8627 | D44: 137619.7561 | E44: 147308.5229 | F44: 151513.2368 | G44: 159491.5403 | H44: 168552.1847 | I44: 178112.655 | J44: 191097.636 | K44: =K32+K43 -> 198753.8215 | L44: =L32+L43 -> 210072.9938
A45: Despesa Orçamentária (XVII) = (XVIII+XXIII) | B45: =B46+B58 -> 124516.7131 | C45: 129837.4086 | D45: 140616.1322 | E45: 149622.4205 | F45: 215675.7779 | G45: 163401.4348 | H45: 171876.8565 | I45: 178862.9863 | J45: 187617.9895 | K45: 196840.3193 | L45: =L46+L58 -> 205650.8527
A46: Despesas Correntes (XVIII) = (XIX+XX+XXI) | B46: =B47+B52+B53 -> 113403.2887 | C46: =C47+C52+C53 -> 120976.9056 | D46: 128837.3037 | E46: 135611.905 | F46: 142616.825 | G46: 150206.6063 | H46: 157431.9583 | I46: 162902.3529 | J46: 170123.7523 | K46: =K47+K52+K53 -> 177502.0819 | L46: =L47+L52+L53 -> 187783.1453
A47: Pessoal e Encargos Sociais (XIX) | B47: =SUM(B48:B51) -> 61655.36055 | C47: =SUM(C48:C51) -> 65453.05392 | D47: 68517.90875 | E47: 71444.68601 | F47: 73612.07206 | G47: 77116.9244 | H47: 79877.2305 | I47: 81004.17734 | J47: 83451.79436 | K47: =SUM(K48:K51) -> 85844.87113 | L47: =SUM(L48:L51) -> 88387.32234
A48: Ativo | B48: ='I-Cenário Base'!G48+SUMIF('II-a) Medidas a implementar'!$C:$C,$A48,'II-a) Medidas a implementar'!D:D)+SUMIF('II-c) Reflexos'!$D:$D,$A48,'II-c) Reflexos'!F:F) -> 37302.10845 | C48: ='I-Cenário Base'!H48+SUMIF('II-a) Medidas a implementar'!$C:$C,$A48,'II-a) Medidas a implementar'!E:E)+SUMIF('II-c) Reflexos'!$D:$D,$A48,'II-c) Reflexos'!G:G) -> 40101.01404 | D48: ='I-Cenário Base'!I48+SUMIF('II-a) Medidas a implementar'!$C:$C,$A48,'II-a) Medidas a implementar'!F:F)+SUMIF('II-c) Reflexos'!$D:$D,$A48,'II-c) Reflexos'!H:H) -> 42216.05421 | E48: ='I-Cenário Base'!J48+SUMIF('II-a) Medidas a implementar'!$C:$C,$A48,'II-a) Medidas a implementar'!G:G)+SUMIF('II-c) Reflexos'!$D:$D,$A48,'II-c) Reflexos'!I:I) -> 44003.34039 | F48: ='I-Cenário Base'!K48+SUMIF('II-a) Medidas a implementar'!$C:$C,$A48,'II-a) Medidas a implementar'!H:H)+SUMIF('II-c) Reflexos'!$D:$D,$A48,'II-c) Reflexos'!J:J) -> 45149.03078 | G48: ='I-Cenário Base'!L48+SUMIF('II-a) Medidas a implementar'!$C:$C,$A48,'II-a) Medidas a implementar'!I:I)+SUMIF('II-c) Reflexos'!$D:$D,$A48,'II-c) Reflexos'!K:K) -> 47010.88725 | H48: ='I-Cenário Base'!M48+SUMIF('II-a) Medidas a implementar'!$C:$C,$A48,'II-a) Medidas a implementar'!J:J)+SUMIF('II-c) Reflexos'!$D:$D,$A48,'II-c) Reflexos'!L:L) -> 48308.20335 | I48: ='I-Cenário Base'!N48+SUMIF('II-a) Medidas a implementar'!$C:$C,$A48,'II-a) Medidas a implementar'!K:K)+SUMIF('II-c) Reflexos'!$D:$D,$A48,'II-c) Reflexos'!M:M) -> 49622.58828 | J48: ='I-Cenário Base'!O48+SUMIF('II-a) Medidas a implementar'!$C:$C,$A48,'II-a) Medidas a implementar'!L:L)+SUMIF('II-c) Reflexos'!$D:$D,$A48,'II-c) Reflexos'!N:N) -> 51025.49022 | K48: ='I-Cenário Base'!P48+SUMIF('II-a) Medidas a implementar'!$C:$C,$A48,'II-a) Medidas a implementar'!M:M)+SUMIF('II-c) Reflexos'!$D:$D,$A48,'II-c) Reflexos'!O:O) -> 52371.06262 | L48: ='I-Cenário Base'!Q48+SUMIF('II-a) Medidas a implementar'!$C:$C,$A48,'II-a) Medidas a implementar'!N:N)+SUMIF('II-c) Reflexos'!$D:$D,$A48,'II-c) Reflexos'!P:P) -> 53847.05743
A49: Inativos e Pensionistas | B49: ='I-Cenário Base'!G49+SUMIF('II-a) Medidas a implementar'!$C:$C,$A49,'II-a) Medidas a implementar'!D:D)+SUMIF('II-c) Reflexos'!$D:$D,$A49,'II-c) Reflexos'!F:F) -> 20505.34348 | C49: ='I-Cenário Base'!H49+SUMIF('II-a) Medidas a implementar'!$C:$C,$A49,'II-a) Medidas a implementar'!E:E)+SUMIF('II-c) Reflexos'!$D:$D,$A49,'II-c) Reflexos'!G:G) -> 23189.8147 | D49: ='I-Cenário Base'!I49+SUMIF('II-a) Medidas a implementar'!$C:$C,$A49,'II-a) Medidas a implementar'!F:F)+SUMIF('II-c) Reflexos'!$D:$D,$A49,'II-c) Reflexos'!H:H) -> 24183.24021 | E49: ='I-Cenário Base'!J49+SUMIF('II-a) Medidas a implementar'!$C:$C,$A49,'II-a) Medidas a implementar'!G:G)+SUMIF('II-c) Reflexos'!$D:$D,$A49,'II-c) Reflexos'!I:I) -> 25028.03007 | F49: ='I-Cenário Base'!K49+SUMIF('II-a) Medidas a implementar'!$C:$C,$A49,'II-a) Medidas a implementar'!H:H)+SUMIF('II-c) Reflexos'!$D:$D,$A49,'II-c) Reflexos'!J:J) -> 25816.93903 | G49: ='I-Cenário Base'!L49+SUMIF('II-a) Medidas a implementar'!$C:$C,$A49,'II-a) Medidas a implementar'!I:I)+SUMIF('II-c) Reflexos'!$D:$D,$A49,'II-c) Reflexos'!K:K) -> 27129.31268 | H49: ='I-Cenário Base'!M49+SUMIF('II-a) Medidas a implementar'!$C:$C,$A49,'II-a) Medidas a implementar'!J:J)+SUMIF('II-c) Reflexos'!$D:$D,$A49,'II-c) Reflexos'!L:L) -> 27990.609 | I49: ='I-Cenário Base'!N49+SUMIF('II-a) Medidas a implementar'!$C:$C,$A49,'II-a) Medidas a implementar'!K:K)+SUMIF('II-c) Reflexos'!$D:$D,$A49,'II-c) Reflexos'!M:M) -> 28847.86883 | J49: ='I-Cenário Base'!O49+SUMIF('II-a) Medidas a implementar'!$C:$C,$A49,'II-a) Medidas a implementar'!L:L)+SUMIF('II-c) Reflexos'!$D:$D,$A49,'II-c) Reflexos'!N:N) -> 29761.31393 | K49: ='I-Cenário Base'!P49+SUMIF('II-a) Medidas a implementar'!$C:$C,$A49,'II-a) Medidas a implementar'!M:M)+SUMIF('II-c) Reflexos'!$D:$D,$A49,'II-c) Reflexos'!O:O) -> 30702.18593 | L49: ='I-Cenário Base'!Q49+SUMIF('II-a) Medidas a implementar'!$C:$C,$A49,'II-a) Medidas a implementar'!N:N)+SUMIF('II-c) Reflexos'!$D:$D,$A49,'II-c) Reflexos'!P:P) -> 31671.03351
A50: Sentenças Judiciais - Pessoal | B50: ='I-Cenário Base'!G50+SUMIF('II-a) Medidas a implementar'!$C:$C,$A50,'II-a) Medidas a implementar'!D:D)+SUMIF('II-c) Reflexos'!$D:$D,$A50,'II-c) Reflexos'!F:F) -> 865.3267896 | C50: ='I-Cenário Base'!H50+SUMIF('II-a) Medidas a implementar'!$C:$C,$A50,'II-a) Medidas a implementar'!E:E)+SUMIF('II-c) Reflexos'!$D:$D,$A50,'II-c) Reflexos'!G:G) -> 510.2768858 | D50: ='I-Cenário Base'!I50+SUMIF('II-a) Medidas a implementar'!$C:$C,$A50,'II-a) Medidas a implementar'!F:F)+SUMIF('II-c) Reflexos'!$D:$D,$A50,'II-c) Reflexos'!H:H) -> 457.9435148 | E50: ='I-Cenário Base'!J50+SUMIF('II-a) Medidas a implementar'!$C:$C,$A50,'II-a) Medidas a implementar'!G:G)+SUMIF('II-c) Reflexos'!$D:$D,$A50,'II-c) Reflexos'!I:I) -> 587.3127683 | F50: ='I-Cenário Base'!K50+SUMIF('II-a) Medidas a implementar'!$C:$C,$A50,'II-a) Medidas a implementar'!H:H)+SUMIF('II-c) Reflexos'!$D:$D,$A50,'II-c) Reflexos'!J:J) -> 768.0812503 | G50: ='I-Cenário Base'!L50+SUMIF('II-a) Medidas a implementar'!$C:$C,$A50,'II-a) Medidas a implementar'!I:I)+SUMIF('II-c) Reflexos'!$D:$D,$A50,'II-c) Reflexos'!K:K) -> 1046.339763 | H50: ='I-Cenário Base'!M50+SUMIF('II-a) Medidas a implementar'!$C:$C,$A50,'II-a) Medidas a implementar'!J:J)+SUMIF('II-c) Reflexos'!$D:$D,$A50,'II-c) Reflexos'!L:L) -> 1597.41591 | I50: ='I-Cenário Base'!N50+SUMIF('II-a) Medidas a implementar'!$C:$C,$A50,'II-a) Medidas a implementar'!K:K)+SUMIF('II-c) Reflexos'!$D:$D,$A50,'II-c) Reflexos'!M:M) -> 501.8655765 | J50: ='I-Cenário Base'!O50+SUMIF('II-a) Medidas a implementar'!$C:$C,$A50,'II-a) Medidas a implementar'!L:L)+SUMIF('II-c) Reflexos'!$D:$D,$A50,'II-c) Reflexos'!N:N) -> 544.509203 | K50: ='I-Cenário Base'!P50+SUMIF('II-a) Medidas a implementar'!$C:$C,$A50,'II-a) Medidas a implementar'!M:M)+SUMIF('II-c) Reflexos'!$D:$D,$A50,'II-c) Reflexos'!O:O) -> 590.7767847 | L50: ='I-Cenário Base'!Q50+SUMIF('II-a) Medidas a implementar'!$C:$C,$A50,'II-a) Medidas a implementar'!N:N)+SUMIF('II-c) Reflexos'!$D:$D,$A50,'II-c) Reflexos'!P:P) -> 640.9763195
A51: Outras Despesas com Pessoal | B51: ='I-Cenário Base'!G51+SUMIF('II-a) Medidas a implementar'!$C:$C,$A51,'II-a) Medidas a implementar'!D:D)+SUMIF('II-c) Reflexos'!$D:$D,$A51,'II-c) Reflexos'!F:F) -> 2982.58184 | C51: ='I-Cenário Base'!H51+SUMIF('II-a) Medidas a implementar'!$C:$C,$A51,'II-a) Medidas a implementar'!E:E)+SUMIF('II-c) Reflexos'!$D:$D,$A51,'II-c) Reflexos'!G:G) -> 1651.948282 | D51: ='I-Cenário Base'!I51+SUMIF('II-a) Medidas a implementar'!$C:$C,$A51,'II-a) Medidas a implementar'!F:F)+SUMIF('II-c) Reflexos'!$D:$D,$A51,'II-c) Reflexos'!H:H) -> 1660.670807 | E51: ='I-Cenário Base'!J51+SUMIF('II-a) Medidas a implementar'!$C:$C,$A51,'II-a) Medidas a implementar'!G:G)+SUMIF('II-c) Reflexos'!$D:$D,$A51,'II-c) Reflexos'!I:I) -> 1826.002781 | F51: ='I-Cenário Base'!K51+SUMIF('II-a) Medidas a implementar'!$C:$C,$A51,'II-a) Medidas a implementar'!H:H)+SUMIF('II-c) Reflexos'!$D:$D,$A51,'II-c) Reflexos'!J:J) -> 1878.021001 | G51: ='I-Cenário Base'!L51+SUMIF('II-a) Medidas a implementar'!$C:$C,$A51,'II-a) Medidas a implementar'!I:I)+SUMIF('II-c) Reflexos'!$D:$D,$A51,'II-c) Reflexos'!K:K) -> 1930.384711 | H51: ='I-Cenário Base'!M51+SUMIF('II-a) Medidas a implementar'!$C:$C,$A51,'II-a) Medidas a implementar'!J:J)+SUMIF('II-c) Reflexos'!$D:$D,$A51,'II-c) Reflexos'!L:L) -> 1981.002234 | I51: ='I-Cenário Base'!N51+SUMIF('II-a) Medidas a implementar'!$C:$C,$A51,'II-a) Medidas a implementar'!K:K)+SUMIF('II-c) Reflexos'!$D:$D,$A51,'II-c) Reflexos'!M:M) -> 2031.854647 | J51: ='I-Cenário Base'!O51+SUMIF('II-a) Medidas a implementar'!$C:$C,$A51,'II-a) Medidas a implementar'!L:L)+SUMIF('II-c) Reflexos'!$D:$D,$A51,'II-c) Reflexos'!N:N) -> 2120.481003 | K51: ='I-Cenário Base'!P51+SUMIF('II-a) Medidas a implementar'!$C:$C,$A51,'II-a) Medidas a implementar'!M:M)+SUMIF('II-c) Reflexos'!$D:$D,$A51,'II-c) Reflexos'!O:O) -> 2180.845794 | L51: ='I-Cenário Base'!Q51+SUMIF('II-a) Medidas a implementar'!$C:$C,$A51,'II-a) Medidas a implementar'!N:N)+SUMIF('II-c) Reflexos'!$D:$D,$A51,'II-c) Reflexos'!P:P) -> 2228.255077
A52: Juros e Encargos da Dívida (XX) | B52: ='I-Cenário Base'!G52+SUMIF('II-a) Medidas a implementar'!$C:$C,$A52,'II-a) Medidas a implementar'!D:D)+SUMIF('II-c) Reflexos'!$D:$D,$A52,'II-c) Reflexos'!F:F) -> 1595.908652 | C52: ='I-Cenário Base'!H52+SUMIF('II-a) Medidas a implementar'!$C:$C,$A52,'II-a) Medidas a implementar'!E:E)+SUMIF('II-c) Reflexos'!$D:$D,$A52,'II-c) Reflexos'!G:G) -> 1907.279343 | D52: ='I-Cenário Base'!I52+SUMIF('II-a) Medidas a implementar'!$C:$C,$A52,'II-a) Medidas a implementar'!F:F)+SUMIF('II-c) Reflexos'!$D:$D,$A52,'II-c) Reflexos'!H:H) -> 2791.337708 | E52: ='I-Cenário Base'!J52+SUMIF('II-a) Medidas a implementar'!$C:$C,$A52,'II-a) Medidas a implementar'!G:G)+SUMIF('II-c) Reflexos'!$D:$D,$A52,'II-c) Reflexos'!I:I) -> 3293.830513 | F52: ='I-Cenário Base'!K52+SUMIF('II-a) Medidas a implementar'!$C:$C,$A52,'II-a) Medidas a implementar'!H:H)+SUMIF('II-c) Reflexos'!$D:$D,$A52,'II-c) Reflexos'!J:J) -> 3737.599732 | G52: ='I-Cenário Base'!L52+SUMIF('II-a) Medidas a implementar'!$C:$C,$A52,'II-a) Medidas a implementar'!I:I)+SUMIF('II-c) Reflexos'!$D:$D,$A52,'II-c) Reflexos'!K:K) -> 4049.762799 | H52: ='I-Cenário Base'!M52+SUMIF('II-a) Medidas a implementar'!$C:$C,$A52,'II-a) Medidas a implementar'!J:J)+SUMIF('II-c) Reflexos'!$D:$D,$A52,'II-c) Reflexos'!L:L) -> 4325.43168 | I52: ='I-Cenário Base'!N52+SUMIF('II-a) Medidas a implementar'!$C:$C,$A52,'II-a) Medidas a implementar'!K:K)+SUMIF('II-c) Reflexos'!$D:$D,$A52,'II-c) Reflexos'!M:M) -> 4570.291824 | J52: ='I-Cenário Base'!O52+SUMIF('II-a) Medidas a implementar'!$C:$C,$A52,'II-a) Medidas a implementar'!L:L)+SUMIF('II-c) Reflexos'!$D:$D,$A52,'II-c) Reflexos'!N:N) -> 4786.685494 | K52: ='I-Cenário Base'!P52+SUMIF('II-a) Medidas a implementar'!$C:$C,$A52,'II-a) Medidas a implementar'!M:M)+SUMIF('II-c) Reflexos'!$D:$D,$A52,'II-c) Reflexos'!O:O) -> 4976.102131 | L52: ='I-Cenário Base'!Q52+SUMIF('II-a) Medidas a implementar'!$C:$C,$A52,'II-a) Medidas a implementar'!N:N)+SUMIF('II-c) Reflexos'!$D:$D,$A52,'II-c) Reflexos'!P:P) -> 7343.249574
A53: Outras Despesas Correntes (XXI) | B53: =SUM(B54:B56) -> 50152.01948 | C53: =SUM(C54:C56) -> 53616.57236 | D53: =SUM(D54:D56) -> 57528.0572 | E53: 60873.38845 | F53: 65267.15317 | G53: 69039.91905 | H53: 73229.29615 | I53: 77327.88376 | J53: 81885.27242 | K53: =SUM(K54:K56) -> 86681.10866 | L53: =SUM(L54:L56) -> 92052.5734
A54: Transferências Constitucionais e Legais (g) | B54: ='I-Cenário Base'!G54+SUMIF('II-a) Medidas a implementar'!$C:$C,$A54,'II-a) Medidas a implementar'!D:D)+SUMIF('II-c) Reflexos'!$D:$D,$A54,'II-c) Reflexos'!F:F) -> 23759.67076 | C54: ='I-Cenário Base'!H54+SUMIF('II-a) Medidas a implementar'!$C:$C,$A54,'II-a) Medidas a implementar'!E:E)+SUMIF('II-c) Reflexos'!$D:$D,$A54,'II-c) Reflexos'!G:G) -> 25333.46387 | D54: ='I-Cenário Base'!I54+SUMIF('II-a) Medidas a implementar'!$C:$C,$A54,'II-a) Medidas a implementar'!F:F)+SUMIF('II-c) Reflexos'!$D:$D,$A54,'II-c) Reflexos'!H:H) -> 27211.90707 | E54: ='I-Cenário Base'!J54+SUMIF('II-a) Medidas a implementar'!$C:$C,$A54,'II-a) Medidas a implementar'!G:G)+SUMIF('II-c) Reflexos'!$D:$D,$A54,'II-c) Reflexos'!I:I) -> 28648.15094 | F54: ='I-Cenário Base'!K54+SUMIF('II-a) Medidas a implementar'!$C:$C,$A54,'II-a) Medidas a implementar'!H:H)+SUMIF('II-c) Reflexos'!$D:$D,$A54,'II-c) Reflexos'!J:J) -> 30979.87663 | G54: ='I-Cenário Base'!L54+SUMIF('II-a) Medidas a implementar'!$C:$C,$A54,'II-a) Medidas a implementar'!I:I)+SUMIF('II-c) Reflexos'!$D:$D,$A54,'II-c) Reflexos'!K:K) -> 32857.6476 | H54: ='I-Cenário Base'!M54+SUMIF('II-a) Medidas a implementar'!$C:$C,$A54,'II-a) Medidas a implementar'!J:J)+SUMIF('II-c) Reflexos'!$D:$D,$A54,'II-c) Reflexos'!L:L) -> 34934.90352 | I54: ='I-Cenário Base'!N54+SUMIF('II-a) Medidas a implementar'!$C:$C,$A54,'II-a) Medidas a implementar'!K:K)+SUMIF('II-c) Reflexos'!$D:$D,$A54,'II-c) Reflexos'!M:M) -> 37137.25434 | J54: ='I-Cenário Base'!O54+SUMIF('II-a) Medidas a implementar'!$C:$C,$A54,'II-a) Medidas a implementar'!L:L)+SUMIF('II-c) Reflexos'!$D:$D,$A54,'II-c) Reflexos'!N:N) -> 39480.12463 | K54: ='I-Cenário Base'!P54+SUMIF('II-a) Medidas a implementar'!$C:$C,$A54,'II-a) Medidas a implementar'!M:M)+SUMIF('II-c) Reflexos'!$D:$D,$A54,'II-c) Reflexos'!O:O) -> 41972.78027 | L54: ='I-Cenário Base'!Q54+SUMIF('II-a) Medidas a implementar'!$C:$C,$A54,'II-a) Medidas a implementar'!N:N)+SUMIF('II-c) Reflexos'!$D:$D,$A54,'II-c) Reflexos'!P:P) -> 44632.55415
A55: Sentenças Judiciais - Outras Correntes | B55: ='I-Cenário Base'!G55+SUMIF('II-a) Medidas a implementar'!$C:$C,$A55,'II-a) Medidas a implementar'!D:D)+SUMIF('II-c) Reflexos'!$D:$D,$A55,'II-c) Reflexos'!F:F) -> 507.0279512 | C55: ='I-Cenário Base'!H55+SUMIF('II-a) Medidas a implementar'!$C:$C,$A55,'II-a) Medidas a implementar'!E:E)+SUMIF('II-c) Reflexos'!$D:$D,$A55,'II-c) Reflexos'!G:G) -> 274.0631692 | D55: ='I-Cenário Base'!I55+SUMIF('II-a) Medidas a implementar'!$C:$C,$A55,'II-a) Medidas a implementar'!F:F)+SUMIF('II-c) Reflexos'!$D:$D,$A55,'II-c) Reflexos'!H:H) -> 271.6535137 | E55: ='I-Cenário Base'!J55+SUMIF('II-a) Medidas a implementar'!$C:$C,$A55,'II-a) Medidas a implementar'!G:G)+SUMIF('II-c) Reflexos'!$D:$D,$A55,'II-c) Reflexos'!I:I) -> 297.9313226 | F55: ='I-Cenário Base'!K55+SUMIF('II-a) Medidas a implementar'!$C:$C,$A55,'II-a) Medidas a implementar'!H:H)+SUMIF('II-c) Reflexos'!$D:$D,$A55,'II-c) Reflexos'!J:J) -> 332.4486459 | G55: ='I-Cenário Base'!L55+SUMIF('II-a) Medidas a implementar'!$C:$C,$A55,'II-a) Medidas a implementar'!I:I)+SUMIF('II-c) Reflexos'!$D:$D,$A55,'II-c) Reflexos'!K:K) -> 382.4424825 | H55: ='I-Cenário Base'!M55+SUMIF('II-a) Medidas a implementar'!$C:$C,$A55,'II-a) Medidas a implementar'!J:J)+SUMIF('II-c) Reflexos'!$D:$D,$A55,'II-c) Reflexos'!L:L) -> 475.4359851 | I55: ='I-Cenário Base'!N55+SUMIF('II-a) Medidas a implementar'!$C:$C,$A55,'II-a) Medidas a implementar'!K:K)+SUMIF('II-c) Reflexos'!$D:$D,$A55,'II-c) Reflexos'!M:M) -> 310.2445662 | J55: ='I-Cenário Base'!O55+SUMIF('II-a) Medidas a implementar'!$C:$C,$A55,'II-a) Medidas a implementar'!L:L)+SUMIF('II-c) Reflexos'!$D:$D,$A55,'II-c) Reflexos'!N:N) -> 324.0224129 | K55: ='I-Cenário Base'!P55+SUMIF('II-a) Medidas a implementar'!$C:$C,$A55,'II-a) Medidas a implementar'!M:M)+SUMIF('II-c) Reflexos'!$D:$D,$A55,'II-c) Reflexos'!O:O) -> 338.4461344 | L55: ='I-Cenário Base'!Q55+SUMIF('II-a) Medidas a implementar'!$C:$C,$A55,'II-a) Medidas a implementar'!N:N)+SUMIF('II-c) Reflexos'!$D:$D,$A55,'II-c) Reflexos'!P:P) -> 353.7479982
A56: Demais Despesas Correntes | B56: ='I-Cenário Base'!G56+SUMIF('II-a) Medidas a implementar'!$C:$C,$A56,'II-a) Medidas a implementar'!D:D)+SUMIF('II-c) Reflexos'!$D:$D,$A56,'II-c) Reflexos'!F:F) -> 25885.32078 | C56: ='I-Cenário Base'!H56+SUMIF('II-a) Medidas a implementar'!$C:$C,$A56,'II-a) Medidas a implementar'!E:E)+SUMIF('II-c) Reflexos'!$D:$D,$A56,'II-c) Reflexos'!G:G) -> 28009.04532 | D56: ='I-Cenário Base'!I56+SUMIF('II-a) Medidas a implementar'!$C:$C,$A56,'II-a) Medidas a implementar'!F:F)+SUMIF('II-c) Reflexos'!$D:$D,$A56,'II-c) Reflexos'!H:H) -> 30044.49661 | E56: ='I-Cenário Base'!J56+SUMIF('II-a) Medidas a implementar'!$C:$C,$A56,'II-a) Medidas a implementar'!G:G)+SUMIF('II-c) Reflexos'!$D:$D,$A56,'II-c) Reflexos'!I:I) -> 31927.30618 | F56: ='I-Cenário Base'!K56+SUMIF('II-a) Medidas a implementar'!$C:$C,$A56,'II-a) Medidas a implementar'!H:H)+SUMIF('II-c) Reflexos'!$D:$D,$A56,'II-c) Reflexos'!J:J) -> 33954.8279 | G56: ='I-Cenário Base'!L56+SUMIF('II-a) Medidas a implementar'!$C:$C,$A56,'II-a) Medidas a implementar'!I:I)+SUMIF('II-c) Reflexos'!$D:$D,$A56,'II-c) Reflexos'!K:K) -> 35799.82897 | H56: ='I-Cenário Base'!M56+SUMIF('II-a) Medidas a implementar'!$C:$C,$A56,'II-a) Medidas a implementar'!J:J)+SUMIF('II-c) Reflexos'!$D:$D,$A56,'II-c) Reflexos'!L:L) -> 37818.95665 | I56: ='I-Cenário Base'!N56+SUMIF('II-a) Medidas a implementar'!$C:$C,$A56,'II-a) Medidas a implementar'!K:K)+SUMIF('II-c) Reflexos'!$D:$D,$A56,'II-c) Reflexos'!M:M) -> 39880.38486 | J56: ='I-Cenário Base'!O56+SUMIF('II-a) Medidas a implementar'!$C:$C,$A56,'II-a) Medidas a implementar'!L:L)+SUMIF('II-c) Reflexos'!$D:$D,$A56,'II-c) Reflexos'!N:N) -> 42081.12538 | K56: ='I-Cenário Base'!P56+SUMIF('II-a) Medidas a implementar'!$C:$C,$A56,'II-a) Medidas a implementar'!M:M)+SUMIF('II-c) Reflexos'!$D:$D,$A56,'II-c) Reflexos'!O:O) -> 44369.88225 | L56: ='I-Cenário Base'!Q56+SUMIF('II-a) Medidas a implementar'!$C:$C,$A56,'II-a) Medidas a implementar'!N:N)+SUMIF('II-c) Reflexos'!$D:$D,$A56,'II-c) Reflexos'!P:P) -> 47066.27125
A57: Despesas Primárias Correntes (XXII) = (XVIII-XX-h) | B57: =B46-B52 -> 111807.38 | C57: 119069.6263 | D57: 126045.9659 | E57: 132318.0745 | F57: 138879.2252 | G57: 146156.8435 | H57: 153106.5267 | I57: 158332.0611 | J57: 165337.0668 | K57: 172525.9798 | L57: =L46-L52 -> 180439.8957
A58: Despesas de Capital (XXIII) = (XXIV+XXV+XXVI) | B58: =B59+B62+B66 -> 11113.4244 | C58: =C59+C62+C66 -> 8860.502955 | D58: 11778.82854 | E58: 14010.51552 | F58: 73058.95297 | G58: 13194.82857 | H58: 14444.89812 | I58: 15960.63334 | J58: 17494.23721 | K58: =K59+K62+K66 -> 19338.2374 | L58: =L59+L62+L66 -> 17867.70742
A59: Investimentos (XXIV) | B59: =SUM(B60:B61) -> 7220.163278 | C59: =SUM(C60:C61) -> 6038.080838 | D59: 6791.368831 | E59: 7641.122057 | F59: 7717.24923 | G59: 7409.22932 | H59: 7795.650358 | I59: 8262.131809 | J59: 8711.196796 | K59: =SUM(K60:K61) -> 9261.437511 | L59: =SUM(L60:L61) -> 9983.970796
A60: Sentenças Judiciais - Investimentos | B60: ='I-Cenário Base'!G60+SUMIF('II-a) Medidas a implementar'!$C:$C,$A60,'II-a) Medidas a implementar'!D:D)+SUMIF('II-c) Reflexos'!$D:$D,$A60,'II-c) Reflexos'!F:F) -> 0.72244967 | C60: ='I-Cenário Base'!H60+SUMIF('II-a) Medidas a implementar'!$C:$C,$A60,'II-a) Medidas a implementar'!E:E)+SUMIF('II-c) Reflexos'!$D:$D,$A60,'II-c) Reflexos'!G:G) -> 3.0791145 | D60: ='I-Cenário Base'!I60+SUMIF('II-a) Medidas a implementar'!$C:$C,$A60,'II-a) Medidas a implementar'!F:F)+SUMIF('II-c) Reflexos'!$D:$D,$A60,'II-c) Reflexos'!H:H) -> 2.91962129 | E60: ='I-Cenário Base'!J60+SUMIF('II-a) Medidas a implementar'!$C:$C,$A60,'II-a) Medidas a implementar'!G:G)+SUMIF('II-c) Reflexos'!$D:$D,$A60,'II-c) Reflexos'!I:I) -> 3.43770122 | F60: ='I-Cenário Base'!K60+SUMIF('II-a) Medidas a implementar'!$C:$C,$A60,'II-a) Medidas a implementar'!H:H)+SUMIF('II-c) Reflexos'!$D:$D,$A60,'II-c) Reflexos'!J:J) -> 4.14824148 | G60: ='I-Cenário Base'!L60+SUMIF('II-a) Medidas a implementar'!$C:$C,$A60,'II-a) Medidas a implementar'!I:I)+SUMIF('II-c) Reflexos'!$D:$D,$A60,'II-c) Reflexos'!K:K) -> 5.22283719 | H60: ='I-Cenário Base'!M60+SUMIF('II-a) Medidas a implementar'!$C:$C,$A60,'II-a) Medidas a implementar'!J:J)+SUMIF('II-c) Reflexos'!$D:$D,$A60,'II-c) Reflexos'!L:L) -> 7.31438306 | I60: ='I-Cenário Base'!N60+SUMIF('II-a) Medidas a implementar'!$C:$C,$A60,'II-a) Medidas a implementar'!K:K)+SUMIF('II-c) Reflexos'!$D:$D,$A60,'II-c) Reflexos'!M:M) -> 3.27641474 | J60: ='I-Cenário Base'!O60+SUMIF('II-a) Medidas a implementar'!$C:$C,$A60,'II-a) Medidas a implementar'!L:L)+SUMIF('II-c) Reflexos'!$D:$D,$A60,'II-c) Reflexos'!N:N) -> 3.47738853 | K60: ='I-Cenário Base'!P60+SUMIF('II-a) Medidas a implementar'!$C:$C,$A60,'II-a) Medidas a implementar'!M:M)+SUMIF('II-c) Reflexos'!$D:$D,$A60,'II-c) Reflexos'!O:O) -> 3.69311945 | L60: ='I-Cenário Base'!Q60+SUMIF('II-a) Medidas a implementar'!$C:$C,$A60,'II-a) Medidas a implementar'!N:N)+SUMIF('II-c) Reflexos'!$D:$D,$A60,'II-c) Reflexos'!P:P) -> 3.92479207
A61: Demais Investimentos | B61: ='I-Cenário Base'!G61+SUMIF('II-a) Medidas a implementar'!$C:$C,$A61,'II-a) Medidas a implementar'!D:D)+SUMIF('II-c) Reflexos'!$D:$D,$A61,'II-c) Reflexos'!F:F) -> 7219.440829 | C61: ='I-Cenário Base'!H61+SUMIF('II-a) Medidas a implementar'!$C:$C,$A61,'II-a) Medidas a implementar'!E:E)+SUMIF('II-c) Reflexos'!$D:$D,$A61,'II-c) Reflexos'!G:G) -> 6035.001723 | D61: ='I-Cenário Base'!I61+SUMIF('II-a) Medidas a implementar'!$C:$C,$A61,'II-a) Medidas a implementar'!F:F)+SUMIF('II-c) Reflexos'!$D:$D,$A61,'II-c) Reflexos'!H:H) -> 6788.449209 | E61: ='I-Cenário Base'!J61+SUMIF('II-a) Medidas a implementar'!$C:$C,$A61,'II-a) Medidas a implementar'!G:G)+SUMIF('II-c) Reflexos'!$D:$D,$A61,'II-c) Reflexos'!I:I) -> 7637.684356 | F61: ='I-Cenário Base'!K61+SUMIF('II-a) Medidas a implementar'!$C:$C,$A61,'II-a) Medidas a implementar'!H:H)+SUMIF('II-c) Reflexos'!$D:$D,$A61,'II-c) Reflexos'!J:J) -> 7713.100989 | G61: ='I-Cenário Base'!L61+SUMIF('II-a) Medidas a implementar'!$C:$C,$A61,'II-a) Medidas a implementar'!I:I)+SUMIF('II-c) Reflexos'!$D:$D,$A61,'II-c) Reflexos'!K:K) -> 7404.006483 | H61: ='I-Cenário Base'!M61+SUMIF('II-a) Medidas a implementar'!$C:$C,$A61,'II-a) Medidas a implementar'!J:J)+SUMIF('II-c) Reflexos'!$D:$D,$A61,'II-c) Reflexos'!L:L) -> 7788.335975 | I61: ='I-Cenário Base'!N61+SUMIF('II-a) Medidas a implementar'!$C:$C,$A61,'II-a) Medidas a implementar'!K:K)+SUMIF('II-c) Reflexos'!$D:$D,$A61,'II-c) Reflexos'!M:M) -> 8258.855394 | J61: ='I-Cenário Base'!O61+SUMIF('II-a) Medidas a implementar'!$C:$C,$A61,'II-a) Medidas a implementar'!L:L)+SUMIF('II-c) Reflexos'!$D:$D,$A61,'II-c) Reflexos'!N:N) -> 8707.719407 | K61: ='I-Cenário Base'!P61+SUMIF('II-a) Medidas a implementar'!$C:$C,$A61,'II-a) Medidas a implementar'!M:M)+SUMIF('II-c) Reflexos'!$D:$D,$A61,'II-c) Reflexos'!O:O) -> 9257.744392 | L61: ='I-Cenário Base'!Q61+SUMIF('II-a) Medidas a implementar'!$C:$C,$A61,'II-a) Medidas a implementar'!N:N)+SUMIF('II-c) Reflexos'!$D:$D,$A61,'II-c) Reflexos'!P:P) -> 9980.046004
A62: Inversões Financeiras (XXV) | B62: =SUM(B63:B65) -> 1802.238969 | C62: =SUM(C63:C65) -> 1957.13189 | D62: 2546.385379 | E62: 2445.125572 | F62: 2300.812549 | G62: 733.7255304 | H62: 858.7372963 | I62: 884.4994152 | J62: 911.0343976 | K62: =SUM(K63:K65) -> 1077.243792 | L62: =SUM(L63:L65) -> 702.9204476
A63: Inversões Financeiras Não Primárias (h) 1) | B63: ='I-Cenário Base'!G63+SUMIF('II-a) Medidas a implementar'!$C:$C,$A63,'II-a) Medidas a implementar'!D:D)+SUMIF('II-c) Reflexos'!$D:$D,$A63,'II-c) Reflexos'!F:F) -> 9.67935434 | C63: ='I-Cenário Base'!H63+SUMIF('II-a) Medidas a implementar'!$C:$C,$A63,'II-a) Medidas a implementar'!E:E)+SUMIF('II-c) Reflexos'!$D:$D,$A63,'II-c) Reflexos'!G:G) -> 28.949 | D63: ='I-Cenário Base'!I63+SUMIF('II-a) Medidas a implementar'!$C:$C,$A63,'II-a) Medidas a implementar'!F:F)+SUMIF('II-c) Reflexos'!$D:$D,$A63,'II-c) Reflexos'!H:H) -> 29.963965 | E63: ='I-Cenário Base'!J63+SUMIF('II-a) Medidas a implementar'!$C:$C,$A63,'II-a) Medidas a implementar'!G:G)+SUMIF('II-c) Reflexos'!$D:$D,$A63,'II-c) Reflexos'!I:I) -> 31.009754 | F63: ='I-Cenário Base'!K63+SUMIF('II-a) Medidas a implementar'!$C:$C,$A63,'II-a) Medidas a implementar'!H:H)+SUMIF('II-c) Reflexos'!$D:$D,$A63,'II-c) Reflexos'!J:J) -> 31.94004662 | G63: ='I-Cenário Base'!L63+SUMIF('II-a) Medidas a implementar'!$C:$C,$A63,'II-a) Medidas a implementar'!I:I)+SUMIF('II-c) Reflexos'!$D:$D,$A63,'II-c) Reflexos'!K:K) -> 32.89824802 | H63: ='I-Cenário Base'!M63+SUMIF('II-a) Medidas a implementar'!$C:$C,$A63,'II-a) Medidas a implementar'!J:J)+SUMIF('II-c) Reflexos'!$D:$D,$A63,'II-c) Reflexos'!L:L) -> 33.88519546 | I63: ='I-Cenário Base'!N63+SUMIF('II-a) Medidas a implementar'!$C:$C,$A63,'II-a) Medidas a implementar'!K:K)+SUMIF('II-c) Reflexos'!$D:$D,$A63,'II-c) Reflexos'!M:M) -> 34.90175132 | J63: ='I-Cenário Base'!O63+SUMIF('II-a) Medidas a implementar'!$C:$C,$A63,'II-a) Medidas a implementar'!L:L)+SUMIF('II-c) Reflexos'!$D:$D,$A63,'II-c) Reflexos'!N:N) -> 35.94880386 | K63: ='I-Cenário Base'!P63+SUMIF('II-a) Medidas a implementar'!$C:$C,$A63,'II-a) Medidas a implementar'!M:M)+SUMIF('II-c) Reflexos'!$D:$D,$A63,'II-c) Reflexos'!O:O) -> 37.02726798 | L63: ='I-Cenário Base'!Q63+SUMIF('II-a) Medidas a implementar'!$C:$C,$A63,'II-a) Medidas a implementar'!N:N)+SUMIF('II-c) Reflexos'!$D:$D,$A63,'II-c) Reflexos'!P:P) -> 38.13808602
A64: Sentenças Judiciais - Inversões | B64: ='I-Cenário Base'!G64+SUMIF('II-a) Medidas a implementar'!$C:$C,$A64,'II-a) Medidas a implementar'!D:D)+SUMIF('II-c) Reflexos'!$D:$D,$A64,'II-c) Reflexos'!F:F) -> 0 | C64: ='I-Cenário Base'!H64+SUMIF('II-a) Medidas a implementar'!$C:$C,$A64,'II-a) Medidas a implementar'!E:E)+SUMIF('II-c) Reflexos'!$D:$D,$A64,'II-c) Reflexos'!G:G) -> 0 | D64: ='I-Cenário Base'!I64+SUMIF('II-a) Medidas a implementar'!$C:$C,$A64,'II-a) Medidas a implementar'!F:F)+SUMIF('II-c) Reflexos'!$D:$D,$A64,'II-c) Reflexos'!H:H) -> 0 | E64: ='I-Cenário Base'!J64+SUMIF('II-a) Medidas a implementar'!$C:$C,$A64,'II-a) Medidas a implementar'!G:G)+SUMIF('II-c) Reflexos'!$D:$D,$A64,'II-c) Reflexos'!I:I) -> 0 | F64: ='I-Cenário Base'!K64+SUMIF('II-a) Medidas a implementar'!$C:$C,$A64,'II-a) Medidas a implementar'!H:H)+SUMIF('II-c) Reflexos'!$D:$D,$A64,'II-c) Reflexos'!J:J) -> 0 | G64: ='I-Cenário Base'!L64+SUMIF('II-a) Medidas a implementar'!$C:$C,$A64,'II-a) Medidas a implementar'!I:I)+SUMIF('II-c) Reflexos'!$D:$D,$A64,'II-c) Reflexos'!K:K) -> 0 | H64: ='I-Cenário Base'!M64+SUMIF('II-a) Medidas a implementar'!$C:$C,$A64,'II-a) Medidas a implementar'!J:J)+SUMIF('II-c) Reflexos'!$D:$D,$A64,'II-c) Reflexos'!L:L) -> 0 | I64: ='I-Cenário Base'!N64+SUMIF('II-a) Medidas a implementar'!$C:$C,$A64,'II-a) Medidas a implementar'!K:K)+SUMIF('II-c) Reflexos'!$D:$D,$A64,'II-c) Reflexos'!M:M) -> 0 | J64: ='I-Cenário Base'!O64+SUMIF('II-a) Medidas a implementar'!$C:$C,$A64,'II-a) Medidas a implementar'!L:L)+SUMIF('II-c) Reflexos'!$D:$D,$A64,'II-c) Reflexos'!N:N) -> 0 | K64: ='I-Cenário Base'!P64+SUMIF('II-a) Medidas a implementar'!$C:$C,$A64,'II-a) Medidas a implementar'!M:M)+SUMIF('II-c) Reflexos'!$D:$D,$A64,'II-c) Reflexos'!O:O) -> 0 | L64: ='I-Cenário Base'!Q64+SUMIF('II-a) Medidas a implementar'!$C:$C,$A64,'II-a) Medidas a implementar'!N:N)+SUMIF('II-c) Reflexos'!$D:$D,$A64,'II-c) Reflexos'!P:P) -> 0
A65: Demais Inversões Financeiras Primárias | B65: ='I-Cenário Base'!G65+SUMIF('II-a) Medidas a implementar'!$C:$C,$A65,'II-a) Medidas a implementar'!D:D)+SUMIF('II-c) Reflexos'!$D:$D,$A65,'II-c) Reflexos'!F:F) -> 1792.559615 | C65: ='I-Cenário Base'!H65+SUMIF('II-a) Medidas a implementar'!$C:$C,$A65,'II-a) Medidas a implementar'!E:E)+SUMIF('II-c) Reflexos'!$D:$D,$A65,'II-c) Reflexos'!G:G) -> 1928.18289 | D65: ='I-Cenário Base'!I65+SUMIF('II-a) Medidas a implementar'!$C:$C,$A65,'II-a) Medidas a implementar'!F:F)+SUMIF('II-c) Reflexos'!$D:$D,$A65,'II-c) Reflexos'!H:H) -> 2516.421414 | E65: ='I-Cenário Base'!J65+SUMIF('II-a) Medidas a implementar'!$C:$C,$A65,'II-a) Medidas a implementar'!G:G)+SUMIF('II-c) Reflexos'!$D:$D,$A65,'II-c) Reflexos'!I:I) -> 2414.115818 | F65: ='I-Cenário Base'!K65+SUMIF('II-a) Medidas a implementar'!$C:$C,$A65,'II-a) Medidas a implementar'!H:H)+SUMIF('II-c) Reflexos'!$D:$D,$A65,'II-c) Reflexos'!J:J) -> 2268.872502 | G65: ='I-Cenário Base'!L65+SUMIF('II-a) Medidas a implementar'!$C:$C,$A65,'II-a) Medidas a implementar'!I:I)+SUMIF('II-c) Reflexos'!$D:$D,$A65,'II-c) Reflexos'!K:K) -> 700.8272824 | H65: ='I-Cenário Base'!M65+SUMIF('II-a) Medidas a implementar'!$C:$C,$A65,'II-a) Medidas a implementar'!J:J)+SUMIF('II-c) Reflexos'!$D:$D,$A65,'II-c) Reflexos'!L:L) -> 824.8521008 | I65: ='I-Cenário Base'!N65+SUMIF('II-a) Medidas a implementar'!$C:$C,$A65,'II-a) Medidas a implementar'!K:K)+SUMIF('II-c) Reflexos'!$D:$D,$A65,'II-c) Reflexos'!M:M) -> 849.5976639 | J65: ='I-Cenário Base'!O65+SUMIF('II-a) Medidas a implementar'!$C:$C,$A65,'II-a) Medidas a implementar'!L:L)+SUMIF('II-c) Reflexos'!$D:$D,$A65,'II-c) Reflexos'!N:N) -> 875.0855937 | K65: ='I-Cenário Base'!P65+SUMIF('II-a) Medidas a implementar'!$C:$C,$A65,'II-a) Medidas a implementar'!M:M)+SUMIF('II-c) Reflexos'!$D:$D,$A65,'II-c) Reflexos'!O:O) -> 1040.216524 | L65: ='I-Cenário Base'!Q65+SUMIF('II-a) Medidas a implementar'!$C:$C,$A65,'II-a) Medidas a implementar'!N:N)+SUMIF('II-c) Reflexos'!$D:$D,$A65,'II-c) Reflexos'!P:P) -> 664.7823616
A66: Amortização da Dívida (XXVI) | B66: ='I-Cenário Base'!G66+SUMIF('II-a) Medidas a implementar'!$C:$C,$A66,'II-a) Medidas a implementar'!D:D)+SUMIF('II-c) Reflexos'!$D:$D,$A66,'II-c) Reflexos'!F:F) -> 2091.022155 | C66: ='I-Cenário Base'!H66+SUMIF('II-a) Medidas a implementar'!$C:$C,$A66,'II-a) Medidas a implementar'!E:E)+SUMIF('II-c) Reflexos'!$D:$D,$A66,'II-c) Reflexos'!G:G) -> 865.2902275 | D66: ='I-Cenário Base'!I66+SUMIF('II-a) Medidas a implementar'!$C:$C,$A66,'II-a) Medidas a implementar'!F:F)+SUMIF('II-c) Reflexos'!$D:$D,$A66,'II-c) Reflexos'!H:H) -> 2441.074327 | E66: ='I-Cenário Base'!J66+SUMIF('II-a) Medidas a implementar'!$C:$C,$A66,'II-a) Medidas a implementar'!G:G)+SUMIF('II-c) Reflexos'!$D:$D,$A66,'II-c) Reflexos'!I:I) -> 3924.26789 | F66: ='I-Cenário Base'!K66+SUMIF('II-a) Medidas a implementar'!$C:$C,$A66,'II-a) Medidas a implementar'!H:H)+SUMIF('II-c) Reflexos'!$D:$D,$A66,'II-c) Reflexos'!J:J) -> 63040.89119 | G66: ='I-Cenário Base'!L66+SUMIF('II-a) Medidas a implementar'!$C:$C,$A66,'II-a) Medidas a implementar'!I:I)+SUMIF('II-c) Reflexos'!$D:$D,$A66,'II-c) Reflexos'!K:K) -> 5051.873721 | H66: ='I-Cenário Base'!M66+SUMIF('II-a) Medidas a implementar'!$C:$C,$A66,'II-a) Medidas a implementar'!J:J)+SUMIF('II-c) Reflexos'!$D:$D,$A66,'II-c) Reflexos'!L:L) -> 5790.510466 | I66: ='I-Cenário Base'!N66+SUMIF('II-a) Medidas a implementar'!$C:$C,$A66,'II-a) Medidas a implementar'!K:K)+SUMIF('II-c) Reflexos'!$D:$D,$A66,'II-c) Reflexos'!M:M) -> 6814.002117 | J66: ='I-Cenário Base'!O66+SUMIF('II-a) Medidas a implementar'!$C:$C,$A66,'II-a) Medidas a implementar'!L:L)+SUMIF('II-c) Reflexos'!$D:$D,$A66,'II-c) Reflexos'!N:N) -> 7872.006012 | K66: ='I-Cenário Base'!P66+SUMIF('II-a) Medidas a implementar'!$C:$C,$A66,'II-a) Medidas a implementar'!M:M)+SUMIF('II-c) Reflexos'!$D:$D,$A66,'II-c) Reflexos'!O:O) -> 8999.556093 | L66: ='I-Cenário Base'!Q66+SUMIF('II-a) Medidas a implementar'!$C:$C,$A66,'II-a) Medidas a implementar'!N:N)+SUMIF('II-c) Reflexos'!$D:$D,$A66,'II-c) Reflexos'!P:P) -> 7180.816178
A67: Despesas Primárias de Capital (XXVII) = (XXIII-h-XXVI) | B67: =B58-B63-B66 -> 9012.722893 | C67: =C58-C63-C66 -> 7966.263728 | D67: 9307.790244 | E67: 10055.23787 | F67: 9986.121732 | G67: 8110.056603 | H67: 8620.502459 | I67: 9111.729473 | J67: 9586.28239 | K67: =K58-K63-K66 -> 10301.65404 | L67: =L58-L63-L66 -> 10648.75316
A68: DESPESA PRIMÁRIA ORÇAMENTÁRIA (XXVIII) = (XXII+XXVII) | B68: =B57+B67 -> 120820.1029 | C68: =C57+C67 -> 127035.89 | D68: 135353.7562 | E68: 142373.3123 | F68: 148865.347 | G68: 154266.9001 | H68: 161727.0291 | I68: 167443.7906 | J68: 174923.3492 | K68: =K57+K67 -> 182827.6338 | L68: =L57+L67 -> 191088.6489
A69: Receitas Correntes Intraorçamentárias (exceto fonte RPPS) (XXIX) | B69: ='I-Cenário Base'!G69 -> 3914.239249 | C69: ='I-Cenário Base'!H69 -> 3902.406173 | D69: ='I-Cenário Base'!I69 -> 4033.476363 | E69: ='I-Cenário Base'!J69 -> 4162.348247 | F69: ='I-Cenário Base'!K69 -> 4281.641361 | G69: ='I-Cenário Base'!L69 -> 4460.155789 | H69: ='I-Cenário Base'!M69 -> 4587.507301 | I69: ='I-Cenário Base'!N69 -> 4718.329118 | J69: ='I-Cenário Base'!O69 -> 4852.719797 | K69: ='I-Cenário Base'!P69 -> 4990.780711 | L69: ='I-Cenário Base'!Q69 -> 5132.616124
A70: RECEITA CORRENTE LÍQUIDA (XXX) = (II-a-d-g-XXIX) | B70: =B8-B16-B29-B54-B69 -> 92113.46796 | C70: =C8-C16-C29-C54-C69 -> 98939.28008 | D70: 105317.3945 | E70: 113230.5012 | F70: 115328.4196 | G70: 121415.2086 | H70: 128054.8734 | I70: 135062.4976 | J70: 145346.1695 | K70: 150255.1113 | L70: =L8-L16-L29-L54-L69 -> 158632.8466
A71: RESTOS A PAGAR
A72: Inscrições de Restos a Pagar (XXXI) = (i+l) | B72: =SUM(B73,B76) -> 10888.83695 | C72: =SUM(C73,C76) -> 10167.13666 | D72: 13514.15947 | E72: 12737.87716 | F72: 23704.09702 | G72: 16386.03281 | H72: 16735.97967 | I72: 15134.96245 | J72: 15220.67289 | K72: =SUM(K73,K76) -> 16080.66691 | L72: =SUM(L73,L76) -> 17165.70252
A73: Inscrição de RAP Processados (i) | B73: =SUM(B74:B75) -> 5290.93665 | C73: =SUM(C74:C75) -> 6291.885894 | D73: 7571.17377 | E73: 7431.162903 | F73: 10676.60862 | G73: 8956.045194 | H73: 9198.710871 | I73: 8778.018839 | J73: 8856.394614 | K73: =SUM(K74:K75) -> 9263.725743 | L73: =SUM(L74:L75) -> 9861.890582
A74: Inscrição de RAP Processados Primários (j) | B74: 4284.295956 | C74: 6197.282184 | D74: 7455.561376 | E74: 7303.932615 | F74: 10055.41047 | G74: 8790.478661 | H74: 9025.378612 | I74: 8600.711787 | J74: 8672.597591 | K74: 9067.900498 | L74: 9663.525023
A75: Inscrição de RAP Processados Não Primários (k) | B75: 1006.640694 | C75: 94.60370936 | D75: 115.6123945 | E75: 127.230288 | F75: 621.1981452 | G75: 165.5665331 | H75: 173.3322591 | I75: 177.3070524 | J75: 183.797023 | K75: 195.8252456 | L75: 198.3655589
A76: Inscrição de RAP Não Processados (l) | B76: =SUM(B77:B78) -> 5597.900301 | C76: =SUM(C77:C78) -> 3875.250763 | D76: 5942.9857 | E76: 5306.714256 | F76: 13027.4884 | G76: 7429.987619 | H76: 7537.268796 | I76: 6356.943611 | J76: 6364.278274 | K76: =SUM(K77:K78) -> 6816.941163 | L76: =SUM(L77:L78) -> 7303.811938
A77: Inscrição de RAP Não Processados Primários (m) | B77: 5595.881501 | C77: 3792.514675 | D77: 5810.085756 | E77: 5177.023131 | F77: 11759.78835 | G77: 7212.357983 | H77: 7313.52113 | I77: 6161.089402 | J77: 6167.816065 | K77: 6602.893553 | L77: 7082.768008
A78: Inscrição de RAP Não Processados Não Primários (n) | B78: 2.0188 | C78: 82.7360881 | D78: 132.8999432 | E78: 129.6911245 | F78: 1267.700052 | G78: 217.6296366 | H78: 223.7476659 | I78: 195.8542087 | J78: 196.4622087 | K78: 214.0476092 | L78: 221.04393
A79: Cancelamentos de Restos a Pagar (XXXII) = (o+p) | B79: =SUM(B80:B81) -> 4342.776329 | C79: =SUM(C80:C81) -> 1449.195627 | D79: 1353.144514 | E79: 1798.599877 | F79: 1695.284442 | G79: 3154.778963 | H79: 2180.817584 | I79: 2227.392021 | J79: 2014.312593 | K79: =SUM(K80:K81) -> 2025.719798 | L79: =SUM(L80:L81) -> 2140.176427
A80: Cancelamento de RAP Processados (o) | B80: 615.5027937 | C80: 704.1709128 | D80: 837.3872769 | E80: 1007.647738 | F80: 989.0136872 | G80: 1420.950152 | H80: 1191.960316 | I80: 1224.256698 | J80: 1168.266783 | K80: 1178.697817 | L80: 1232.909529
A81: Cancelamento de RAP Não Processados (p) | B81: 3727.273535 | C81: 745.0247141 | D81: 515.7572369 | E81: 790.9521399 | F81: 706.2707549 | G81: 1733.828811 | H81: 988.8572687 | I81: 1003.135324 | J81: 846.0458103 | K81: 847.0219808 | L81: 907.2668979
A82: Liquidação de Restos a Pagar Não Processados (XXXIII) | B82: 3612.179531 | C82: 5713.125899 | D82: 5204.562463 | E82: 5354.277144 | F82: 8649.391523 | G82: 8173.53232 | H82: 6758.818019 | I82: 5886.494763 | J82: 5793.834026 | K82: 5692.32961 | L82: 6663.955948
A83: Pagamento de Restos a Pagar Primário (XXXIV) | B83: 7260.448686 | C83: 12813.84804 | D83: 13051.04692 | E83: 12129.23196 | F83: 20490.78236 | G83: 12223.3003 | H83: 14622.43458 | I83: 12892.11236 | J83: 13643.93417 | K83: 13444.77528 | L83: 15487.74682
A84: Pagamento de Restos a Pagar Não Primário (XXXV) | B84: 1846.642773 | C84: 201.4806096 | D84: 111.116716 | E84: 132.6978767 | F84: 222.5430908 | G84: 818.8666463 | H84: 216.6849593 | I84: 188.3093767 | J84: 181.0174477 | K84: 175.7194767 | L84: 209.2439709
A85: ESTOQUE DE RESTOS A PAGAR (XXXVI) = (XXXVII+XXXVIII) | B85: =SUM(B86:B87) -> 20296.99708 | C85: =SUM(C86:C87) -> 15999.60945 | D85: 14998.46077 | E85: 13675.80821 | F85: 14971.29534 | G85: 15160.38224 | H85: 14876.42479 | I85: 14703.57347 | J85: 14084.98215 | K85: =SUM(K86:K87) -> 14519.4345 | L85: =SUM(L86:L87) -> 13847.9698
A86: Estoque de RAP Processados (XXXVII) = XXXVII(t-1) + (i-o+XXXIII-XXXIV-XXXV) | B86: ='I-Cenário Base'!F86+B73-B80+B82-B83-B84 -> 11387.55631 | C86: =B86+C73-C80+C82-C83-C84 -> 9673.068539 | D86: =C86+D73-D80+D82-D83-D84 -> 8449.253858 | E86: 7965.116326 | F86: 5588.777325 | G86: 8255.237739 | H86: 8181.686777 | I86: 8541.521941 | J86: 8198.532181 | K86: 8355.394959 | L86: 7951.341171
A87: Estoque de RAP Não Processados (XXXVIII) = XXXVIII(t-1) + (l-p-XXXIII) | B87: ='I-Cenário Base'!F87+B76-B81-B82 -> 8909.440766 | C87: =B87+C76-C81-C82 -> 6326.540916 | D87: =C87+D76-D81-D82 -> 6549.206916 | E87: 5710.691888 | F87: 9382.518012 | G87: 6905.144501 | H87: 6694.738009 | I87: 6162.051533 | J87: 5886.44997 | K87: 6164.039541 | L87: 5896.628633
A88: ESTOQUE DE RESTOS A PAGAR / RECEITA CORRENTE LÍQUIDA (XXXVI/XXX) | B88: =IFERROR(B85/B$70,0) -> 0.2203477681 | C88: =IFERROR(C85/C$70,0) -> 0.1617113996 | D88: 0.1424119998 | E88: 0.1207784834 | F88: 0.1298144498 | G88: 0.1248639476 | H88: 0.1161722657 | I88: 0.1088649606 | J88: 0.09690645581 | K88: =IFERROR(K85/K$70,0) -> 0.09663188406 | L88: =IFERROR(L85/L$70,0) -> 0.08729572783
A89: RAP Processados / RCL (XXXVII/XXX) | B89: =IFERROR(B86/B$70,0) -> 0.123625313 | C89: =IFERROR(C86/C$70,0) -> 0.09776772715 | D89: 0.08022657506 | E89: 0.07034426448 | F89: 0.04845967145 | G89: 0.06799179308 | H89: 0.06389203751 | I89: 0.06324125566 | J89: 0.05640693669 | K89: =IFERROR(K86/K$70,0) -> 0.05560805808 | L89: =IFERROR(L86/L$70,0) -> 0.05012417882
A90: RAP Não Processados / RCL (XXXVIII/XXX) | B90: =IFERROR(B87/B$70,0) -> 0.09672245507 | C90: =IFERROR(C87/C$70,0) -> 0.06394367243 | D90: 0.06218542477 | E90: 0.05043421892 | F90: 0.0813547783 | G90: 0.05687215449 | H90: 0.05228022823 | I90: 0.04562370489 | J90: 0.04049951911 | K90: =IFERROR(K87/K$70,0) -> 0.04102382598 | L90: =IFERROR(L87/L$70,0) -> 0.03717154901
A91: DESPESA PRIMÁRIA (XXXIX) = (XXVIII-j-m+XXXIV) | B91: =B68-B74-B77+B83 -> 118200.3742 | C91: =C68-C74-C77+C83 -> 129859.9412 | D91: 135139.156 | E91: 142021.5886 | F91: 147540.9305 | G91: 150487.3637 | H91: 160010.564 | I91: 165574.1017 | J91: 173726.8697 | K91: =K68-K74-K77+K83 -> 180601.6151 | L91: =L68-L74-L77+L83 -> 189830.1027
A92: Demais Despesas Primárias (XL) 2) | B92: ='I-Cenário Base'!G92+SUMIF('II-a) Medidas a implementar'!$C:$C,$A92,'II-a) Medidas a implementar'!D:D)+SUMIF('II-c) Reflexos'!$D:$D,$A92,'II-c) Reflexos'!F:F) -> 0 | C92: ='I-Cenário Base'!H92+SUMIF('II-a) Medidas a implementar'!$C:$C,$A92,'II-a) Medidas a implementar'!E:E)+SUMIF('II-c) Reflexos'!$D:$D,$A92,'II-c) Reflexos'!G:G) -> 0 | D92: ='I-Cenário Base'!I92+SUMIF('II-a) Medidas a implementar'!$C:$C,$A92,'II-a) Medidas a implementar'!F:F)+SUMIF('II-c) Reflexos'!$D:$D,$A92,'II-c) Reflexos'!H:H) -> 0 | E92: ='I-Cenário Base'!J92+SUMIF('II-a) Medidas a implementar'!$C:$C,$A92,'II-a) Medidas a implementar'!G:G)+SUMIF('II-c) Reflexos'!$D:$D,$A92,'II-c) Reflexos'!I:I) -> 0 | F92: ='I-Cenário Base'!K92+SUMIF('II-a) Medidas a implementar'!$C:$C,$A92,'II-a) Medidas a implementar'!H:H)+SUMIF('II-c) Reflexos'!$D:$D,$A92,'II-c) Reflexos'!J:J) -> 0 | G92: ='I-Cenário Base'!L92+SUMIF('II-a) Medidas a implementar'!$C:$C,$A92,'II-a) Medidas a implementar'!I:I)+SUMIF('II-c) Reflexos'!$D:$D,$A92,'II-c) Reflexos'!K:K) -> 0 | H92: ='I-Cenário Base'!M92+SUMIF('II-a) Medidas a implementar'!$C:$C,$A92,'II-a) Medidas a implementar'!J:J)+SUMIF('II-c) Reflexos'!$D:$D,$A92,'II-c) Reflexos'!L:L) -> 0 | I92: ='I-Cenário Base'!N92+SUMIF('II-a) Medidas a implementar'!$C:$C,$A92,'II-a) Medidas a implementar'!K:K)+SUMIF('II-c) Reflexos'!$D:$D,$A92,'II-c) Reflexos'!M:M) -> 0 | J92: ='I-Cenário Base'!O92+SUMIF('II-a) Medidas a implementar'!$C:$C,$A92,'II-a) Medidas a implementar'!L:L)+SUMIF('II-c) Reflexos'!$D:$D,$A92,'II-c) Reflexos'!N:N) -> 0 | K92: ='I-Cenário Base'!P92+SUMIF('II-a) Medidas a implementar'!$C:$C,$A92,'II-a) Medidas a implementar'!M:M)+SUMIF('II-c) Reflexos'!$D:$D,$A92,'II-c) Reflexos'!O:O) -> 0 | L92: ='I-Cenário Base'!Q92+SUMIF('II-a) Medidas a implementar'!$C:$C,$A92,'II-a) Medidas a implementar'!N:N)+SUMIF('II-c) Reflexos'!$D:$D,$A92,'II-c) Reflexos'!P:P) -> 0
A93: DESPESA PRIMÁRIA TOTAL (XLI) = (XXXIX+XL) | B93: =B91+B92 -> 118200.3742 | C93: =C91+C92 -> 129859.9412 | D93: 135139.156 | E93: 142021.5886 | F93: 147540.9305 | G93: 150487.3637 | H93: 160010.564 | I93: 165574.1017 | J93: 173726.8697 | K93: =K91+K92 -> 180601.6151 | L93: =L91+L92 -> 189830.1027
A94: RESULTADO PRIMÁRIO
A95: RESULTADO PRIMÁRIO (XLII) = (XVI-XLI) | B95: =B44-B93 -> 3154.414027 | C95: -109.0784728 | D95: 2480.600116 | E95: 5286.934353 | F95: 3972.306338 | G95: 9004.176575 | H95: 8541.620746 | I95: 12538.55323 | J95: 17370.76631 | K95: 18152.2064 | L95: =L44-L93 -> 20242.89108
A96: Juros e Encargos da Dívida (XX) | B96: =B52 -> 1595.908652 | C96: 1907.279343 | D96: 2791.337708 | E96: 3293.830513 | F96: 3737.599732 | G96: 4049.762799 | H96: 4325.43168 | I96: 4570.291824 | J96: 4786.685494 | K96: 4976.102131 | L96: =L52 -> 7343.249574
A97: Amortização da Dívida (XXVI) | B97: =B66 -> 2091.022155 | C97: 865.2902275 | D97: 2441.074327 | E97: 3924.26789 | F97: 63040.89119 | G97: 5051.873721 | H97: 5790.510466 | I97: 6814.002117 | J97: 7872.006012 | K97: =K66 -> 8999.556093 | L97: =L66 -> 7180.816178
A98: Inversões Financeiras Não Primárias (h) 1) | B98: =B63 -> 9.67935434 | C98: 28.949 | D98: 29.963965 | E98: 31.009754 | F98: 31.94004662 | G98: 32.89824802 | H98: 33.88519546 | I98: 34.90175132 | J98: 35.94880386 | K98: 37.02726798 | L98: =L63 -> 38.13808602
A99: Receita de Aplicações Financeiras (b) | B99: =B19 -> 3365.391155 | C99: 2817.084538 | D99: 2549.669871 | E99: 2430.556719 | F99: 2456.978501 | G99: 2353.82658 | H99: 2241.011632 | I99: 2128.736267 | J99: 2016.080158 | K99: 2015.098463 | L99: =L19 -> 1995.135482
A100: Outras Receitas Financeiras (c) | B100: =B28 -> 5.69746926 | C100: 5.75405 | D100: 5.9266115 | E100: 6.104349845 | F100: 6.28742034 | G100: 6.475982951 | H100: 6.670202439 | I100: 6.870248512 | J100: 7.076295968 | K100: 7.288524847 | L100: =L28 -> 7.507120592
A101: Outras Receitas de Capital Não Primárias (f) | B101: =B41 -> 0 | C101: 0 | D101: 0 | E101: 0 | F101: 0 | G101: 0 | H101: 0 | I101: 0 | J101: 0 | K101: 0 | L101: =L41 -> 0
A102: Amortização de Empréstimos (XI) | B102: =B35 -> 88.07963921 | C102: 86.7809911 | D102: 88.55203013 | E102: 90.41781687 | F102: 92.37911292 | G102: 94.43680677 | H102: 96.59191242 | I102: 98.84556817 | J102: 101.1990357 | K102: 103.6536992 | L102: =L35 -> 106.2110649
A103: Despesa Financeira Líquida (XLIII) = (XX+XXVI+h-k-n+XXXV-b-c-f-XI) | B103: =B96+B97+B98-B75-B78+B84-B99-B100-B101-B102 -> 1075.425177 | C103: -83.96019716 | D103: 2480.831866 | E103: 4597.805735 | F103: 62588.43083 | G103: 7115.465875 | H103: 7625.158628 | I103: 8999.891725 | J103: 10371.04304 | K103: 11652.49143 | L103: =L96+L97+L98-L75-L78+L84-L99-L100-L101-L102 -> 12243.18465
A104: NECESSIDADE DE FINANCIAMENTO (XLIV) = (XLIII-XLII) | B104: =B103-B95 -> -2078.988851 | C104: 25.11827567 | D104: 0.2317500011 | E104: -689.1286175 | F104: 58616.12449 | G104: -1888.710701 | H104: -916.4621183 | I104: -3538.661505 | J104: -6999.723278 | K104: -6499.714977 | L104: =L103-L95 -> -7999.706426
A105: Operações de Crédito (X) | B105: =B34 -> 10.74310629 | C105: 24.89327567 | D105: 0 | E105: 1310.63268 | F105: 115.87863 | G105: 111.03606 | H105: 83.277045 | I105: 61.069833 | J105: 0 | K105: 0 | L105: =L34 -> 0
A106: Alienação de Bens Não Primária (e) | B106: =B37 -> 0.225 | C106: 0.225 | D106: 0.23175 | E106: 0.2387025 | F106: 59000.24586 | G106: 0.2532394823 | H106: 0.2608366667 | I106: 0.2686617667 | J106: 0.2767216197 | K106: 0.2850232683 | L106: =L37 -> 0.2935739664
A107: Fontes de Financiamento (XLV) = (X+e) | B107: =B105+B106 -> 10.96810629 | C107: =C105+C106 -> 25.11827567 | D107: 0.23175 | E107: 1310.871382 | F107: 59116.12449 | G107: 111.2892995 | H107: 83.53788167 | I107: 61.33849477 | J107: 0.2767216197 | K107: =K105+K106 -> 0.2850232683 | L107: =L105+L106 -> 0.2935739664
A108: Outros Fluxos de Caixa (XLVI) | B108: ='I-Cenário Base'!G108+SUMIF('II-a) Medidas a implementar'!$C:$C,$A108,'II-a) Medidas a implementar'!D:D)+SUMIF('II-c) Reflexos'!$D:$D,$A108,'II-c) Reflexos'!F:F) -> 0 | C108: ='I-Cenário Base'!H108+SUMIF('II-a) Medidas a implementar'!$C:$C,$A108,'II-a) Medidas a implementar'!E:E)+SUMIF('II-c) Reflexos'!$D:$D,$A108,'II-c) Reflexos'!G:G) -> 0 | D108: ='I-Cenário Base'!I108+SUMIF('II-a) Medidas a implementar'!$C:$C,$A108,'II-a) Medidas a implementar'!F:F)+SUMIF('II-c) Reflexos'!$D:$D,$A108,'II-c) Reflexos'!H:H) -> 0 | E108: ='I-Cenário Base'!J108+SUMIF('II-a) Medidas a implementar'!$C:$C,$A108,'II-a) Medidas a implementar'!G:G)+SUMIF('II-c) Reflexos'!$D:$D,$A108,'II-c) Reflexos'!I:I) -> 0 | F108: ='I-Cenário Base'!K108+SUMIF('II-a) Medidas a implementar'!$C:$C,$A108,'II-a) Medidas a implementar'!H:H)+SUMIF('II-c) Reflexos'!$D:$D,$A108,'II-c) Reflexos'!J:J) -> 0 | G108: ='I-Cenário Base'!L108+SUMIF('II-a) Medidas a implementar'!$C:$C,$A108,'II-a) Medidas a implementar'!I:I)+SUMIF('II-c) Reflexos'!$D:$D,$A108,'II-c) Reflexos'!K:K) -> 0 | H108: ='I-Cenário Base'!M108+SUMIF('II-a) Medidas a implementar'!$C:$C,$A108,'II-a) Medidas a implementar'!J:J)+SUMIF('II-c) Reflexos'!$D:$D,$A108,'II-c) Reflexos'!L:L) -> 0 | I108: ='I-Cenário Base'!N108+SUMIF('II-a) Medidas a implementar'!$C:$C,$A108,'II-a) Medidas a implementar'!K:K)+SUMIF('II-c) Reflexos'!$D:$D,$A108,'II-c) Reflexos'!M:M) -> 0 | J108: ='I-Cenário Base'!O108+SUMIF('II-a) Medidas a implementar'!$C:$C,$A108,'II-a) Medidas a implementar'!L:L)+SUMIF('II-c) Reflexos'!$D:$D,$A108,'II-c) Reflexos'!N:N) -> 0 | K108: ='I-Cenário Base'!P108+SUMIF('II-a) Medidas a implementar'!$C:$C,$A108,'II-a) Medidas a implementar'!M:M)+SUMIF('II-c) Reflexos'!$D:$D,$A108,'II-c) Reflexos'!O:O) -> 0 | L108: ='I-Cenário Base'!Q108+SUMIF('II-a) Medidas a implementar'!$C:$C,$A108,'II-a) Medidas a implementar'!N:N)+SUMIF('II-c) Reflexos'!$D:$D,$A108,'II-c) Reflexos'!P:P) -> 0
A109: FLUXO DE CAIXA (XLVII) = (XLV-XLIV+XLVI) | B109: =B107-B104+B108 -> 2089.956957 | C109: =C107-C104+C108 -> 2.969784418e-10 | D109: =D107-D104+D108 -> -1.105410763e-09 | E109: 2000 | F109: 500 | G109: 2000 | H109: 1000 | I109: 3600 | J109: 7000 | K109: =K107-K104+K108 -> 6500 | L109: =L107-L104+L108 -> 8000
A110: 1) Corresponde ao somatório de Concessão de Empréstimos e Financiamentos, Aquisição de Título de Capital já Integralizado e Aquisição de Título de Crédito.
A111: 2) As Demais Despesas Primárias são despesas que compõem o resultado primário por caixa, mas não transitam pelo orçamento.

Sheet IV-Verificações
A1: PLANO DE RECUPERAÇÃO FISCAL | D1: Ano-Base para a limitação de despesas: | E1: 2023
A2: Anexo IV - Verificação das condições de equilíbrio e do cumprimento da limitação de despesas
A4: Receitas arrecadadas, brutas do repasse para o Fundeb Despesas empenhadas e transferências a Municípios
B5: (Ano-Base) | C5: 2023 | D5: 2024 | E5: 2025 | F5: 2026 | G5: 2027 | H5: 2028 | I5: 2029 | J5: 2030 | K5: 2031 | L5: 2032 | M5: 2033
A6: VERIFICAÇÃO DE CUMPRIMENTO DA LIMITAÇÃO DE DESPESAS DO INCISO V DO § 1º DO ART. 2º DA LC 159
A7: Despesa Primária Total (XLI) | B7: =IF($E$1=2017,'I-Cenário Base'!#REF!,IF($E$1=2018,'I-Cenário Base'!B68,IF($E$1=2019,'I-Cenário Base'!C68,IF($E$1=2020,'I-Cenário Base'!D68,IF($E$1=2021,'I-Cenário Base'!E68,IF($E$1=2022,'I-Cenário Base'!F68,IF($E$1=2023,'I-Cenário Base'!G68,""))))))) -> 120820.1029 | C7: ='III-Cenário Ajustado'!B68 -> 120820.1029 | D7: ='III-Cenário Ajustado'!C68 -> 127035.89 | E7: ='III-Cenário Ajustado'!D68 -> 135353.7562 | F7: ='III-Cenário Ajustado'!E68 -> 142373.3123 | G7: ='III-Cenário Ajustado'!F68 -> 148865.347 | H7: ='III-Cenário Ajustado'!G68 -> 154266.9001 | I7: ='III-Cenário Ajustado'!H68 -> 161727.0291 | J7: ='III-Cenário Ajustado'!I68 -> 167443.7906 | K7: ='III-Cenário Ajustado'!J68 -> 174923.3492 | L7: ='III-Cenário Ajustado'!K68 -> 182827.6338 | M7: ='III-Cenário Ajustado'!L68 -> 191088.6489
A8: Despesas primárias intraorçamentárias (exceto fontes RPPS) (q) | B8: 9671.179843 | C8: 9671.179843 | D8: 10583.18123 | E8: 10978.30279 | F8: 11380.14049 | G8: 11786.44176 | H8: 12379.50151 | I8: 12827.5993 | J8: 13295.99146 | K8: 13785.79527 | L8: 14298.19733 | M8: 14834.45809
A9: Despesas primárias orçamentárias (fonte RPPS) (r) | B9: 9646.542655 | C9: 9646.542655 | D9: 10437.19774 | E9: 10865.0075 | F9: 11311.04119 | G9: 11771.02575 | H9: 12418.2173 | I9: 12934.89354 | J9: 13478.66473 | K9: 14051.17512 | L9: 14654.1759 | M9: 15289.53237
A10: Despesas primárias para fins de apuração do cumprimento da limitação de crescimento (s) = (XL) - (q) + (r) | B10: =B7-B8+B9 -> 120795.4657 | C10: =C7-C8+C9 -> 120795.4657 | D10: =D7-D8+D9 -> 126889.9065 | E10: =E7-E8+E9 -> 135240.4609 | F10: 142304.213 | G10: 148849.9309 | H10: 154305.6158 | I10: 161834.3234 | J10: 167626.4638 | K10: 175188.729 | L10: 183183.6124 | M10: 191543.7232
A11: Despesas não consideradas como primárias (Portaria STN nº 217, Art. 19, inciso II) (t) | B11: =SUM(B12:B15) -> 1838.811652 | C11: 1838.811652 | D11: 1903.383686 | E11: 2789.872133 | F11: 3073.76108 | G11: 2900.097652 | H11: 1770.755493 | I11: 2424.689653 | J11: 1176.418681 | K11: 1249.549877 | L11: 1326.96566 | M11: 1375.446062
A12: Sentenças judiciais | B12: 1374.319573 | C12: 1374.319573 | D12: 787.4191695 | E12: 732.5166497 | F12: 888.6817922 | G12: 1104.678138 | H12: 1434.005083 | I12: 2080.166279 | J12: 815.3865574 | K12: 872.0090045 | L12: 932.9160385 | M12: 998.6491098
A13: Recomposição de fundos de reserva de depósitos judiciais e administrativos
A14: Despesas com a quitação de passivos (parcelamentos INSS e Pasep) | B14: 464.4920786 | C14: 464.4920786 | D14: 319.4455884 | E14: 297.0663734 | F14: 313.7359103 | G14: 331.4662008 | H14: 336.7504105 | I14: 344.5233747 | J14: 361.0321237 | K14: 377.5408728 | L14: 394.0496218 | M14: 376.7969521
A15: Devolução de depósitos judiciais e administrativos | D15: 796.5189277 | E15: 1760.28911 | F15: 1871.343378 | G15: 1463.953314 | H15: 0 | I15: 0 | J15: 0 | K15: 0 | L15: 0 | M15: 0
A16: Despesas primárias custeadas por empresas estatais consideradas não dependentes no ano base para apuração do limite de despesas (u)
A17: Despesas não incluídas no cálculo da limitação de despesas (v) | B17: =SUM(B18:B22) -> 28642.54862 | C17: =SUM(C18:C22) -> 28642.54862 | D17: =SUM(D18:D22) -> 34066.63542 | E17: =SUM(E18:E22) -> 37691.84249 | F17: 40197.85918 | G17: 44086.27452 | H17: 47420.4951 | I17: 51101.87488 | J17: 55022.59947 | K17: 59213.48986 | L17: 63693.248 | M17: 68497.26887
A18: Transferências constitucionais para os Municípios (LCP 159, Art. 2º, §4º, inciso I) | B18: 23759.67076 | C18: ='III-Cenário Ajustado'!B54 -> 23759.67076 | D18: ='III-Cenário Ajustado'!C54 -> 25333.46387 | E18: ='III-Cenário Ajustado'!D54 -> 27211.90707 | F18: ='III-Cenário Ajustado'!E54 -> 28648.15094 | G18: ='III-Cenário Ajustado'!F54 -> 30979.87663 | H18: ='III-Cenário Ajustado'!G54 -> 32857.6476 | I18: ='III-Cenário Ajustado'!H54 -> 34934.90352 | J18: ='III-Cenário Ajustado'!I54 -> 37137.25434 | K18: ='III-Cenário Ajustado'!J54 -> 39480.12463 | L18: ='III-Cenário Ajustado'!K54 -> 41972.78027 | M18: ='III-Cenário Ajustado'!L54 -> 44632.55415
A19: Despesas custeadas com recursos de emendas (LCP 159, Art. 2º, §4º, inciso II) | B19: 141.5104604 | C19: 141.5104604 | D19: 247.8257056 | E19: 255.2604767 | F19: 262.918291 | G19: 270.8058397 | H19: 278.930015 | I19: 287.2979154 | J19: 295.9168528 | K19: 304.7943585 | L19: 313.9381893 | M19: 323.3563348
A20: Despesas em saúde e educação em função da variação da base de cálculo dos mínimos (LCP 159, Art. 2º, §4º, inciso IV) | D20: 1652.992222 | E20: 3110.464454 | F20: 3869.069816 | G20: 5195.274827 | H20: 6414.451142 | I20: 7774.139209 | J20: 9240.348974 | K20: 10828.91838 | L20: 12548.78723 | M20: 14417.78417
A21: Despesas custeadas com recursos de transf. da União com aplicações vinculadas (LCP 159, Art. 2º, §4º, inciso V) | B21: 2643.339782 | C21: 2643.339782 | D21: 3400.686796 | E21: 3502.828899 | F21: 3607.991798 | G21: 3716.29705 | H21: 3827.725557 | I21: 3942.541227 | J21: 4061.196511 | K21: 4183.133214 | L21: 4308.727454 | M21: 4438.08891
A22: Despesas de fundos públicos especiais (ADI 6930) | B22: 2098.027618 | C22: 2098.027618 | D22: 3431.666822 | E22: 3611.38159 | F22: 3809.728328 | G22: 3924.020178 | H22: 4041.740783 | I22: 4162.993007 | J22: 4287.882797 | K22: 4416.519281 | L22: 4549.014859 | M22: 4685.485305
A23: DESPESA PRIMÁRIA PARA APURAÇÃO DA LIMITAÇÃO DE DESPESAS = (s) - (t) - (u) - (v) | B23: =B10-B11-B16-B17 -> 90314.10547 | C23: =C10-C11-C16-C17 -> 90314.10547 | D23: 90919.88741 | E23: 94758.74628 | F23: 99032.59277 | G23: 101863.5588 | H23: 105114.3653 | I23: 108307.7588 | J23: 111427.4457 | K23: 114725.6893 | L23: 118163.3987 | M23: 121671.0083
A24: LIMITAÇÃO DE DESPESAS | C24: =IF($E$1<2022,$B23*PRODUCT('V-Parâmetros'!$L7:M7),IF($E$1=2022,$B23*PRODUCT('V-Parâmetros'!$M7:M7),$B23)) -> 90314.10547 | D24: =IF($E$1<2022,$B23*PRODUCT('V-Parâmetros'!$L7:N7),IF($E$1=2022,$B23*PRODUCT('V-Parâmetros'!$M7:N7),$B23*PRODUCT('V-Parâmetros'!$N7:N7))) -> 93520.25622 | E24: =IF($E$1<2022,$B23*PRODUCT('V-Parâmetros'!$L7:O7),IF($E$1=2022,$B23*PRODUCT('V-Parâmetros'!$M7:O7),$B23*PRODUCT('V-Parâmetros'!$N7:O7))) -> 96325.8639 | F24: =IF($E$1<2022,$B23*PRODUCT('V-Parâmetros'!$L7:P7),IF($E$1=2022,$B23*PRODUCT('V-Parâmetros'!$M7:P7),$B23*PRODUCT('V-Parâmetros'!$N7:P7))) -> 99215.63982 | G24: =IF($E$1<2022,$B23*PRODUCT('V-Parâmetros'!$L7:Q7),IF($E$1=2022,$B23*PRODUCT('V-Parâmetros'!$M7:Q7),$B23*PRODUCT('V-Parâmetros'!$N7:Q7))) -> 102192.109 | H24: =IF($E$1<2022,$B23*PRODUCT('V-Parâmetros'!$L7:R7),IF($E$1=2022,$B23*PRODUCT('V-Parâmetros'!$M7:R7),$B23*PRODUCT('V-Parâmetros'!$N7:R7))) -> 105257.8723 | I24: =IF($E$1<2022,$B23*PRODUCT('V-Parâmetros'!$L7:S7),IF($E$1=2022,$B23*PRODUCT('V-Parâmetros'!$M7:S7),$B23*PRODUCT('V-Parâmetros'!$N7:S7))) -> 108415.6085 | J24: =IF($E$1<2022,$B23*PRODUCT('V-Parâmetros'!$L7:T7),IF($E$1=2022,$B23*PRODUCT('V-Parâmetros'!$M7:T7),$B23*PRODUCT('V-Parâmetros'!$N7:T7))) -> 111668.0767 | K24: =IF($E$1<2022,$B23*PRODUCT('V-Parâmetros'!$L7:U7),IF($E$1=2022,$B23*PRODUCT('V-Parâmetros'!$M7:U7),$B23*PRODUCT('V-Parâmetros'!$N7:U7))) -> 115018.119 | L24: =IF($E$1<2022,$B23*PRODUCT('V-Parâmetros'!$L7:V7),IF($E$1=2022,$B23*PRODUCT('V-Parâmetros'!$M7:V7),$B23*PRODUCT('V-Parâmetros'!$N7:V7))) -> 118468.6626 | M24: =IF($E$1<2022,$B23*PRODUCT('V-Parâmetros'!$L7:W7),IF($E$1=2022,$B23*PRODUCT('V-Parâmetros'!$M7:W7),$B23*PRODUCT('V-Parâmetros'!$N7:W7))) -> 122022.7225
A25: VERIFICAÇÃO DO EQUILÍBRIO
A26: Critério I: Resultado primário e serviço da dívida
A27: Resultado Primário | C27: ='III-Cenário Ajustado'!B95 -> 3154.414027 | D27: ='III-Cenário Ajustado'!C95 -> -109.0784728 | E27: ='III-Cenário Ajustado'!D95 -> 2480.600116 | F27: ='III-Cenário Ajustado'!E95 -> 5286.934353 | G27: ='III-Cenário Ajustado'!F95 -> 3972.306338 | H27: ='III-Cenário Ajustado'!G95 -> 9004.176575 | I27: ='III-Cenário Ajustado'!H95 -> 8541.620746 | J27: ='III-Cenário Ajustado'!I95 -> 12538.55323 | K27: ='III-Cenário Ajustado'!J95 -> 17370.76631 | L27: ='III-Cenário Ajustado'!K95 -> 18152.2064 | M27: ='III-Cenário Ajustado'!L95 -> 20242.89108
A28: Pagamento de passivos não financeiros (Portaria STN nº 10.464, Art. 41, Inciso II) | C28: =SUM(C29:C31) -> 0 | D28: 1903.383686 | E28: 2789.872133 | F28: 3073.76108 | G28: 2900.097652 | H28: 1770.755493 | I28: 2424.689653 | J28: 1176.418681 | K28: 1249.549877 | L28: 1326.96566 | M28: 1375.446062
A29: Sentenças judiciais | D29: 787.4191695 | E29: 732.5166497 | F29: 888.6817922 | G29: 1104.678138 | H29: 1434.005083 | I29: 2080.166279 | J29: 815.3865574 | K29: 872.0090045 | L29: 932.9160385 | M29: 998.6491098
A30: Recomposição de fundos de reserva de depósitos judiciais e administrativos
A31: Outros | D31: 1115.964516 | E31: 2057.355483 | F31: 2185.079288 | G31: 1795.419515 | H31: 336.7504105 | I31: 344.5233747 | J31: 361.0321237 | K31: 377.5408728 | L31: 394.0496218 | M31: 376.7969521
A32: Receitas não computadas conforme inciso III do art. 41 da Portaria STN nº 10.464 | C32: =SUM(C33:C35) -> 0 | D32: 0 | E32: 0 | F32: 0 | G32: 0 | H32: 0 | I32: 0 | J32: 0 | K32: 0 | L32: =SUM(L33:L35) -> 0 | M32: 0
A34: Incluir uma linha para cada receita extraordinária não computada no cálculo do resultado primário para fins de apuração do equilíbrio
A36: Despesas não computadas conforme inciso III do art. 41 da Portaria STN nº 10.464 | C36: =SUM(C37:C39) -> 0 | D36: =SUM(D37:D39) -> 0 | E36: 0 | F36: 0 | G36: 0 | H36: 0 | I36: 0 | J36: 0 | K36: 0 | L36: =SUM(L37:L39) -> 0 | M36: 0
A38: Incluir uma linha para cada despesa extraordinária não computada no cálculo do resultado primário para fins de apuração do equilíbrio
A40: Resultado primário para fins de apuração do equilíbrio | C40: =C27+C28-C32+C36 -> 3154.414027 | D40: 1794.305213 | E40: 5270.472249 | F40: 8360.695433 | G40: 6872.40399 | H40: 10774.93207 | I40: 10966.3104 | J40: 13714.97191 | K40: 18620.31619 | L40: 19479.17206 | M40: 21618.33714
A41: Serviço da dívida por competência | D41: 13326.93496 | E41: 13937.69668 | F41: 14994.89692 | G41: 11824.91502 | H41: 12478.24715 | I41: 12518.17659 | J41: 13182.53056 | K41: 13835.39528 | L41: 14517.55195 | M41: 14417.45929
A42: Amortizações extraordinárias a deduzir
A43: Serviço da dívida por competência para apuração do equilíbrio | C43: =C41-C42 -> 0 | D43: 13326.93496 | E43: 13937.69668 | F43: 14994.89692 | G43: 11824.91502 | H43: 12478.24715 | I43: 12518.17659 | J43: 13182.53056 | K43: 13835.39528 | L43: 14517.55195 | M43: 14417.45929
A44: Critério II: Estoque de Restos a Pagar
A45: Aumento do estoque de restos a pagar | C45: ='III-Cenário Ajustado'!B85-'I-Cenário Base'!E85 -> -38572.31215 | D45: ='III-Cenário Ajustado'!C85-'III-Cenário Ajustado'!B85 -> -4297.387623 | E45: ='III-Cenário Ajustado'!D85-'III-Cenário Ajustado'!C85 -> -1001.148681 | F45: ='III-Cenário Ajustado'!E85-'III-Cenário Ajustado'!D85 -> -1322.65256 | G45: ='III-Cenário Ajustado'!F85-'III-Cenário Ajustado'!E85 -> 1295.487123 | H45: ='III-Cenário Ajustado'!G85-'III-Cenário Ajustado'!F85 -> 189.0869024 | I45: ='III-Cenário Ajustado'!H85-'III-Cenário Ajustado'!G85 -> -283.9574537 | J45: ='III-Cenário Ajustado'!I85-'III-Cenário Ajustado'!H85 -> -172.8513123 | K45: ='III-Cenário Ajustado'!J85-'III-Cenário Ajustado'!I85 -> -618.5913225 | L45: ='III-Cenário Ajustado'!K85-'III-Cenário Ajustado'!J85 -> 434.4523491 | M45: ='III-Cenário Ajustado'!L85-'III-Cenário Ajustado'!K85 -> -671.4646956
A46: Estoque de restos a pagar | D46: ='III-Cenário Ajustado'!C85 -> 15999.60945 | E46: ='III-Cenário Ajustado'!D85 -> 14998.46077 | F46: ='III-Cenário Ajustado'!E85 -> 13675.80821 | G46: ='III-Cenário Ajustado'!F85 -> 14971.29534 | H46: ='III-Cenário Ajustado'!G85 -> 15160.38224 | I46: ='III-Cenário Ajustado'!H85 -> 14876.42479 | J46: ='III-Cenário Ajustado'!I85 -> 14703.57347 | K46: ='III-Cenário Ajustado'!J85 -> 14084.98215 | L46: ='III-Cenário Ajustado'!K85 -> 14519.4345 | M46: ='III-Cenário Ajustado'!L85 -> 13847.9698
A47: Estoque de restos a pagar não primários
A48: Estoque de restos a pagar primários / Receita corrente líquida (XXXV/XXIX) | C48: =(C46-C47)/'III-Cenário Ajustado'!B70 -> 0 | D48: =(D46-D47)/'III-Cenário Ajustado'!C70 -> 0.1617113996 | E48: =(E46-E47)/'III-Cenário Ajustado'!D70 -> 0.1424119998 | F48: =(F46-F47)/'III-Cenário Ajustado'!E70 -> 0.1207784834 | G48: =(G46-G47)/'III-Cenário Ajustado'!F70 -> 0.1298144498 | H48: =(H46-H47)/'III-Cenário Ajustado'!G70 -> 0.1248639476 | I48: =(I46-I47)/'III-Cenário Ajustado'!H70 -> 0.1161722657 | J48: =(J46-J47)/'III-Cenário Ajustado'!I70 -> 0.1088649606 | K48: =(K46-K47)/'III-Cenário Ajustado'!J70 -> 0.09690645581 | L48: =(L46-L47)/'III-Cenário Ajustado'!K70 -> 0.09663188406 | M48: =(M46-M47)/'III-Cenário Ajustado'!L70 -> 0.08729572783

Sheet V-Parâmetros
A1: PLANO DE RECUPERAÇÃO FISCAL
A2: Anexo V - Informações Auxiliares
A3: Parâmetros Utilizados nas Projeções
N4: Projeção | Q4: Extrapolação
B5: 2012 | C5: 2013 | D5: 2014 | E5: 2015 | F5: 2016 | G5: 2017 | H5: 2018 | I5: 2019 | J5: 2020 | K5: 2021 | L5: 2022 | M5: 2023 | N5: 2024 | O5: 2025 | P5: 2026 | Q5: 2027 | R5: 2028 | S5: 2029 | T5: 2030 | U5: 2031 | V5: 2032 | W5: 2033 | X5: Fontes
A6: IPCA (% a.a.) | B6: 0.0584 | C6: 0.0591 | D6: 0.0641 | E6: 0.1067 | F6: 0.0629 | G6: 0.0295 | H6: 0.0375 | I6: 0.04306151617 | J6: 0.0452 | K6: 0.1006 | L6: 0.0579 | M6: 0.0462 | N6: 0.0355 | O6: 0.03 | P6: 0.03 | Q6: 0.03 | R6: 0.03 | S6: =R6 -> 0.03 | T6: 0.03 | U6: 0.03 | V6: =U6 -> 0.03 | W6: 0.03 | X6: SPE
A7: IPCA (1+% a.a.) | B7: =1+B6 -> 1.0584 | C7: 1.0591 | D7: 1.0641 | E7: 1.1067 | F7: 1.0629 | G7: 1.0295 | H7: 1.0375 | I7: 1.043061516 | J7: 1.0452 | K7: 1.1006 | L7: 1.0579 | M7: 1.0462 | N7: 1.0355 | O7: 1.03 | P7: 1.03 | Q7: 1.03 | R7: 1.03 | S7: 1.03 | T7: 1.03 | U7: 1.03 | V7: =1+V6 -> 1.03 | W7: 1.03 | X7: SPE
A8: IGP-DI (% a.a.) | B8: 0.08096678165 | C8: 0.05518366406 | D8: 0.03783593444 | E8: 0.1070109898 | F8: 0.07182591194 | G8: -0.00418532887 | H8: 0.07099355972 | I8: 0.07695936316 | J8: 0.2308 | K8: 0.1774 | L8: 0.0503 | M8: -0.033 | N8: 0.035 | O8: 0.04 | P8: 0.038 | Q8: 0.038 | R8: =Q8 -> 0.038 | S8: 0.038 | T8: 0.038 | U8: 0.038 | V8: 0.038 | W8: 0.038 | X8: SPE
A9: Deflator (% a.a.) | B9: 0.07943126942 | C9: 0.07504564532 | D9: 0.07846709743 | E9: 0.07566175013 | F9: 0.0807 | G9: 0.0366 | H9: 0.0449 | I9: 0.0427 | J9: 0.0646 | K9: 0.1306 | L9: 0.0854 | M9: 0.047 | N9: 0.04 | O9: 0.0438 | P9: 0.042 | Q9: 0.0404 | R9: 0.0401 | S9: =R9 -> 0.0401 | T9: 0.0401 | U9: 0.0401 | V9: 0.0401 | W9: 0.0401 | X9: SPE
A10: PIB real Nacional (% a.a.) | B10: 0.0192 | C10: 0.03 | D10: 0.005 | E10: -0.0354716227 | F10: -0.03304672123 | G10: 0.0132 | H10: 0.0178 | I10: 0.0122 | J10: -0.0328 | K10: 0.0476 | L10: 0.0302 | M10: 0.0291 | N10: 0.0222 | O10: 0.028 | P10: 0.0258 | Q10: 0.0262 | R10: 0.0251 | S10: =R10 -> 0.0251 | T10: 0.0251 | U10: 0.0251 | V10: 0.0251 | W10: 0.0251 | X10: SPE
A11: Selic (% a.a. acum ano) | B11: 0.08501905747 | C11: 0.08229101427 | D11: 0.1090720752 | E11: 0.1327626288 | F11: 0.1401857771 | G11: 0.09939818679 | H11: 0.06428977221 | I11: 0.05903753938 | J11: 0.02635318563 | K11: 0.0391 | L11: 0.1234 | M11: 0.1318 | N11: 0.0963 | O11: 0.0805 | P11: 0.0722 | Q11: 0.0702 | R11: 0.0677 | S11: =R11 -> 0.0677 | T11: 0.0677 | U11: 0.0677 | V11: 0.0677 | W11: 0.0677 | X11: SPE
A12: Dólar (fim de período) | B12: 2.0435 | C12: 2.3426 | D12: 2.6562 | E12: 3.9048 | F12: 3.3523 | G12: 3.2919 | H12: 3.8851 | I12: 4.0307 | J12: 5.2 | K12: 5.58 | L12: 5.22 | M12: 4.84 | N12: 4.92 | O12: 5 | P12: 5.04 | Q12: 5.1 | R12: 5.1 | S12: =R12 -> 5.1 | T12: 5.1 | U12: 5.1 | V12: 5.1 | W12: 5.1 | X12: SPE
A13: Dólar (média ano) | B13: 1.95496494 | C13: 2.160505138 | D13: 2.354518182 | E13: 3.338696 | F13: 3.484976305 | G13: 3.192008333 | H13: 3.65445 | I13: 3.945083333 | J13: 5.16 | K13: 5.4 | L13: 5.16 | M13: 4.99 | N13: 4.94 | O13: 4.98 | P13: 5.03 | Q13: 5.07 | R13: 5.1 | S13: =R13 -> 5.1 | T13: 5.1 | U13: 5.1 | V13: 5.1 | W13: 5.1 | X13: SPE

Sheet V-Parâmetros (2) (hidden)
A1: PLANO DE RECUPERAÇÃO FISCAL
A2: Anexo V - Informações Auxiliares
A3: Parâmetros Utilizados nas Projeções
K4: Projeção | O4: Extrapolação
B5: 2011 | C5: 2012 | D5: 2013 | E5: 2014 | F5: 2015 | G5: 2016 | H5: 2017 | I5: 2018 | J5: 2019 | K5: 2020 | L5: 2021 | M5: 2022 | N5: 2023 | O5: 2024 | P5: 2025 | Q5: 2026 | R5: 2027 | S5: 2028 | T5: 2029 | U5: 2030 | V5: Fontes
A6: IPCA (% a.a.) | B6: 0.065 | C6: 0.0584 | D6: 0.0591 | E6: 0.0641 | F6: 0.1067 | G6: 0.0629 | H6: 0.0295 | I6: 0.0375 | J6: 0.04306151617 | K6: 0.0183185979 | L6: 0.02938587787 | M6: 0.03498510776 | N6: 0.03248513774 | O6: 0.03248513774 | P6: 0.03248513774 | Q6: 0.03248513774 | R6: 0.03248513774 | S6: 0.03248513774 | T6: 0.03248513774 | U6: 0.03248513774 | V6: SPE
A7: IPCA (1+% a.a.) | B7: =1+B6 -> 1.065 | C7: =1+C6 -> 1.0584 | D7: 1.0591 | E7: 1.0641 | F7: 1.1067 | G7: 1.0629 | H7: 1.0295 | I7: 1.0375 | J7: 1.043061516 | K7: 1.018318598 | L7: 1.029385878 | M7: 1.034985108 | N7: 1.032485138 | O7: 1.032485138 | P7: 1.032485138 | Q7: 1.032485138 | R7: 1.032485138 | S7: 1.032485138 | T7: 1.032485138 | U7: 1.032485138 | V7: SPE
A8: IGP-DI (% a.a.) | B8: 0.051 | C8: 0.08096678165 | D8: 0.05518366406 | E8: 0.03783593444 | F8: 0.1070109898 | G8: 0.07182591194 | H8: -0.00418532887 | I8: 0.07099355972 | J8: 0.07695936316 | K8: 0.1301868977 | L8: 0.0417781851 | M8: 0.03998545851 | N8: 0.03498551679 | O8: 0.03498551679 | P8: 0.03498551679 | Q8: 0.03498551679 | R8: 0.03498551679 | S8: 0.03498551679 | T8: 0.03498551679 | U8: 0.03498551679 | V8: SPE
A9: Deflator (% a.a.) | B9: 0.0832 | C9: 0.07943126942 | D9: 0.07504564532 | E9: 0.07846709743 | F9: 0.07566175013 | G9: 0.08138286432 | H9: 0.035 | I9: 0.031 | J9: 0.0414011848 | K9: 0.03976830659 | L9: 0.03652213936 | M9: 0.04064592537 | N9: 0.04069821803 | O9: 0.04069821803 | P9: 0.04069821803 | Q9: 0.04069821803 | R9: 0.04069821803 | S9: 0.04069821803 | T9: 0.04069821803 | U9: 0.04069821803 | V9: SPE
A10: PIB Nacional (% a.a.) | B10: 0.0397 | C10: 0.0192 | D10: 0.03 | E10: 0.005 | F10: -0.0354716227 | G10: -0.03304672123 | H10: 0.01062169029 | I10: 0.01117639932 | J10: 0.01136585573 | K10: -0.04695658596 | L10: 0.03201560551 | M10: 0.02501256929 | N10: 0.02502311945 | O10: 0.02502311945 | P10: 0.02502311945 | Q10: 0.02502311945 | R10: 0.02502311945 | S10: 0.02502311945 | T10: 0.02502311945 | U10: 0.02502311945 | V10: SPE
A11: Selic (% a.a. acum ano) | B11: 0.1162462937 | C11: 0.08501905747 | D11: 0.08229101427 | E11: 0.1090720752 | F11: 0.1327626288 | G11: 0.1401857771 | H11: 0.09939818679 | I11: 0.06428977221 | J11: 0.05903753938 | K11: 0.02635318563 | L11: 0.02039095067 | M11: 0.03552669496 | N11: 0.05064307982 | O11: 0.05064307982 | P11: 0.05064307982 | Q11: 0.05064307982 | R11: 0.05064307982 | S11: 0.05064307982 | T11: 0.05064307982 | U11: 0.05064307982 | V11: SPE
A12: Dólar (fim de período) | B12: 1.8758 | C12: 2.0435 | D12: 2.3426 | E12: 2.6562 | F12: 3.9048 | G12: 3.3523 | H12: 3.2919 | I12: 3.8851 | J12: 4.0307 | K12: 5.25 | L12: 5 | M12: 4.9 | N12: 4.85 | O12: 5.007552918 | P12: 5.170223964 | Q12: 5.007552918 | R12: 5.170223964 | S12: 5.007552918 | T12: 5.170223964 | U12: 5.007552918 | V12: SPE
A13: Dólar (média ano) | B13: 1.673792 | C13: 1.95496494 | D13: 2.160505138 | E13: 2.354518182 | F13: 3.338696 | G13: 3.484976305 | H13: 3.192008333 | I13: 3.65445 | J13: 3.945083333 | K13: 5.122345833 | L13: 5.104583333 | M13: 4.866666667 | N13: 4.875 | O13: 5.045554394 | P13: 5.222075722 | Q13: 5.045554394 | R13: 5.222075722 | S13: 5.045554394 | T13: 5.222075722 | U13: 5.045554394 | V13: SPE
A14: Tx de Cresc. Real - Desp. Pessoal Ativo | B14: 0.04268718669 | C14: 0.08130518949 | D14: 0.1037997141 | E14: 0.04268499868 | F14: -0.0466164341 | G14: -0.08893338659 | H14: 0.01100128607 | I14: 0.03624538331 | J14: -0.06515140147 | K14: =AVERAGE(B14:J14) -> 0.01300250402 | L14: =K14 -> 0.01300250402 | M14: =L14 -> 0.01300250402 | N14: 0.01300250402 | O14: 0.01300250402 | P14: 0.01300250402 | Q14: 0.01300250402 | R14: 0.01300250402 | S14: 0.01300250402 | T14: 0.01300250402 | U14: 0.01300250402 | V14: PAF
A15: Tx de Cresc. - Pop Idosa | B15: 0.03211040561 | C15: 0.03426607283 | D15: 0.0358332783 | E15: 0.03670635975 | F15: 0.03713468838 | G15: 0.03761652157 | H15: 0.03801651874 | I15: 0.03835028933 | J15: 0.03872044246 | K15: 0.03897001421 | L15: 0.03905010854 | M15: 0.03902000114 | N15: 0.03856336347 | O15: 0.03761816759 | P15: 0.03636654195 | Q15: 0.03761816759 | R15: 0.03636654195 | S15: 0.03761816759 | T15: 0.03636654195 | U15: 0.03761816759 | V15: IBGE

Sheet VI-Referência
A1: PLANO DE RECUPERAÇÃO FISCAL
A2: Mapeamento de Contas RRF e Instruções
A4: Mapeamento de Contas RRF e Instruções
A6: ACIMA DA LINHA - RECEITAS E DESPESAS | B6: .
A7: Receita Total (I) = (II+IX)
A8: Receitas Correntes (II) = (III+IV+V+VI+VII-IIa) | B8: NR: 1.0.0.0.00.0.0 + NR: 7.0.0.0.00.0.0 (TODAS AS FR EXCETO FR: 800 + FR: 801 + FR: 802)
A9: Receitas Tributárias (III) | B9: NR: 1.1.0.0.00.0.0 + NR: 7.1.0.0.00.0.0 - Valores brutos, sem dedução das transferências ao FUNDEB - a serem lançadas na linha (IIa) - e das transferências aos Municípios, que devem ser lançadas na despesa.
A10: ICMS | B10: NR: 1.1.1.4.50.1.0 + NR: 1.1.1.4.50.2.0 + NR: 7.1.1.4.50.1.0 + NR: 7.1.1.4.50.2.0
A11: IPVA | B11: NR: 1.1.1.2.51.0.0 + NR: 7.1.1.2.51.0.0
A12: ITCD | B12: NR: 1.1.1.2.52.0.0 + NR: 7.1.1.2.52.0.0
A13: IRRF | B13: NR: 1.1.1.3.03.0.0 + NR: 7.1.1.3.03.0.0
A14: Outras Receitas Tributárias | B14: [NR: 1.1.0.0.00.0.0 (-) NR: 1.1.1.4.50.1.0 (-) NR: 1.1.1.4.50.2.0 (-) NR: 1.1.1.2.51.0.0 (-) NR: 1.1.1.2.52.0.0 (-) NR: 1.1.1.3.03.0.0] + [NR: 7.1.0.0.00.0.0 (-) NR: 7.1.1.4.50.1.0 (-) NR: 7.1.1.4.50.2.0 (-) NR: 7.1.1.2.51.0.0 (-) NR: 7.1.1.2.52.0.0 (-) NR: 7.1.1.3.03.0.0]
A15: Receitas de Contribuições (IV) | B15: NR: 1.2.0.0.00.0.0 + NR: 7.2.0.0.00.0.0; (TODAS FR EXCETO FR: 800 + FR: 801 + FR: 802)
A16: Receitas Previdenciárias (a) | B16: NR: 1.2.1.5.01.0.0 + NR: 1.2.1.5.03.0.0 + NR: 1.2.1.5.04.0.0 + NR: 1.2.1.5.52.0.0 + NR: 1.2.1.5.55.0.0 + NR: 1.2.1.5.56.0.0 + NR: 1.2.1.5.02.0.0 + NR: 1.2.1.5.50.0.0 + NR: 1.2.1.5.51.0.0 + NR: 1.2.1.5.53.0.0 + NR: 1.2.1.5.54.0.0 + NR: 7.2.1.5.01.0.0 + NR: 7.2.1.5.03.0.0 + NR: 7.2.1.5.04.0.0 + NR: 7.2.1.5.52.0.0 + NR: 7.2.1.5.55.0.0 + NR: 7.2.1.5.56.0.0 + NR: 7.2.1.5.02.0.0 + NR: 7.2.1.5.50.0.0 + NR: 7.2.1.5.51.0.0 + NR: 7.2.1.5.53.0.0 + NR: 7.2.1.5.54.0.0
A17: Outras Receitas de Contribuições | B17: [NR: 1.2.0.0.00.0.0 (-) NR: 1.2.1.5.01.0.0 (-) NR: 1.2.1.5.03.0.0 (-) NR: 1.2.1.5.04.0.0 (-) NR: 1.2.1.5.52.0.0 (-) NR: 1.2.1.5.55.0.0 (-) NR: 1.2.1.5.56.0.0 (-) NR: 1.2.1.5.02.0.0 (-) NR: 1.2.1.5.50.0.0 (-) NR: 1.2.1.5.51.0.0 (-) NR: 1.2.1.5.53.0.0 (-) NR: 1.2.1.5.54.0.0] + [NR: 7.2.0.0.00.0.0 (-) NR: 7.2.1.5.01.0.0 (-) NR: 7.2.1.5.03.0.0 (-) NR: 7.2.1.5.04.0.0 (-) NR: 7.2.1.5.52.0.0 (-) NR: 7.2.1.5.55.0.0 (-) NR: 7.2.1.5.56.0.0 (-) NR: 7.2.1.5.02.0.0 (-) NR: 7.2.1.5.50.0.0 (-) NR: 7.2.1.5.51.0.0 (-) NR: 7.2.1.5.53.0.0 (-) NR: 7.2.1.5.54.0.0]
A18: Receita Patrimonial (V) | B18: NR: 1.3.0.0.00.0.0 + NR: 7.3.0.0.00.0.0; (TODAS FR EXCETO FR: 800 + FR: 801 + FR: 802)
A19: Receita de Aplicações Financeiras (b) | B19: NR: 1.3.2.1.01.0.0 + NR: 1.3.2.1.02.0.0 + NR: 1.3.2.1.03.0.0 + NR: 1.3.2.1.04.0.0 + NR: 1.3.2.1.05.0.0 + NR: 1.3.2.9.99.0.0 + NR: 7.3.2.1.01.0.0 + NR: 7.3.2.1.02.0.0 + NR: 7.3.2.1.03.0.0 + NR: 7.3.2.1.04.0.0 + NR: 7.3.2.1.05.0.0 + NR: 7.3.2.9.99.0.0
A20: Outras Receitas Patrimoniais | B20: [(NR: 1.3.0.0.00.0.0 (-) NR: 1.3.2.1.01.0.0 (-) NR: 1.3.2.1.02.0.0 (-) NR: 1.3.2.1.03.0.0 (-) NR: 1.3.2.1.04.0.0 (-) NR: 1.3.2.1.05.0.0 (-) NR: 1.3.2.9.99.0.0) + (NR: 7.3.0.0.00.0.0 (-) NR: 7.3.2.1.01.0.0 (-) NR: 7.3.2.1.02.0.0 (-) NR: 7.3.2.1.03.0.0 (-) NR: 7.3.2.1.04.0.0 (-) NR: 7.3.2.1.05.0.0 (-) NR: 7.3.2.9.99.0.0)]
A21: Transferências Correntes (VI) | B21: (NR: 1.7.0.0.00.0.0 + NR: 7.7.0.0.00.0.0); (TODAS FR EXCETO FR: 800 + FR: 801 + FR: 802) - Valores brutos, sem dedução das transferências ao FUNDEB - a serem lançadas na linha (IIa) - e das transferências aos Municípios, que devem ser lançadas na despesa.
A22: Cota-Parte do FPE | B22: NR: 1.7.1.1.50.0.0 + NR: 7.7.1.1.50.0.0
A23: Cota-Parte do IPI-Exp. (LC nº 61/1989) | B23: NR: 1.7.1.1.53.0.0 + NR: 7.7.1.1.53.0.0
A24: Transferências do FUNDEB | B24: NR: 1.7.1.5.00.0.0 + NR: 1.7.5.1.00.0.0 + NR: 7.7.1.5.00.0.0 + NR: 7.7.5.1.00.0.0
A25: Royalties e Participações Especiais | B25: NR: 1.7.1.2.52.0.0 + NR: 7.7.1.2.52.0.0
A26: Outras Transferências Correntes | B26: [(NR: 1.7.0.0.00.0.0 (-) NR: 1.7.1.1.50.0.0 (-) NR: 1.7.1.1.53.0.0 (-) NR: 1.7.1.5.00.0.0 (-) NR: 1.7.5.1.00.0.0) + (NR: 7.7.0.0.00.0.0 (-) NR: 7.7.1.1.50.0.0 (-) NR: 7.7.1.1.53.0.0 (-) NR: 7.7.1.5.00.0.0 (-) NR: 7.7.5.1.00.0.0 (-) NR: 1.7.1.2.52.0.0 (-) NR: 7.7.1.2.52.0.0)]
A27: Demais Receitas Correntes (VII) | B27: NR: 1.4.0.0.00.0.0 + NR: 1.5.0.0.00.0.0 + NR: 1.6.0.0.00.0.0 + NR: 1.9.0.0.00.0.0 + NR: 7.4.0.0.00.0.0 + NR: 7.5.0.0.00.0.0 + NR: 7.6.0.0.00.0.0 + NR: 7.9.0.0.00.0.0
A28: Outras Receitas Financeiras (c) | B28: NR: 1.6.4.1.01.0.0 + NR: 1.6.4.1.03.0.0 + NR: 1.9.2.2.01.2.0 + NR: 1.9.2.2.06.4.0 + NR: 1.9.4.4.00.0.0 + NR: 1.9.9.9.11.0.0 + NR: 1.9.9.9.99.3.0 + NR: 7.6.4.1.01.0.0 + NR: 7.6.4.1.03.0.0 + NR: 7.9.2.2.01.2.0 + NR: 7.9.2.2.06.4.0 + NR: 7.9.4.4.00.0.0 + NR: 7.9.9.9.11.0.0 + NR: 7.9.9.9.99.3.0
A29: Compensações Financeiras entre o RGPS e o RPPS (d) | B29: NR: 1.9.9.9.03.0.0 + NR: 7.9.9.9.03.0.0
A30: Receitas Correntes Restantes | B30: [NR: 1.4.0.0.00.0.0 + NR: 1.5.0.0.00.0.0 + (NR: 1.6.0.0.00.0.0 (-) NR: 1.6.4.1.01.0.0 (-) NR: 1.6.4.1.03.0.0) + (NR: 1.9.0.0.00.0.0 (-) NR: 1.9.2.2.01.2.0 (-) NR: 1.9.2.2.06.4.0 (-) NR: 1.9.4.4.00.0.0 (-) NR: 1.9.9.9.11.0.0 (-) NR: 1.9.9.9.99.3.0 (-) NR: 1.9.9.9.03.0.) + NR: 7.4.0.0.00.0.0 + NR: 7.5.0.0.00.0.0 + (NR: 7.6.0.0.00.0.0 (-) NR: 7.6.4.1.01.0.0 (-) NR: 7.6.4.1.03.0.0) + (NR: 7.9.0.0.00.0.0 (-) NR: 7.9.2.2.01.2.0 (-) NR: 7.9.2.2.06.4.0 (-) NR: 7.9.4.4.00.0.0 (-) NR: 7.9.9.9.11.0.0 (-) NR: 7.9.9.9.99.3.0 (-) NR: 7.9.9.9.03.0.0)]
A31: Deduções para formação do Fundeb (IIa)
A32: Receitas Primárias Correntes (VIII) = (II-b-c)
A33: Receitas de Capital (IX) = (X+XI+XII+XIII+XIV) | B33: NR: 2.0.0.0.00.0.0 + NR: 8.0.0.0.00.0.0; (TODAS AS FR EXCETO FR: 800 + FR: 801 + FR: 802)
A34: Operações de Crédito (X) | B34: NR: 2.1.0.0.00.0.0 + NR: 8.1.0.0.00.0.0; (TODAS AS FR EXCETO FR: 800 + FR: 801 + FR: 802)
A35: Amortização de Empréstimos (XI) | B35: NR: 2.3.0.0.00.0.0 + NR: 8.3.0.0.00.0.0; (TODAS AS FR EXCETO FR: 800 + FR: 801 + FR: 802)
A36: Alienação de Bens (XII) | B36: NR: 2.2.0.0.00.0.0 + NR: 8.2.0.0.00.0.0; (TODAS AS FR EXCETO FR: 800 + FR: 801 + FR: 802)
A37: Alienação de Bens Não Primária (e) | B37: NR: 2.2.1.1.01.0.0 + NR: 8.2.1.1.01.0.0 + NR: 2.2.1.1.02.0.0 + NR: 8.2.1.1.02.0.0
A38: Alienação de Bens Primária | B38: NR: 2.2.0.0.00.0.0 (-) NR: 2.2.1.1.01.0.0 (-) NR: 2.2.1.1.02.0.0 + NR: 8.2.0.0.00.0.0 (-) NR: 8.2.1.1.01.0.0 (-) NR: 8.2.1.1.02.0.0
A39: Transferências de Capital (XIII) | B39: NR: 2.4.0.0.00.0.0 + NR: 8.4.0.0.00.0.0; (TODAS AS FR EXCETO FR: 800 + FR: 801 + FR: 802)
A40: Outras Receitas de Capital (XIV) | B40: NR: 2.4.0.0.00.0.0 + NR: 8.4.0.0.00.0.0; (TODAS AS FR EXCETO FR: 800 + FR: 801 + FR: 802)
A41: Outras Receitas de Capital Não Primárias (f) | B41: NR: 2.9.2.0.00.0.0 + NR: 2.9.3.0.00.0.0 + NR: 2.9.4.0.00.0.0 + NR: 8.9.2.0.00.0.0 + NR: 8.9.3.0.00.0.0 + NR: 8.9.4.0.00.0.0
A42: Outras Receitas de Capital Primárias | B42: NR: 2.9.1.0.00.0.0 + NR: 2.9.9.0.00.0.0 + NR: 8.9.1.0.00.0.0 + NR: 8.9.9.0.00.0.0
A43: Receitas Primárias de Capital (XV) = (IX-X-XI-e-f)
A44: RECEITA PRIMÁRIA TOTAL (XVI) = (VIII+XV)
A45: Despesa Orçamentária (XVII) = (XVIII+XXIII)
A46: Despesas Correntes (XVIII) = (XIX+XX+XXI) | B46: ND: 3.0.00.00.00; (TODAS FR EXCETO FR: 800 + FR: 801 + FR: 802)
A47: Pessoal e Encargos Sociais (XIX) | B47: ND: 3.1.00.00.00; (TODAS FR EXCETO FR: 800 + FR: 801 + FR: 802)
A48: Ativo | B48: ND: 3.1.90.04.00 + ND: 3.1.90.07.00 + ND: 3.1.90.11.00 + ND: 3.1.90.12.00 + ND: 3.1.90.13.00 + ND: 3.1.90.16.00 + ND: 3.1.90.17.00 + ND: 3.1.90.67.00 + ND: 3.1.90.96.00 + ND: 3.1.90.99.00 + ND: 3.1.91.04.00 + ND: 3.1.91.08.00 + ND: 3.1.91.13.00 + ND: 3.1.91.96.00 + ND: 3.1.91.99.00
A49: Inativos e Pensionistas | B49: ND: 3.1.90.01.00 + ND: 3.1.90.03.00
A50: Sentenças Judiciais - Pessoal | B50: ND: 3.1.90.91.00 + ND: 3.1.91.91.00
A51: Outras Despesas com Pessoal | B51: ND: 3.1.00.00.00 (-) Ativo (-) Inativos e Pensionistas (-) Senteças Judiciais
A52: Juros e Encargos da Dívida (XX) | B52: ND: 3.2.00.00.00; (TODAS FR EXCETO FR: 800 + FR: 801 + FR: 802)
A53: Outras Despesas Correntes (XXI) | B53: ND: 3.3.00.00.00; (TODAS FR EXCETO FR: 800 + FR: 801 + FR: 802)
A54: Transferências Constitucionais e Legais (g) | B54: ND: 3.3.40.81.00 - As transferências aos Municípios devem ser lançadas aqui.
A55: Sentenças Judiciais - Outras Correntes | B55: ND: 3.3.XX.91.00
A56: Demais Despesas Correntes | B56: ND: 3.3.00.00.00 (-) Transferências Constitucionais e Legais (-) Sentenças Judiciais
A57: Despesas Primárias Correntes (XXII) = (XVIII-XX)
A58: Despesas de Capital (XXIII) = (XXIV+XXV+XXVI) | B58: ND: 4.0.00.00.00; (TODAS AS FR EXCETO FR: 800 + FR: 801 + FR: 802)
A59: Investimentos (XXIV) | B59: [ND: 4.4.00.00.00; (TODAS FR EXCETO FR: 800 + FR: 801 + FR: 802)] + CC 8.6.3.1.1.01.00 + 8.6.3.1.2.01.00
A60: Sentenças Judiciais - Investimentos | B60: ND: 4.4.XX.91.00
A61: Demais Investimentos | B61: ND: 4.4.00.00.00 (-) ND: 4.4.XX.91.00
A62: Inversões Financeiras (XXV) | B62: ND: 4.5.00.00.00; (TODAS FR EXCETO FR: 800 + FR: 801 + FR: 802)
A63: Inversões Financeiras Não Primárias (h) 1) | B63: ND: 4.5.XX.66.00 + ND: 4.5.90.92.66 + ND: 4.5.XX.64.00 + ND: 4.5.90.92.64 + ND: 4.5.XX.63.00 + ND: 4.5.90.92.63
A64: Sentenças Judiciais - Inversões | B64: ND: 4.5.XX.91.00
A65: Demais Inversões Financeiras Primárias | B65: ND: 4.5.00.00.00 (-) Inversões Financeiras Não Primárias (-) Sentenças Judiciais
A66: Amortização da Dívida (XXVI) | B66: ND: 4.6.00.00.00; (TODAS FR EXCETO FR: 800 + FR: 801 + FR: 802)
A67: Despesas Primárias de Capital (XXVII) = (XXIII-h-XXVI)
A68: DESPESA PRIMÁRIA ORÇAMENTÁRIA (XXVIII) = (XXII+XXVII)
A69: RECEITA CORRENTE LÍQUIDA (XXIX) = (II-a-d-g)
A70: RESTOS A PAGAR
A71: Inscrições de Restos a Pagar (XXX) = (i+k)
A72: Inscrição de RAP Processados (i)
A73: Inscrição de RAP Processados Primários (j)
A74: Inscrição de RAP Processados Não Primários
A75: Inscrição de RAP Não Processados (k)
A76: Inscrição de RAP Não Processados Primários (l)
A77: Inscrição de RAP Não Processados Não Primários
A78: Cancelamentos de Restos a Pagar (XXXI) = (m+n)
A79: Cancelamento de RAP Processados (m)
A80: Cancelamento de RAP Não Processados (n)
A81: Liquidação de Restos a Pagar Não Processados (XXXII)
A82: Pagamento de Restos a Pagar Primário (XXXIII) | B82: Considera o pagamento de RAPs primários, inclusive os processados e não processados liquidados no exercício
A83: Pagamento de Restos a Pagar Não Primário (XXXIV) | B83: Considera o pagamento de RAPs não primários, inclusive os processados e não processados liquidados no exercício
A84: ESTOQUE DE RESTOS A PAGAR (XXXV) = (XXXVI+XXXVII)
A85: Estoque de RAP Processados (XXXVI) = XXXVI(t-1) + (i-m+XXXII-XXXIII-XXXIV) | B85: A primeira célula (B85) deve ser preenchida com o dado realizado
A86: Estoque de RAP Não Processados (XXXVII) = XXXVII(t-1) + (k-n-XXXII) | B86: A primeira célula (B86) deve ser preenchida com o dado realizado
A87: ESTOQUE DE RESTOS A PAGAR / RECEITA CORRENTE LÍQUIDA (XXXV/XXIX)
A88: RAP Processados / RCL (XXXVI/XXIX)
A89: RAP Não Processados / RCL (XXXVII/XXIX)
A90: DESPESA PRIMÁRIA (XXXVIII) = (XXVIII-j-l+XXXIII)
A91: Demais Despesas Primárias (XXXIX) 2) | B91: Despesas que compõe o resultado primário por caixa, mas não transitam pelo orçamento
A92: DESPESA PRIMÁRIA TOTAL (XL) = (XXXVIII+XXXIX)
A93: RESULTADOS PRIMÁRIO E NOMINAL
A94: RESULTADO PRIMÁRIO (XLI) = (XVI-XL)
A95: Juros e Encargos da Dívida (XX)
A96: Amortização da Dívida (XXVI)
A97: Inversões Financeiras Não Primárias (h) 1)
A98: Receita de Aplicações Financeiras (b)
A99: Outras Receitas Financeiras (c)
A100: Outras Receitas de Capital Não Primárias (f)
A101: Amortização de Empréstimos (XI)
A102: Despesa Financeira Líquida (XLII) = (XX+XXVI+h-b-c-f-XI)
A103: NECESSIDADE DE FINANCIAMENTO (XLIII) = (XLII-XLI)
A104: Operações de Crédito (X)
A105: Alienação de Bens Não Primária (e)
A106: Fontes de Financiamento (XLIV) = (X+e)
A107: Outros Fluxos de Caixa (XLV) | B107: Fluxos que impactam o caixa, mas não transitam pelo orçamento (exceto as demais despesas primárias).
A108: FLUXO DE CAIXA (XLVI) = (XLIV-XLIII+XLV)
A109: 1) Corresponde ao somatório de Concessão de Empréstimos e Financiamentos, Aquisição de Título de Capital já Integralizado e Aquisição de Título de Crédito.
A110: 2) As Demais Despesas Primárias são despesas que compõem o resultado primário por caixa, mas não transitam pelo orçamento.
